Workbook

Sheet 1427-1525 MHz
C3: Espectro Radioeléctrico
C5: Comparativo anual - Porcentajes de ocupación del espectro radioeléctrico por sitios en la banda 1 427 - 1 525 MHz
C8: Fecha de publicación: 20 de enero de 2015
B12: Nombre | C12: Latitud | D12: Longitud | E12: Cantón | F12: Hsnm(m) | G12: Gráficos | H12: 2010 | I12: 2011 | J12: 2012 | K12: 2013 | L12: 2014
H13: Ocupacion (%) | I13: Ocupacion (%) | J13: Ocupacion (%) | K13: Ocupacion (%) | L13: Ocupacion (%)
B14: Barabon | C14: 02°53'34.40''S | D14: 79°05'15.10''W | E14: Cuenca | F14: 3351 | H14: 0 | I14: 0 | J14: 0 | K14: 0 | L14: 0
B15: Cerro Cahuazhun | C15: 02°52'33.40''S | D15: 78°49'01.60''W | E15: Gualaceo | F15: 2999 | H15: 0 | I15: 0 | J15: 0 | K15: 0 | L15: 0
B16: Cerro Cochapamba | C16: 02°47'41.10''S | D16: 79°25'39.10''W | E16: Cuenca | F16: 3714 | H16: 0 | I16: 0 | J16: 0 | K16: 0 | L16: 0
B17: Cerro Guagualzhumi | C17: 02°53'32.50''S | D17: 78°54'39.60''W | E17: Cuenca | F17: 3079 | H17: 0 | I17: 0 | J17: 0 | K17: 0 | L17: 0
B18: Cerro Guallil | C18: 03°04'30.90''S | D18: 78°48'58.70''W | E18: Sigsig | F18: 3284 | H18: 10.20408163 | I18: 57.58928571 | J18: 57.59 | K18: 57.59 | L18: 32.14285714
B19: Cerro Hito Cruz | C19: 02°55'51.50''S | D19: 78°59'51.70''W | E19: Cuenca | F19: 2847 | H19: 21.42857143 | I19: 48.88392857 | J19: 16.29 | K19: 16.29 | L19: 23.4375
B20: Cerro Rayoloma | C20: 02°54'13.00''S | D20: 78°57'59.20''W | E20: Cuenca | F20: 2649 | H20: 3.571428571 | I20: 16.29464286 | J20: 16.29 | K20: 16.29 | L20: 16.29464286
B21: Cerro Rumiloma (Amopungo - Señor Pungo) | C21: 02°48'19.00''S | D21: 78°49'19.30''W | E21: Paute | F21: 3175 | H21: 5.102040816 | I21: 17.41071429 | J21: 17.41 | K21: 17.41 | L21: 17.41071429
B22: Cerro Turi | C22: 02°55'22.90''S | D22: 79°00'32.80''W | E22: Cuenca | F22: 2730 | H22: 0 | I22: 0 | J22: 0 | K22: 0 | L22: 0
B23: Sector Nero - Zhuzhun | C23: 02°56'48.30''S | D23: 79°03'46.20''W | E23: Cuenca | F23: 2932 | H23: 0 | I23: 0 | J23: 0 | K23: 0 | L23: 0
B24: Tipoloma Alto | C24: 03°08'13.20''S | D24: 79°05'09.70''W | E24: Girón | F24: 3177 | H24: 5.102040816 | I24: 25 | J24: 25 | K24: 25 | L24: 51.33928571
B25: Tipoloma Bajo | C25: 03°07'41.50''S | D25: 79°05'17.90''W | E25: Girón | F25: 3086 | H25: 0 | I25: 0 | J25: 0 | K25: 0 | L25: 0
B26: Cerro Paredones | C26: 02°44'38.30''S | D26: 79°26'26.60''W | E26: Cuenca | F26: 3668 | H26: 0 | I26: 0 | J26: 0 | K26: 0 | L26: 0
B27: Cuchilla de Paredones | C27: 02°44'10.70''S | D27: 79°26'43.10''W | E27: Cuenca | F27: 3311 | H27: 0 | I27: 0 | J27: 0 | K27: 0 | L27: 0
B28: Bilovan | C28: 01°48'09.10''S | D28: 79°06'17.20''W | E28: San Miguel | F28: 2662 | H28: 5.102040816 | I28: 26.33928571 | J28: 26.34 | K28: 26.34 | L28: 26.33928571
B29: Cerro Capadia Alto | C29: 01°25'24.20''S | D29: 78°57'01.10''W | E29: Guaranda | F29: 4460 | H29: 0 | I29: 0 | J29: 0 | K29: 0 | L29: 0
B30: Cerro Capadia Chico | C30: 01°25'54.10''S | D30: 78°56'19.70''W | E30: Guaranda | F30: 4384 | H30: 0 | I30: 0 | J30: 0 | K30: 0 | L30: 0
B31: Cerro de la Cocha | C31: 01°50'38.90''S | D31: 79°09'52.80''W | E31: San Miguel | F31: 2496 | H31: 0 | I31: 0 | J31: 0 | K31: 0 | L31: 0
B32: Cerro Ilambulo | C32: 01°42'18.60''S | D32: 79°05'32.60''W | E32: San Miguel | F32: 3213 | H32: 7.142857143 | I32: 16.29464286 | J32: 16.29 | K32: 16.29 | L32: 16.29464286
B33: Cerro Pucará | C33: 01°39'04.50''S | D33: 79°06'10.70''W | E33: Chimbo | F33: 3063 | H33: 0 | I33: 0 | J33: 0 | K33: 0 | L33: 0
B34: Cochambamba (Chuchi) | C34: 01°41'56.20''S | D34: 79°06'20.60''W | E34: San Miguel | F34: 3072 | H34: 10.20408163 | I34: 0 | J34: 38.62 | K34: 38.62 | L34: 0
B35: Cochabamba (Tundaloma) | C35: 01°41'35.30''S | D35: 79°06'28.20''W | E35: San Miguel | F35: 3018 | H35: 10.20408163 | I35: 0 | J35: 38.62 | K35: 38.62 | L35: 0
B36: Loma de Lourdes | C36: 01°42'19.70''S | D36: 79°04'49.20''W | E36: San Miguel | F36: 3281 | H36: 10.20408163 | I36: 42.85714286 | J36: 42.86 | K36: 42.86 | L36: 42.85714286
B37: Loma Susanga | C37: 01°40'23.00''S | D37: 79°01'08.80''W | E37: Chimbo | F37: 2879 | H37: 10.20408163 | I37: 32.14285714 | J37: 32.14 | K37: 32.14 | L37: 32.14285714
B38: Padre Urcu | C38: 01°42'21.80''S | D38: 79°05'45.70''W | E38: San Miguel | F38: 3181 | H38: 7.142857143 | I38: 16.29464286 | J38: 16.29 | K38: 16.29 | L38: 16.29464286
B39: Tiuguinal | C39: 01°22'00.30''S | D39: 79°00'25.10''W | E39: Guaranda | F39: 4126 | H39: 0 | I39: 0 | J39: 0 | K39: 0 | L39: 0
B40: Biblian (Sagrado Corazón) | C40: 02°43'07.70''S | D40: 78°52'53.40''W | E40: Biblián | F40: 2878 | H40: 0 | I40: 0 | J40: 0 | K40: 0 | L40: 0
B41: Cerro Altar Urcu | C41: 02°28'48.90''S | D41: 78°59'36.30''W | E41: Cañar | F41: 3215 | H41: 10.20408163 | I41: 32.58928571 | J41: 0 | K41: 0 | L41: 0
B42: Cerro Buerán | C42: 02°36'31.10''S | D42: 78°55'50.90''W | E42: Biblián | F42: 3816 | H42: 10.20408163 | I42: 25.89285714 | J42: 25.89 | K42: 25.89 | L42: 25.89285714
B43: Cerro Buerán(Tierras Negras) | C43: 02°35'59.40''S | D43: 78°55'44.40''W | E43: Biblián | F43: 3828 | H43: 10.20408163 | I43: 25.89285714 | J43: 25.89 | K43: 25.89 | L43: 25.89285714
B44: Cerro Carshao | C44: 02°26'23.20''S | D44: 78°57'03.80''W | E44: Cañar | F44: 4017 | H44: 15.30612245 | I44: 40.17857143 | J44: 38.62 | K44: 38.62 | L44: 38.61607143
B45: Cerro Carshao Bajo | C45: 02°26'08.10''S | D45: 78°56'52.20''W | E45: Cañar | F45: 4003 | H45: 15.30612245 | I45: 40.17857143 | J45: 38.62 | K45: 38.62 | L45: 38.61607143
B46: Cerro Cojitambo | C46: 02°45'40.70''S | D46: 78°53'16.40''W | E46: Azoguez | F46: 3106 | H46: 0 | I46: 0 | J46: 0 | K46: 0 | L46: 0
B47: Cerro Villaflor | C47: 02°49'44.60''S | D47: 78°48'12.30''W | E47: Azoguez | F47: 3042 | H47: 0 | I47: 0 | J47: 0 | K47: 0 | L47: 0
B48: Cerro Troya | C48: 00°44'24.50''N | D48: 77°41'48.70''W | E48: Tulcán | F48: 3529 | H48: 10.20408163 | I48: 51.78571429 | J48: 0 | K48: 0 | L48: 51.78571429
B49: Cerro Troya Bajo | C49: 00°44'09.50''N | D49: 77°42'22.80''W | E49: Tulcán | F49: 3418 | H49: 0 | I49: 0 | J49: 0 | K49: 0 | L49: 0
B50: Cerro Cabras | C50: 00°28'15.00''N | D50: 77°57'50.70''W | E50: Bolívar | F50: 2904 | H50: 10.20408163 | I50: 51.78571429 | J50: 0 | K50: 0 | L50: 26.33928571
B51: Cerro Chiles Alto | C51: 00°35'14.40''N | D51: 77°51'04.00''W | E51: Montúfar | F51: 3093 | H51: 0 | I51: 0 | J51: 0 | K51: 0 | L51: 0
B52: Agua Santa | C52: 01°41'46.80''S | D52: 78°39'59.80''W | E52: Riobamba | F52: 3006 | H52: 0 | I52: 0 | J52: 1.34 | K52: 1.34 | L52: 1.339285714
B53: Cerro Amula Rayoloma | C53: 01°41'22.10''S | D53: 78°43'45.70''W | E53: Colta | F53: 3485 | H53: 0 | I53: 0 | J53: 0 | K53: 0 | L53: 0
B54: Cerro Gatazo Grande | C54: 01°39'41.30''S | D54: 78°45'00.80''W | E54: Colta | F54: 3188 | H54: 0 | I54: 0 | J54: 0 | K54: 0 | L54: 0
B55: Cerro Higno Cacha | C55: 01°41'31.90''S | D55: 78°42'58.60''W | E55: Riobamba | F55: 3567 | H55: 0 | I55: 0 | J55: 0 | K55: 0 | L55: 0
B56: Cerro La Mira | C56: 01°30'32.70''S | D56: 78°35'05.20''W | E56: Guano | F56: 3881 | H56: 15.30612245 | I56: 71.875 | J56: 71.88 | K56: 71.88 | L56: 71.875
B57: Cerro La Mira (Senincahuan) | C57: 01°41'31.90''S | D57: 78°42'58.60''W | E57: Riobamba | F57: 3947 | H57: 0 | I57: 0 | J57: 0 | K57: 0 | L57: 0
B58: Cerro Achayandi | C58: 00°57'07.70''S | D58: 78°55'32.90''W | E58: Pujulí | F58: 4102 | H58: 5.102040816 | I58: 26.33928571 | J58: 51.79 | K58: 51.79 | L58: 26.33928571
B59: Cerro Apagua | C59: 00°58'32.00''S | D59: 78°56'58.00''W | E59: Pujulí | F59: 4032 | H59: 0 | I59: 0 | J59: 0 | K59: 0 | L59: 0
B60: Cerro Putzalagua | C60: 00°57'56.00''S | D60: 78°33'42.70''W | E60: Latacunga | F60: 3531 | H60: 0 | I60: 0 | J60: 0 | K60: 0 | L60: 0
B61: Chasqui | C61: 00°37'15.30''S | D61: 78°35'37.20''W | E61: Latacunga | F61: 3532 | H61: 0 | I61: 0 | J61: 0 | K61: 0 | L61: 0
B62: Cerro Chilla | C62: 03°29'09.70''S | D62: 79°36'04.70''W | E62: Chilla | F62: 3450 | H62: 0 | I62: 0 | J62: 0 | K62: 0 | L62: 0
B63: Cerro Chilola | C63: 03°30'00.90''S | D63: 79°37'52.50''W | E63: Chilla | F63: 3596 | H63: 0 | I63: 0 | J63: 0 | K63: 0 | L63: 0
B64: Cerro El Trigal | C64: 03°41'23.20''S | D64: 79°39'33.90''W | E64: Piñas | F64: 1292 | H64: 0 | I64: 0 | J64: 0 | K64: 0 | L64: 0
B65: Cerro Guirillio | C65: 03°09'57.50''S | D65: 79°36'20.40''W | E65: El Guabo | F65: 3192 | H65: 0 | I65: 0 | J65: 0 | K65: 0 | L65: 0
B66: Cerro La Chuva | C66: 03°43'03.00''S | D66: 79°39'11.30''W | E66: Piñas | F66: 1282 | H66: 0 | I66: 13.16964286 | J66: 13.17 | K66: 13.17 | L66: 13.16964286
B67: Cerro Repen | C67: 03°33'01.80''S | D67: 79°41'02.70''W | E67: Atahualpa | F67: 2369 | H67: 5.102040816 | I67: 51.33928571 | J67: 51.34 | K67: 51.34 | L67: 51.33928571
B68: Cerro Balao (Esmeraldas) | C68: 00°57'41.30''N | D68: 79°41'25.70''W | E68: Esmeraldas | F68: 192 | H68: 0 | I68: 0 | J68: 0 | K68: 0 | L68: 0
B69: Cerro Don Juan | C69: 00°50'51.20''N | D69: 79°53'52.40''W | E69: Atacames | F69: 262 | H69: 15.30612245 | I69: 72.76785714 | J69: 0 | K69: 0 | L69: 72.76785714
B70: Cerro Gatazo | C70: 00°56'38.40''N | D70: 79°39'29.70''W | E70: Esmeraldas | F70: 271 | H70: 5.102040816 | I70: 38.61607143 | J70: 8.93 | K70: 8.93 | L70: 26.33928571
B71: Cerro La Juanita | C71: 00°28'02.20''N | D71: 79°34'40.50''W | E71: Quinindé | F71: 502 | H71: 10.20408163 | I71: 39.50892857 | J71: 0 | K71: 0 | L71: 39.50892857
B72: Cerro Zapallo | C72: 00°53'05.30''N | D72: 79°31'52.20''W | E72: Esmeraldas | F72: 690 | H72: 15.30612245 | I72: 53.34821429 | J72: 0 | K72: 0 | L72: 51.78571429
B73: Cerro Animas | C73: 02°28'28.20''S | D73: 80°28'03.40''W | E73: Guayaquil | F73: 427 | H73: 33.67346939 | I73: 82.58928571 | J73: 82.14 | K73: 82.14 | L73: 70.53571429
B74: Cerro Azul | C74: 02°09'57.40''S | D74: 79°57'24.80''W | E74: Guayaquil | F74: 324 | H74: 48.21428571 | I74: 97.09821429 | J74: 81.47 | K74: 81.47 | L74: 81.47321429
B75: Cerro Azul Alto (507) | C75: 02°09'05.10''S | D75: 79°59'01.80''W | E75: Guayaquil | F75: 398 | H75: 0 | I75: 0 | J75: 0 | K75: 0 | L75: 0
B76: Cerro Balao | C76: 02°45'58.90''S | D76: 79°39'52.90''W | E76: Naranjal | F76: 490 | H76: 15.30612245 | I76: 48.88392857 | J76: 48.88 | K76: 48.88 | L76: 47.32142857
B77: Cerro Bellavista | C77: 02°10'57.10''S | D77: 79°54'51.30''W | E77: Guayaquil | F77: 100 | H77: 10.20408163 | I77: 26.33928571 | J77: 10.04 | K77: 10.04 | L77: 0
B78: Cerro El Carmen | C78: 02°10'47.60''S | D78: 79°52'50.00''W | E78: Guayaquil | F78: 80 | H78: 24.48979592 | I78: 47.32142857 | J78: 43.08 | K78: 43.08 | L78: 43.08035714
B79: Cerro González | C79: 02°20'57.30''S | D79: 80°32'36.70''W | E79: Guayaquil | F79: 296 | H79: 10.20408163 | I79: 39.50892857 | J79: 26.34 | K79: 26.34 | L79: 39.50892857
B80: Cerro Mapasingue | C80: 02°08'49.80''S | D80: 79°55'40.80''W | E80: Guayaquil | F80: 120 | H80: 14.28571429 | I80: 27.23214286 | J80: 1.34 | K80: 1.34 | L80: 0
B81: Cerro San Eduardo | C81: 02°10'28.00''S | D81: 79°55'07.30''W | E81: Guayaquil | F81: 160 | H81: 3.06122449 | I81: 10.04464286 | J81: 11.38 | K81: 11.38 | L81: 0
B82: Cerro Santa Ana | C82: 01°55'45.30''S | D82: 79°45'50.10''W | E82: San Borondón | F82: 300 | H82: 25.51020408 | I82: 73.4375 | J82: 73.44 | K82: 73.44 | L82: 65.84821429
B83: Cerro Tanzarte (Cruz Loma) | C83: 02°45'17.90''S | D83: 79°23'59.80''W | E83: Naranjal | F83: 2894 | H83: 4.081632653 | I83: 13.39285714 | J83: 13.39 | K83: 13.39 | L83: 13.39285714
B84: Cerro Blanco | C84: 00°12'33.70''N | D84: 78°20'16.40''W | E84: Otavalo | F84: 3545 | H84: 12.24489796 | I84: 39.28571429 | J84: 0 | K84: 0 | L84: 34.15178571
B85: Cerro Cotacachi | C85: 00°19'57.30''N | D85: 78°20'24.60''W | E85: Cotacachi | F85: 4047 | H85: 7.142857143 | I85: 16.29464286 | J85: 0 | K85: 0 | L85: 0
B86: Cerro Calvario (Loja) | C86: 04°02'47.00''S | D86: 79°39'05.80''W | E86: Paltas | F86: 1935 | H86: 0 | I86: 0 | J86: 0 | K86: 0 | L86: 0
B87: Cerro Colambo | C87: 04°14'14.60''S | D87: 79°23'45.40''W | E87: Gonzanamá | F87: 3103 | H87: 0 | I87: 0 | J87: 0 | K87: 0 | L87: 0
B88: Cerro Guachaurco | C88: 04°02'11.70''S | D88: 79°52'19.40''W | E88: Paltas | F88: 3102 | H88: 0 | I88: 0 | J88: 0 | K88: 0 | L88: 0
B89: Cerro Guanchuro | C89: 04°04'28.80''S | D89: 79°38'54.90''W | E89: Paltas | F89: 2446 | H89: 0 | I89: 0 | J89: 0 | K89: 0 | L89: 0
B90: Cerro Huanchinchambo | C90: 04°01'25.20''S | D90: 79°14'45.90''W | E90: Catamayo | F90: 2849 | H90: 0 | I90: 0 | J90: 0 | K90: 0 | L90: 0
B91: Cerro Motilon | C91: 04°04'57.10''S | D91: 79°56'22.20''W | E91: Celica | F91: 2663 | H91: 0 | I91: 0 | J91: 0 | K91: 0 | L91: 0
B92: Cerro Ventanas | C92: 04°01'54.10''S | D92: 79°14'39.00''W | E92: Catamayo | F92: 2870 | H92: 0 | I92: 0 | J92: 0 | K92: 0 | L92: 0
B93: Cerro Villonaco Alto | C93: 03°59'18.70''S | D93: 79°16'06.30''W | E93: Catamayo | F93: 2952 | H93: 0 | I93: 0 | J93: 0 | K93: 0 | L93: 0
B94: Pucará | C94: 04°05'47.80''S | D94: 79°56'17.70''W | E94: Celica | F94: 2479 | H94: 0 | I94: 0 | J94: 0 | K94: 0 | L94: 0
B95: Saraguro | C95: 03°37'55.20''S | D95: 79°14'37.50''W | E95: Saraguro | F95: 2740 | H95: 0 | I95: 0 | J95: 0 | K95: 0 | L95: 0
B96: Cerro Corozo | C96: 01°29'23.10''S | D96: 80°31'27.00''W | E96: Jipijapa | F96: 774 | H96: 15.30612245 | I96: 52.45535714 | J96: 52.46 | K96: 52.46 | L96: 52.45535714
B97: Cerro de Hojas | C97: 01°02'40.10''S | D97: 80°32'38.50''W | E97: Portoviejo | F97: 674 | H97: 43.36734694 | I97: 93.97321429 | J97: 61.83 | K97: 61.83 | L97: 60.04464286
B98: Cerro Guayas | C98: 00°41'18.10''S | D98: 80°05'27.90''W | E98: Chone | F98: 128 | H98: 0 | I98: 0 | J98: 0 | K98: 0 | L98: 0
B99: Cerro Jama 1 | C99: 00°12'29.40''S | D99: 80°16'08.70''W | E99: Jama | F99: 93 | H99: 0 | I99: 0 | J99: 0 | K99: 0 | L99: 0
B100: Cerro Jama 2 | C100: 00°12'58.90''S | D100: 80°16'44.50''W | E100: Jama | F100: 140 | H100: 0 | I100: 0 | J100: 0 | K100: 0 | L100: 0
B101: Cerro La Crespa | C101: 00°20'07.10''S | D101: 79°45'34.70''W | E101: Flavio Alfaro | F101: 480 | H101: 5.102040816 | I101: 26.33928571 | J101: 0 | K101: 0 | L101: 0
B102: Cerro Nueve | C102: 00°16'05.30''S | D102: 80°12'29.90''W | E102: Jama | F102: 652 | H102: 10.20408163 | I102: 39.50892857 | J102: 13.17 | K102: 13.17 | L102: 0
B103: Cerro Puerto Alto | C103: 00°21'36.30''S | D103: 79°52'00.40''W | E103: Flavio Alfaro | F103: 410 | H103: 0 | I103: 0 | J103: 0 | K103: 0 | L103: 0
B104: Loma de Viento | C104: 00°42'28.10''S | D104: 80°24'28.80''W | E104: Sucre | F104: 402 | H104: 15.30612245 | I104: 52.45535714 | J104: 52.46 | K104: 52.46 | L104: 51.33928571
B105: Mirador de Bahía de Caráquez | C105: 00°36'28.00''S | D105: 80°25'34.70''W | E105: Sucre | F105: 102 | H105: 0 | I105: 0 | J105: 0 | K105: 0 | L105: 0
B106: Cerro Bosco | C106: 03°00'01.00''S | D106: 78°30'34.90''W | E106: Limón Indanza | F106: 2404 | H106: 5.102040816 | I106: 26.33928571 | J106: 0 | K106: 0 | L106: 26.33928571
B107: Cerro Quilamo | C107: 02°18'14.40''S | D107: 78°08'26.80''W | E107: Morona | F107: 1461 | H107: 0 | I107: 0 | J107: 0 | K107: 0 | L107: 0
B108: Cerro Condijua | C108: 00°29'01.60''S | D108: 77°54'06.90''W | E108: Quijos | F108: 2526 | H108: 5.102040816 | I108: 17.41071429 | J108: 17.41 | K108: 17.41 | L108: 17.41071429
B109: Cerro Huacamayos | C109: 00°37'26.06''S | D109: 77°50'28.60''W | E109: Archidona | F109: 2300 | H109: 0 | I109: 0 | J109: 0 | K109: 0 | L109: 0
B110: Cerro Tres Cruces | C110: 00°16'22.60''S | D110: 77°45'53.80''W | E110: El Chaco | F110: 1980 | H110: 0 | I110: 0 | J110: 0 | K110: 0 | L110: 0
B111: Papallacta | C111: 00°22'43.70''S | D111: 78°08'48.60''W | E111: Quijos | F111: 3373 | H111: 0 | I111: 0 | J111: 0 | K111: 0 | L111: 0
B112: Cerro Lumbaqui Alto | C112: 00°00'30.40''N | D112: 77°19'15.80''W | E112: Orellana | F112: 1088 | H112: 20.40816327 | I112: 51.33928571 | J112: 0 | K112: 0 | L112: 25.89285714
B113: Cerro Lumbaqui Bajo | C113: 00°01'47.70''N | D113: 77°19'07.90''W | E113: Orellana | F113: 998 | H113: 0 | I113: 0 | J113: 0 | K113: 0 | L113: 0
B114: Cerro Abitagua | C114: 01°24'53.90''S | D114: 78°08'31.00''W | E114: Mera | F114: 2250 | H114: 10.20408163 | I114: 39.73214286 | J114: 26.34 | K114: 26.34 | L114: 0
B115: Cerro Calvario | C115: 01°31'14.30''S | D115: 77°54'28.50''W | E115: Pastaza | F115: 1171 | H115: 10.20408163 | I115: 32.14285714 | J115: 32.14 | K115: 32.14 | L115: 32.14285714
B116: Santa Clara(Km.35 Vía Puyo - Tena) | C116: 01°17'29.30''S | D116: 77°52'36.80''W | E116: Santa Clara | F116: 1080 | H116: 10.20408163 | I116: 42.85714286 | J116: 42.86 | K116: 42.86 | L116: 42.85714286
B117: Cerro Cayambe | C117: 00°03'58.00''N | D117: 77°59'25.80''W | E117: Cayambe | F117: 4216 | H117: 0 | I117: 0 | J117: 0 | K117: 0 | L117: 0
B118: Cerro Cruz Loma | C118: 00°11'17.50''S | D118: 78°32'06.70''W | E118: Quito | F118: 3990 | H118: 30.6122449 | I118: 92.1875 | J118: 0 | K118: 0 | L118: 92.1875
B119: Cerro Ilumbisi | C119: 00°13'40.60''S | D119: 78°28'25.70''W | E119: Quito | F119: 3040 | H119: 17.34693878 | I119: 45.98214286 | J119: 0 | K119: 0 | L119: 18.75
B120: Cerro La Virgen | C120: 00°19'06.90''S | D120: 78°11'27.60''W | E120: Quito | F120: 4412 | H120: 0 | I120: 0 | J120: 0 | K120: 0 | L120: 0
B121: Cerro Puengasí | C121: 00°14'43.40''S | D121: 78°29'59.70''W | E121: Quito | F121: 3085 | H121: 0 | I121: 0 | J121: 0 | K121: 0 | L121: 0
B122: Mojanda | C122: 00°04'47.30''N | D122: 78°13'43.20''W | E122: Pedro Moncayo | F122: 3241 | H122: 3.571428571 | I122: 17.85714286 | J122: 17.86 | K122: 17.86 | L122: 17.85714286
B123: Sector Ferroviaria y la Florestal | C123: 00°15'48.00''S | D123: 78°30'25.00''W | E123: Quito | F123: 3179 | H123: 6.12244898 | I123: 10.04464286 | J123: 10.04 | K123: 10.04 | L123: 16.29464286
B124: Cerro Condorcocha | C124: 00°02'19.10''S | D124: 78°30'41.00''W | E124: Quito | F124: 3586 | H124: 3.06122449 | I124: 18.75 | J124: 0 | K124: 0 | L124: 18.75
B125: Cerro San Francisco | C125: 00°23'24.89''S | D125: 78°37'06.79''W | E125: Mejía | F125: 4097 | H125: 0 | I125: 0 | J125: 0 | K125: 0 | L125: 0
B126: Cerro Tinajero | C126: 00°22'53.08''S | D126: 78°36'36.19''W | E126: Mejía | F126: 4082 | H126: 0 | I126: 0 | J126: 0 | K126: 0 | L126: 0
B127: Cerro La Viudita | C127: 00°24'50.70''S | D127: 78°36'27.00''W | E127: Mejía | F127: 3751 | H127: 0 | I127: 0 | J127: 0 | K127: 0 | L127: 0
B128: Cerro Hacda El Rosario | C128: 00°26'14.60''S | D128: 78°32'12.50''W | E128: Mejía | F128: 2981 | H128: 5.102040816 | I128: 13.16964286 | J128: 0 | K128: 0 | L128: 13.16964286
B129: Cerro Atacazo Alto | C129: 00°21'22.20''S | D129: 78°37'09.10''W | E129: Quito | F129: 4474 | H129: 0 | I129: 0 | J129: 0 | K129: 0 | L129: 0
B130: Cerro Atacazo Bajo | C130: 00°19'05.10''S | D130: 78°36'08.10''W | E130: Quito | F130: 3893 | H130: 0 | I130: 0 | J130: 0 | K130: 0 | L130: 0
B131: Cerro Pichincha | C131: 00°09'57.03''S | D131: 78°31'39.19''W | E131: Quito | F131: 3901 | H131: 16.32653061 | I131: 35.71428571 | J131: 16.29 | K131: 16.29 | L131: 0
B132: Cerro Capáes | C132: 02°12'32.40''S | D132: 80°51'47.50''W | E132: Santa Elena | F132: 102 | H132: 0 | I132: 0 | J132: 0 | K132: 0 | L132: 0
B133: Cerro Bijagual | C133: 00°39'28.70''S | D133: 79°17'41.00''W | E133: Sto Domingo | F133: 798 | H133: 10.20408163 | I133: 39.50892857 | J133: 39.51 | K133: 39.51 | L133: 51.78571429
B134: Cerro Bomboli | C134: 00°14'48.20''S | D134: 79°11'31.30''W | E134: Sto Domingo | F134: 636 | H134: 37.75510204 | I134: 83.92857143 | J134: 70.31 | K134: 70.31 | L134: 70.3125
B135: Cerro Chiguilpe Alto | C135: 00°17'44.70''S | D135: 79°05'12.10''W | E135: Sto Domingo | F135: 1172 | H135: 0 | I135: 0 | J135: 0 | K135: 0 | L135: 0
B136: Cerro Chiguilpe Bajo | C136: 00°16'51.30''S | D136: 79°05'26.40''W | E136: Sto Domingo | F136: 801 | H136: 0 | I136: 0 | J136: 0 | K136: 0 | L136: 0
B137: Cerro San Luis | C137: 00°35'10.70''S | D137: 79°19'18.80''W | E137: Sto Domingo | F137: 412 | H137: 0 | I137: 0 | J137: 0 | K137: 0 | L137: 0
B138: Cerro Bermejo | C138: 00°08'09.10''N | D138: 77°19'39.90''W | E138: Cascales | F138: 994 | H138: 0 | I138: 0 | J138: 0 | K138: 0 | L138: 0
B139: Cerro Reventador | C139: 00°02'33.90''S | D139: 77°31'44.10''W | E139: Gonzalo Pizarro | F139: 1600 | H139: 5.102040816 | I139: 0 | J139: 13.17 | K139: 13.17 | L139: 0
B140: Cerro Niton | C140: 01°16'41.60''S | D140: 78°32'10.20''W | E140: San Pedro de Pelileo | F140: 3079 | H140: 0 | I140: 0 | J140: 0 | K140: 0 | L140: 0
B141: Cerro Pilisurco o Saguatoa | C141: 01°09'17.20''S | D141: 78°39'58.00''W | E141: Ambato | F141: 4154 | H141: 0 | I141: 0 | J141: 0 | K141: 0 | L141: 0
B142: Cerro Salvación (Lligua) | C142: 01°22'44.90''S | D142: 78°26'11.80''W | E142: Baños | F142: 2696 | H142: 0 | I142: 0 | J142: 0 | K142: 0 | L142: 0
B143: Llantantoma | C143: 01°09'56.40''S | D143: 78°37'53.90''W | E143: Ambato | F143: 3450 | H143: 0 | I143: 0 | J143: 0 | K143: 0 | L143: 0

Sheet 3800-4200 MHz
C3: Espectro Radioeléctrico
C5: Comparativo anual - Porcentajes de ocupación del espectro radioeléctrico por sitios en la banda 5 925 - 6 425 MHz
C8: Fecha de publicación: 20 de enero de 2015
B12: ='1427-1525 MHz'!B12 -> Nombre | C12: Latitud | D12: Longitud | E12: Cantón | F12: Hsnm(m) | G12: Gráficos | H12: 2014
H13: Ocupacion (%)
B14: Barabon | C14: 02°53'34.40''S | D14: 79°05'15.10''W | E14: Cuenca | F14: 3351 | H14: 0
B15: Cerro Cahuazhun | C15: 02°52'33.40''S | D15: 78°49'01.60''W | E15: Gualaceo | F15: 2999 | H15: 0
B16: Cerro Cochapamba | C16: 02°47'41.10''S | D16: 79°25'39.10''W | E16: Cuenca | F16: 3714 | H16: 0
B17: Cerro Guagualzhumi | C17: 02°53'32.50''S | D17: 78°54'39.60''W | E17: Cuenca | F17: 3079 | H17: 0
B18: Cerro Guallil | C18: 03°04'30.90''S | D18: 78°48'58.70''W | E18: Sigsig | F18: 3284 | H18: 0
B19: Cerro Hito Cruz | C19: 02°55'51.50''S | D19: 78°59'51.70''W | E19: Cuenca | F19: 2847 | H19: 33.33333333
B20: Cerro Rayoloma | C20: 02°54'13.00''S | D20: 78°57'59.20''W | E20: Cuenca | F20: 2649 | H20: 0
B21: Cerro Rumiloma (Amopungo - Señor Pungo) | C21: 02°48'19.00''S | D21: 78°49'19.30''W | E21: Paute | F21: 3175 | H21: 100
B22: Cerro Turi | C22: 02°55'22.90''S | D22: 79°00'32.80''W | E22: Cuenca | F22: 2730 | H22: 0
B23: Sector Nero - Zhuzhun | C23: 02°56'48.30''S | D23: 79°03'46.20''W | E23: Cuenca | F23: 2932 | H23: 0
B24: Tipoloma Alto | C24: 03°08'13.20''S | D24: 79°05'09.70''W | E24: Girón | F24: 3177 | H24: 100
B25: Tipoloma Bajo | C25: 03°07'41.50''S | D25: 79°05'17.90''W | E25: Girón | F25: 3086 | H25: 0
B26: Cerro Paredones | C26: 02°44'38.30''S | D26: 79°26'26.60''W | E26: Cuenca | F26: 3668 | H26: 0
B27: Cuchilla de Paredones | C27: 02°44'10.70''S | D27: 79°26'43.10''W | E27: Cuenca | F27: 3311 | H27: 0
B28: Bilovan | C28: 01°48'09.10''S | D28: 79°06'17.20''W | E28: San Miguel | F28: 2662 | H28: 0
B29: Cerro Capadia Alto | C29: 01°25'24.20''S | D29: 78°57'01.10''W | E29: Guaranda | F29: 4460 | H29: 0
B30: Cerro Capadia Chico | C30: 01°25'54.10''S | D30: 78°56'19.70''W | E30: Guaranda | F30: 4384 | H30: 66.66666667
B31: Cerro de la Cocha | C31: 01°50'38.90''S | D31: 79°09'52.80''W | E31: San Miguel | F31: 2496 | H31: 0
B32: Cerro Ilambulo | C32: 01°42'18.60''S | D32: 79°05'32.60''W | E32: San Miguel | F32: 3213 | H32: 0
B33: Cerro Pucará | C33: 01°39'04.50''S | D33: 79°06'10.70''W | E33: Chimbo | F33: 3063 | H33: 0
B34: Cochambamba (Chuchi) | C34: 01°41'56.20''S | D34: 79°06'20.60''W | E34: San Miguel | F34: 3072 | H34: 0
B35: Cochabamba (Tundaloma) | C35: 01°41'35.30''S | D35: 79°06'28.20''W | E35: San Miguel | F35: 3018 | H35: 0
B36: Loma de Lourdes | C36: 01°42'19.70''S | D36: 79°04'49.20''W | E36: San Miguel | F36: 3281 | H36: 0
B37: Loma Susanga | C37: 01°40'23.00''S | D37: 79°01'08.80''W | E37: Chimbo | F37: 2879 | H37: 0
B38: Padre Urcu | C38: 01°42'21.80''S | D38: 79°05'45.70''W | E38: San Miguel | F38: 3181 | H38: 0
B39: Tiuguinal | C39: 01°22'00.30''S | D39: 79°00'25.10''W | E39: Guaranda | F39: 4126 | H39: 0
B40: Biblian (Sagrado Corazón) | C40: 02°43'07.70''S | D40: 78°52'53.40''W | E40: Biblián | F40: 2878 | H40: 0
B41: Cerro Altar Urcu | C41: 02°28'48.90''S | D41: 78°59'36.30''W | E41: Cañar | F41: 3215 | H41: 33.33333333
B42: Cerro Buerán | C42: 02°36'31.10''S | D42: 78°55'50.90''W | E42: Biblián | F42: 3816 | H42: 100
B43: Cerro Buerán(Tierras Negras) | C43: 02°35'59.40''S | D43: 78°55'44.40''W | E43: Biblián | F43: 3828 | H43: 100
B44: Cerro Carshao | C44: 02°26'23.20''S | D44: 78°57'03.80''W | E44: Cañar | F44: 4017 | H44: 100
B45: Cerro Carshao Bajo | C45: 02°26'08.10''S | D45: 78°56'52.20''W | E45: Cañar | F45: 4003 | H45: 100
B46: Cerro Cojitambo | C46: 02°45'40.70''S | D46: 78°53'16.40''W | E46: Azoguez | F46: 3106 | H46: 0
B47: Cerro Villaflor | C47: 02°49'44.60''S | D47: 78°48'12.30''W | E47: Azoguez | F47: 3042 | H47: 0
B48: Cerro Troya | C48: 00°44'24.50''N | D48: 77°41'48.70''W | E48: Tulcán | F48: 3529 | H48: 100
B49: Cerro Troya Bajo | C49: 00°44'09.50''N | D49: 77°42'22.80''W | E49: Tulcán | F49: 3418 | H49: 0
B50: Cerro Cabras | C50: 00°28'15.00''N | D50: 77°57'50.70''W | E50: Bolívar | F50: 2904 | H50: 100
B51: Cerro Chiles Alto | C51: 00°35'14.40''N | D51: 77°51'04.00''W | E51: Montúfar | F51: 3093 | H51: 0
B52: Agua Santa | C52: 01°41'46.80''S | D52: 78°39'59.80''W | E52: Riobamba | F52: 3006 | H52: 0
B53: Cerro Amula Rayoloma | C53: 01°41'22.10''S | D53: 78°43'45.70''W | E53: Colta | F53: 3485 | H53: 0
B54: Cerro Gatazo Grande | C54: 01°39'41.30''S | D54: 78°45'00.80''W | E54: Colta | F54: 3188 | H54: 0
B55: Cerro Higno Cacha | C55: 01°41'31.90''S | D55: 78°42'58.60''W | E55: Riobamba | F55: 3567 | H55: 0
B56: Cerro La Mira | C56: 01°30'32.70''S | D56: 78°35'05.20''W | E56: Guano | F56: 3881 | H56: 100
B57: Cerro La Mira (Senincahuan) | C57: 01°41'31.90''S | D57: 78°42'58.60''W | E57: Riobamba | F57: 3947 | H57: 0
B58: Cerro Achayandi | C58: 00°57'07.70''S | D58: 78°55'32.90''W | E58: Pujulí | F58: 4102 | H58: 0
B59: Cerro Apagua | C59: 00°58'32.00''S | D59: 78°56'58.00''W | E59: Pujulí | F59: 4032 | H59: 0
B60: Cerro Putzalagua | C60: 00°57'56.00''S | D60: 78°33'42.70''W | E60: Latacunga | F60: 3531 | H60: 0
B61: Chasqui | C61: 00°37'15.30''S | D61: 78°35'37.20''W | E61: Latacunga | F61: 3532 | H61: 100
B62: Cerro Chilla | C62: 03°29'09.70''S | D62: 79°36'04.70''W | E62: Chilla | F62: 3450 | H62: 0
B63: Cerro Chilola | C63: 03°30'00.90''S | D63: 79°37'52.50''W | E63: Chilla | F63: 3596 | H63: 0
B64: Cerro El Trigal | C64: 03°41'23.20''S | D64: 79°39'33.90''W | E64: Piñas | F64: 1292 | H64: 0
B65: Cerro Guirillio | C65: 03°09'57.50''S | D65: 79°36'20.40''W | E65: El Guabo | F65: 3192 | H65: 0
B66: Cerro La Chuva | C66: 03°43'03.00''S | D66: 79°39'11.30''W | E66: Piñas | F66: 1282 | H66: 0
B67: Cerro Repen | C67: 03°33'01.80''S | D67: 79°41'02.70''W | E67: Atahualpa | F67: 2369 | H67: 0
B68: Cerro Balao (Esmeraldas) | C68: 00°57'41.30''N | D68: 79°41'25.70''W | E68: Esmeraldas | F68: 192 | H68: 0
B69: Cerro Don Juan | C69: 00°50'51.20''N | D69: 79°53'52.40''W | E69: Atacames | F69: 262 | H69: 0
B70: Cerro Gatazo | C70: 00°56'38.40''N | D70: 79°39'29.70''W | E70: Esmeraldas | F70: 271 | H70: 0
B71: Cerro La Juanita | C71: 00°28'02.20''N | D71: 79°34'40.50''W | E71: Quinindé | F71: 502 | H71: 0
B72: Cerro Zapallo | C72: 00°53'05.30''N | D72: 79°31'52.20''W | E72: Esmeraldas | F72: 690 | H72: 0
B73: Cerro Animas | C73: 02°28'28.20''S | D73: 80°28'03.40''W | E73: Guayaquil | F73: 427 | H73: 16.66666667
B74: Cerro Azul | C74: 02°09'57.40''S | D74: 79°57'24.80''W | E74: Guayaquil | F74: 324 | H74: 100
B75: Cerro Azul Alto (507) | C75: 02°09'05.10''S | D75: 79°59'01.80''W | E75: Guayaquil | F75: 398 | H75: 0
B76: Cerro Balao | C76: 02°45'58.90''S | D76: 79°39'52.90''W | E76: Naranjal | F76: 490 | H76: 33.33333333
B77: Cerro Bellavista | C77: 02°10'57.10''S | D77: 79°54'51.30''W | E77: Guayaquil | F77: 100 | H77: 0
B78: Cerro El Carmen | C78: 02°10'47.60''S | D78: 79°52'50.00''W | E78: Guayaquil | F78: 80 | H78: 0
B79: Cerro González | C79: 02°20'57.30''S | D79: 80°32'36.70''W | E79: Guayaquil | F79: 296 | H79: 100
B80: Cerro Mapasingue | C80: 02°08'49.80''S | D80: 79°55'40.80''W | E80: Guayaquil | F80: 120 | H80: 0
B81: Cerro San Eduardo | C81: 02°10'28.00''S | D81: 79°55'07.30''W | E81: Guayaquil | F81: 160 | H81: 0
B82: Cerro Santa Ana | C82: 01°55'45.30''S | D82: 79°45'50.10''W | E82: San Borondón | F82: 300 | H82: 100
B83: Cerro Tanzarte (Cruz Loma) | C83: 02°45'17.90''S | D83: 79°23'59.80''W | E83: Naranjal | F83: 2894 | H83: 0
B84: Cerro Blanco | C84: 00°12'33.70''N | D84: 78°20'16.40''W | E84: Otavalo | F84: 3545 | H84: 100
B85: Cerro Cotacachi | C85: 00°19'57.30''N | D85: 78°20'24.60''W | E85: Cotacachi | F85: 4047 | H85: 16.66666667
B86: Cerro Calvario (Loja) | C86: 04°02'47.00''S | D86: 79°39'05.80''W | E86: Paltas | F86: 1935 | H86: 0
B87: Cerro Colambo | C87: 04°14'14.60''S | D87: 79°23'45.40''W | E87: Gonzanamá | F87: 3103 | H87: 100
B88: Cerro Guachaurco | C88: 04°02'11.70''S | D88: 79°52'19.40''W | E88: Paltas | F88: 3102 | H88: 0
B89: Cerro Guanchuro | C89: 04°04'28.80''S | D89: 79°38'54.90''W | E89: Paltas | F89: 2446 | H89: 0
B90: Cerro Huanchinchambo | C90: 04°01'25.20''S | D90: 79°14'45.90''W | E90: Catamayo | F90: 2849 | H90: 100
B91: Cerro Motilon | C91: 04°04'57.10''S | D91: 79°56'22.20''W | E91: Celica | F91: 2663 | H91: 0
B92: Cerro Ventanas | C92: 04°01'54.10''S | D92: 79°14'39.00''W | E92: Catamayo | F92: 2870 | H92: 100
B93: Cerro Villonaco Alto | C93: 03°59'18.70''S | D93: 79°16'06.30''W | E93: Catamayo | F93: 2952 | H93: 0
B94: Pucará | C94: 04°05'47.80''S | D94: 79°56'17.70''W | E94: Celica | F94: 2479 | H94: 0
B95: Saraguro | C95: 03°37'55.20''S | D95: 79°14'37.50''W | E95: Saraguro | F95: 2740 | H95: 0
B96: Cerro Corozo | C96: 01°29'23.10''S | D96: 80°31'27.00''W | E96: Jipijapa | F96: 774 | H96: 100
B97: Cerro de Hojas | C97: 01°02'40.10''S | D97: 80°32'38.50''W | E97: Portoviejo | F97: 674 | H97: 100
B98: Cerro Guayas | C98: 00°41'18.10''S | D98: 80°05'27.90''W | E98: Chone | F98: 128 | H98: 0
B99: Cerro Jama 1 | C99: 00°12'29.40''S | D99: 80°16'08.70''W | E99: Jama | F99: 93 | H99: 0
B100: Cerro Jama 2 | C100: 00°12'58.90''S | D100: 80°16'44.50''W | E100: Jama | F100: 140 | H100: 0
B101: Cerro La Crespa | C101: 00°20'07.10''S | D101: 79°45'34.70''W | E101: Flavio Alfaro | F101: 480 | H101: 66.66666667
B102: Cerro Nueve | C102: 00°16'05.30''S | D102: 80°12'29.90''W | E102: Jama | F102: 652 | H102: 66.66666667
B103: Cerro Puerto Alto | C103: 00°21'36.30''S | D103: 79°52'00.40''W | E103: Flavio Alfaro | F103: 410 | H103: 0
B104: Loma de Viento | C104: 00°42'28.10''S | D104: 80°24'28.80''W | E104: Sucre | F104: 402 | H104: 33.33333333
B105: Mirador de Bahía de Caráquez | C105: 00°36'28.00''S | D105: 80°25'34.70''W | E105: Sucre | F105: 102 | H105: 0
B106: Cerro Bosco | C106: 03°00'01.00''S | D106: 78°30'34.90''W | E106: Limón Indanza | F106: 2404 | H106: 0
B107: Cerro Quilamo | C107: 02°18'14.40''S | D107: 78°08'26.80''W | E107: Morona | F107: 1461 | H107: 0
B108: Cerro Condijua | C108: 00°29'01.60''S | D108: 77°54'06.90''W | E108: Quijos | F108: 2526 | H108: 33.33333333
B109: Cerro Huacamayos | C109: 00°37'26.06''S | D109: 77°50'28.60''W | E109: Archidona | F109: 2300 | H109: 0
B110: Cerro Tres Cruces | C110: 00°16'22.60''S | D110: 77°45'53.80''W | E110: El Chaco | F110: 1980 | H110: 0
B111: Papallacta | C111: 00°22'43.70''S | D111: 78°08'48.60''W | E111: Quijos | F111: 3373 | H111: 0
B112: Cerro Lumbaqui Alto | C112: 00°00'30.40''N | D112: 77°19'15.80''W | E112: Orellana | F112: 1088 | H112: 0
B113: Cerro Lumbaqui Bajo | C113: 00°01'47.70''N | D113: 77°19'07.90''W | E113: Orellana | F113: 998 | H113: 0
B114: Cerro Abitagua | C114: 01°24'53.90''S | D114: 78°08'31.00''W | E114: Mera | F114: 2250 | H114: 66.66666667
B115: Cerro Calvario | C115: 01°31'14.30''S | D115: 77°54'28.50''W | E115: Pastaza | F115: 1171 | H115: 33.33333333
B116: Santa Clara(Km.35 Vía Puyo - Tena) | C116: 01°17'29.30''S | D116: 77°52'36.80''W | E116: Santa Clara | F116: 1080 | H116: 66.66666667
B117: Cerro Cayambe | C117: 00°03'58.00''N | D117: 77°59'25.80''W | E117: Cayambe | F117: 4216 | H117: 0
B118: Cerro Cruz Loma | C118: 00°11'17.50''S | D118: 78°32'06.70''W | E118: Quito | F118: 3990 | H118: 50
B119: Cerro Ilumbisi | C119: 00°13'40.60''S | D119: 78°28'25.70''W | E119: Quito | F119: 3040 | H119: 0
B120: Cerro La Virgen | C120: 00°19'06.90''S | D120: 78°11'27.60''W | E120: Quito | F120: 4412 | H120: 33.33333333
B121: Cerro Puengasí | C121: 00°14'43.40''S | D121: 78°29'59.70''W | E121: Quito | F121: 3085 | H121: 0
B122: Mojanda | C122: 00°04'47.30''N | D122: 78°13'43.20''W | E122: Pedro Moncayo | F122: 3241 | H122: 0
B123: Sector Ferroviaria y la Florestal | C123: 00°15'48.00''S | D123: 78°30'25.00''W | E123: Quito | F123: 3179 | H123: 33.33333333
B124: Cerro Condorcocha | C124: 00°02'19.10''S | D124: 78°30'41.00''W | E124: Quito | F124: 3586 | H124: 0
B125: Cerro San Francisco | C125: 00°23'24.89''S | D125: 78°37'06.79''W | E125: Mejía | F125: 4097 | H125: 0
B126: Cerro Tinajero | C126: 00°22'53.08''S | D126: 78°36'36.19''W | E126: Mejía | F126: 4082 | H126: 0
B127: Cerro La Viudita | C127: 00°24'50.70''S | D127: 78°36'27.00''W | E127: Mejía | F127: 3751 | H127: 0
B128: Cerro Hacda El Rosario | C128: 00°26'14.60''S | D128: 78°32'12.50''W | E128: Mejía | F128: 2981 | H128: 0
B129: Cerro Atacazo Alto | C129: 00°21'22.20''S | D129: 78°37'09.10''W | E129: Quito | F129: 4474 | H129: 0
B130: Cerro Atacazo Bajo | C130: 00°19'05.10''S | D130: 78°36'08.10''W | E130: Quito | F130: 3893 | H130: 66.66666667
B131: Cerro Pichincha | C131: 00°09'57.03''S | D131: 78°31'39.19''W | E131: Quito | F131: 3901 | H131: 16.66666667
B132: Cerro Capáes | C132: 02°12'32.40''S | D132: 80°51'47.50''W | E132: Santa Elena | F132: 102 | H132: 16.66666667
B133: Cerro Bijagual | C133: 00°39'28.70''S | D133: 79°17'41.00''W | E133: Sto Domingo | F133: 798 | H133: 0
B134: Cerro Bomboli | C134: 00°14'48.20''S | D134: 79°11'31.30''W | E134: Sto Domingo | F134: 636 | H134: 0
B135: Cerro Chiguilpe Alto | C135: 00°17'44.70''S | D135: 79°05'12.10''W | E135: Sto Domingo | F135: 1172 | H135: 66.66666667
B136: Cerro Chiguilpe Bajo | C136: 00°16'51.30''S | D136: 79°05'26.40''W | E136: Sto Domingo | F136: 801 | H136: 0
B137: Cerro San Luis | C137: 00°35'10.70''S | D137: 79°19'18.80''W | E137: Sto Domingo | F137: 412 | H137: 33.33333333
B138: Cerro Bermejo | C138: 00°08'09.10''N | D138: 77°19'39.90''W | E138: Cascales | F138: 994 | H138: 0
B139: Cerro Reventador | C139: 00°02'33.90''S | D139: 77°31'44.10''W | E139: Gonzalo Pizarro | F139: 1600 | H139: 33.33333333
B140: Cerro Niton | C140: 01°16'41.60''S | D140: 78°32'10.20''W | E140: San Pedro de Pelileo | F140: 3079 | H140: 0
B141: Cerro Pilisurco o Saguatoa | C141: 01°09'17.20''S | D141: 78°39'58.00''W | E141: Ambato | F141: 4154 | H141: 50
B142: Cerro Salvación (Lligua) | C142: 01°22'44.90''S | D142: 78°26'11.80''W | E142: Baños | F142: 2696 | H142: 33.33333333
B143: Llantantoma | C143: 01°09'56.40''S | D143: 78°37'53.90''W | E143: Ambato | F143: 3450 | H143: 0

Sheet 5925-6425 MHz
C4: Espectro Radioeléctrico
C5: Comparativo anual - Porcentajes de ocupación del espectro radioeléctrico por sitios en la banda 5 925 - 6 425 MHz
C8: Fecha de publicación: 20 de enero de 2015
B12: ='1427-1525 MHz'!B12 -> Nombre | C12: Latitud | D12: Longitud | E12: Cantón | F12: Hsnm(m) | G12: Gráficos | H12: 2010 | I12: 2011 | J12: 2012 | K12: 2013 | L12: 2014
H13: Ocupacion (%) | I13: Ocupacion (%) | J13: Ocupacion (%) | K13: Ocupacion (%) | L13: Ocupacion (%)
B14: Barabon | C14: 02°53'34.40''S | D14: 79°05'15.10''W | E14: Cuenca | F14: 3351 | H14: 0 | I14: 0 | J14: 0 | K14: 0 | L14: 0
B15: Cerro Cahuazhun | C15: 02°52'33.40''S | D15: 78°49'01.60''W | E15: Gualaceo | F15: 2999 | H15: 0 | I15: 0 | J15: 25 | K15: 0 | L15: 0
B16: Cerro Cochapamba | C16: 02°47'41.10''S | D16: 79°25'39.10''W | E16: Cuenca | F16: 3714 | H16: 0 | I16: 0 | J16: 50 | K16: 0 | L16: 0
B17: Cerro Guagualzhumi | C17: 02°53'32.50''S | D17: 78°54'39.60''W | E17: Cuenca | F17: 3079 | H17: 12.8971922 | I17: 12.5 | J17: 100 | K17: 12.5 | L17: 12.5
B18: Cerro Guallil | C18: 03°04'30.90''S | D18: 78°48'58.70''W | E18: Sigsig | F18: 3284 | H18: 0 | I18: 0 | J18: 37.5 | K18: 25 | L18: 25
B19: Cerro Hito Cruz | C19: 02°55'51.50''S | D19: 78°59'51.70''W | E19: Cuenca | F19: 2847 | H19: 22.57008634 | I19: 25 | J19: 100 | K19: 25 | L19: 37.5
B20: Cerro Rayoloma | C20: 02°54'13.00''S | D20: 78°57'59.20''W | E20: Cuenca | F20: 2649 | H20: 0 | I20: 0 | J20: 0 | K20: 0 | L20: 0
B21: Cerro Rumiloma (Amopungo - Señor Pungo) | C21: 02°48'19.00''S | D21: 78°49'19.30''W | E21: Paute | F21: 3175 | H21: 58.080863 | I21: 62.5 | J21: 62.5 | K21: 87.5 | L21: 87.5
B22: Cerro Turi | C22: 02°55'22.90''S | D22: 79°00'32.80''W | E22: Cuenca | F22: 2730 | H22: 0 | I22: 0 | J22: 50 | K22: 0 | L22: 0
B23: Sector Nero - Zhuzhun | C23: 02°56'48.30''S | D23: 79°03'46.20''W | E23: Cuenca | F23: 2932 | H23: 0 | I23: 0 | J23: 75 | K23: 0 | L23: 0
B24: Tipoloma Alto | C24: 03°08'13.20''S | D24: 79°05'09.70''W | E24: Girón | F24: 3177 | H24: 48.36447074 | I24: 50 | J24: 87.5 | K24: 87.5 | L24: 75
B25: Tipoloma Bajo | C25: 03°07'41.50''S | D25: 79°05'17.90''W | E25: Girón | F25: 3086 | H25: 0 | I25: 0 | J25: 100 | K25: 0 | L25: 0
B26: Cerro Paredones | C26: 02°44'38.30''S | D26: 79°26'26.60''W | E26: Cuenca | F26: 3668 | H26: -1.421085472e-14 | I26: 12.5 | J26: 12.5 | K26: 0 | L26: 0
B27: Cuchilla de Paredones | C27: 02°44'10.70''S | D27: 79°26'43.10''W | E27: Cuenca | F27: 3311 | H27: 0 | I27: 0 | J27: 100 | K27: 25 | L27: 25
B28: Bilovan | C28: 01°48'09.10''S | D28: 79°06'17.20''W | E28: San Miguel | F28: 2662 | H28: 0 | I28: 0 | J28: 0 | K28: 0 | L28: 0
B29: Cerro Capadia Alto | C29: 01°25'24.20''S | D29: 78°57'01.10''W | E29: Guaranda | F29: 4460 | H29: 0 | I29: 0 | J29: 87.5 | K29: 0 | L29: 0
B30: Cerro Capadia Chico | C30: 01°25'54.10''S | D30: 78°56'19.70''W | E30: Guaranda | F30: 4384 | H30: 48.36447074 | I30: 50 | J30: 62.5 | K30: 75 | L30: 87.5
B31: Cerro de la Cocha | C31: 01°50'38.90''S | D31: 79°09'52.80''W | E31: San Miguel | F31: 2496 | H31: 0 | I31: 0 | J31: 0 | K31: 0 | L31: 0
B32: Cerro Ilambulo | C32: 01°42'18.60''S | D32: 79°05'32.60''W | E32: San Miguel | F32: 3213 | H32: 0 | I32: 0 | J32: 0 | K32: 12.5 | L32: 0
B33: Cerro Pucará | C33: 01°39'04.50''S | D33: 79°06'10.70''W | E33: Chimbo | F33: 3063 | H33: 0 | I33: 0 | J33: 25 | K33: 0 | L33: 0
B34: Cochambamba (Chuchi) | C34: 01°41'56.20''S | D34: 79°06'20.60''W | E34: San Miguel | F34: 3072 | H34: 12.8971922 | I34: 12.5 | J34: 0 | K34: 62.5 | L34: 62.5
B35: Cochabamba (Tundaloma) | C35: 01°41'35.30''S | D35: 79°06'28.20''W | E35: San Miguel | F35: 3018 | H35: 12.8971922 | I35: 12.5 | J35: 0 | K35: 62.5 | L35: 62.5
B36: Loma de Lourdes | C36: 01°42'19.70''S | D36: 79°04'49.20''W | E36: San Miguel | F36: 3281 | H36: 0 | I36: 0 | J36: 25 | K36: 0 | L36: 25
B37: Loma Susanga | C37: 01°40'23.00''S | D37: 79°01'08.80''W | E37: Chimbo | F37: 2879 | H37: 0 | I37: 0 | J37: 0 | K37: 0 | L37: 0
B38: Padre Urcu | C38: 01°42'21.80''S | D38: 79°05'45.70''W | E38: San Miguel | F38: 3181 | H38: 0 | I38: 0 | J38: 25 | K38: 12.5 | L38: 0
B39: Tiuguinal | C39: 01°22'00.30''S | D39: 79°00'25.10''W | E39: Guaranda | F39: 4126 | H39: 0 | I39: 0 | J39: 100 | K39: 37.5 | L39: 37.5
B40: Biblian (Sagrado Corazón) | C40: 02°43'07.70''S | D40: 78°52'53.40''W | E40: Biblián | F40: 2878 | H40: 0 | I40: 0 | J40: 0 | K40: 0 | L40: 0
B41: Cerro Altar Urcu | C41: 02°28'48.90''S | D41: 78°59'36.30''W | E41: Cañar | F41: 3215 | H41: 96.77243959 | I41: 100 | J41: 25 | K41: 100 | L41: 87.5
B42: Cerro Buerán | C42: 02°36'31.10''S | D42: 78°55'50.90''W | E42: Biblián | F42: 3816 | H42: 48.36447074 | I42: 87.5 | J42: 37.5 | K42: 75 | L42: 87.5
B43: Cerro Buerán(Tierras Negras) | C43: 02°35'59.40''S | D43: 78°55'44.40''W | E43: Biblián | F43: 3828 | H43: 35.46727854 | I43: 75 | J43: 100 | K43: 62.5 | L43: 75
B44: Cerro Carshao | C44: 02°26'23.20''S | D44: 78°57'03.80''W | E44: Cañar | F44: 4017 | H44: 45.18367081 | I44: 50 | J44: 50 | K44: 75 | L44: 87.5
B45: Cerro Carshao Bajo | C45: 02°26'08.10''S | D45: 78°56'52.20''W | E45: Cañar | F45: 4003 | H45: 45.18367081 | I45: 50 | J45: 0 | K45: 75 | L45: 87.5
B46: Cerro Cojitambo | C46: 02°45'40.70''S | D46: 78°53'16.40''W | E46: Azoguez | F46: 3106 | H46: 0 | I46: 0 | J46: 0 | K46: 0 | L46: 0
B47: Cerro Villaflor | C47: 02°49'44.60''S | D47: 78°48'12.30''W | E47: Azoguez | F47: 3042 | H47: 0 | I47: 0 | J47: 0 | K47: 0 | L47: 0
B48: Cerro Troya | C48: 00°44'24.50''N | D48: 77°41'48.70''W | E48: Tulcán | F48: 3529 | H48: 45.18367081 | I48: 62.5 | J48: 100 | K48: 75 | L48: 75
B49: Cerro Troya Bajo | C49: 00°44'09.50''N | D49: 77°42'22.80''W | E49: Tulcán | F49: 3418 | H49: 0 | I49: 0 | J49: 37.5 | K49: 0 | L49: 0
B50: Cerro Cabras | C50: 00°28'15.00''N | D50: 77°57'50.70''W | E50: Bolívar | F50: 2904 | H50: 83.8752474 | I50: 87.5 | J50: 100 | K50: 100 | L50: 100
B51: Cerro Chiles Alto | C51: 00°35'14.40''N | D51: 77°51'04.00''W | E51: Montúfar | F51: 3093 | H51: 0 | I51: 0 | J51: 87.5 | K51: 0 | L51: 0
B52: Agua Santa | C52: 01°41'46.80''S | D52: 78°39'59.80''W | E52: Riobamba | F52: 3006 | H52: 0 | I52: 0 | J52: 0 | K52: 0 | L52: 12.5
B53: Cerro Amula Rayoloma | C53: 01°41'22.10''S | D53: 78°43'45.70''W | E53: Colta | F53: 3485 | H53: 0 | I53: 0 | J53: 0 | K53: 0 | L53: 0
B54: Cerro Gatazo Grande | C54: 01°39'41.30''S | D54: 78°45'00.80''W | E54: Colta | F54: 3188 | H54: 0 | I54: 0 | J54: 0 | K54: 0 | L54: 0
B55: Cerro Higno Cacha | C55: 01°41'31.90''S | D55: 78°42'58.60''W | E55: Riobamba | F55: 3567 | H55: -1.421085472e-14 | I55: 12.5 | J55: 0 | K55: 0 | L55: 0
B56: Cerro La Mira | C56: 01°30'32.70''S | D56: 78°35'05.20''W | E56: Guano | F56: 3881 | H56: 83.8752474 | I56: 100 | J56: 100 | K56: 100 | L56: 37.5
B57: Cerro La Mira (Senincahuan) | C57: 01°41'31.90''S | D57: 78°42'58.60''W | E57: Riobamba | F57: 3947 | H57: -1.421085472e-14 | I57: 12.5 | J57: 0 | K57: 0 | L57: 0
B58: Cerro Achayandi | C58: 00°57'07.70''S | D58: 78°55'32.90''W | E58: Pujulí | F58: 4102 | H58: -1.421085472e-14 | I58: 25 | J58: 0 | K58: 0 | L58: 0
B59: Cerro Apagua | C59: 00°58'32.00''S | D59: 78°56'58.00''W | E59: Pujulí | F59: 4032 | H59: 0 | I59: 0 | J59: 0 | K59: 0 | L59: 0
B60: Cerro Putzalagua | C60: 00°57'56.00''S | D60: 78°33'42.70''W | E60: Latacunga | F60: 3531 | H60: 9.672894147 | I60: 12.5 | J60: 12.5 | K60: 12.5 | L60: 12.5
B61: Chasqui | C61: 00°37'15.30''S | D61: 78°35'37.20''W | E61: Latacunga | F61: 3532 | H61: 96.77243959 | I61: 100 | J61: 100 | K61: 100 | L61: 100
B62: Cerro Chilla | C62: 03°29'09.70''S | D62: 79°36'04.70''W | E62: Chilla | F62: 3450 | H62: 0 | I62: 0 | J62: 12.5 | K62: 12.5 | L62: 0
B63: Cerro Chilola | C63: 03°30'00.90''S | D63: 79°37'52.50''W | E63: Chilla | F63: 3596 | H63: -1.421085472e-14 | I63: 37.5 | J63: 87.5 | K63: 87.5 | L63: 50
B64: Cerro El Trigal | C64: 03°41'23.20''S | D64: 79°39'33.90''W | E64: Piñas | F64: 1292 | H64: 0 | I64: 0 | J64: 0 | K64: 0 | L64: 0
B65: Cerro Guirillio | C65: 03°09'57.50''S | D65: 79°36'20.40''W | E65: El Guabo | F65: 3192 | H65: 0 | I65: 0 | J65: 0 | K65: 0 | L65: 0
B66: Cerro La Chuva | C66: 03°43'03.00''S | D66: 79°39'11.30''W | E66: Piñas | F66: 1282 | H66: 0 | I66: 0 | J66: 0 | K66: 0 | L66: 0
B67: Cerro Repen | C67: 03°33'01.80''S | D67: 79°41'02.70''W | E67: Atahualpa | F67: 2369 | H67: 25.79438439 | I67: 25 | J67: 25 | K67: 25 | L67: 37.5
B68: Cerro Balao (Esmeraldas) | C68: 00°57'41.30''N | D68: 79°41'25.70''W | E68: Esmeraldas | F68: 192 | H68: 0 | I68: 12.5 | J68: 12.5 | K68: 12.5 | L68: 12.5
B69: Cerro Don Juan | C69: 00°50'51.20''N | D69: 79°53'52.40''W | E69: Atacames | F69: 262 | H69: 35.51077666 | I69: 50 | J69: 50 | K69: 50 | L69: 50
B70: Cerro Gatazo | C70: 00°56'38.40''N | D70: 79°39'29.70''W | E70: Esmeraldas | F70: 271 | H70: 74.20235325 | I70: 87.5 | J70: 100 | K70: 100 | L70: 100
B71: Cerro La Juanita | C71: 00°28'02.20''N | D71: 79°34'40.50''W | E71: Quinindé | F71: 502 | H71: 70.9780552 | I71: 100 | J71: 100 | K71: 100 | L71: 87.5
B72: Cerro Zapallo | C72: 00°53'05.30''N | D72: 79°31'52.20''W | E72: Esmeraldas | F72: 690 | H72: 48.36447074 | I72: 100 | J72: 100 | K72: 100 | L72: 100
B73: Cerro Animas | C73: 02°28'28.20''S | D73: 80°28'03.40''W | E73: Guayaquil | F73: 427 | H73: -1.421085472e-14 | I73: 25 | J73: 37.5 | K73: 37.5 | L73: 0
B74: Cerro Azul | C74: 02°09'57.40''S | D74: 79°57'24.80''W | E74: Guayaquil | F74: 324 | H74: 58.080863 | I74: 100 | J74: 100 | K74: 100 | L74: 100
B75: Cerro Azul Alto (507) | C75: 02°09'05.10''S | D75: 79°59'01.80''W | E75: Guayaquil | F75: 398 | H75: 0 | I75: 0 | J75: 0 | K75: 0 | L75: 0
B76: Cerro Balao | C76: 02°45'58.90''S | D76: 79°39'52.90''W | E76: Naranjal | F76: 490 | H76: 25.79438439 | I76: 25 | J76: 12.5 | K76: 12.5 | L76: 0
B77: Cerro Bellavista | C77: 02°10'57.10''S | D77: 79°54'51.30''W | E77: Guayaquil | F77: 100 | H77: 0 | I77: 0 | J77: 0 | K77: 0 | L77: 0
B78: Cerro El Carmen | C78: 02°10'47.60''S | D78: 79°52'50.00''W | E78: Guayaquil | F78: 80 | H78: 0 | I78: 0 | J78: 50 | K78: 50 | L78: 62.5
B79: Cerro González | C79: 02°20'57.30''S | D79: 80°32'36.70''W | E79: Guayaquil | F79: 296 | H79: 96.77243959 | I79: 100 | J79: 100 | K79: 100 | L79: 62.5
B80: Cerro Mapasingue | C80: 02°08'49.80''S | D80: 79°55'40.80''W | E80: Guayaquil | F80: 120 | H80: 0 | I80: 0 | J80: 0 | K80: 0 | L80: 0
B81: Cerro San Eduardo | C81: 02°10'28.00''S | D81: 79°55'07.30''W | E81: Guayaquil | F81: 160 | H81: 0 | I81: 0 | J81: 0 | K81: 0 | L81: 0
B82: Cerro Santa Ana | C82: 01°55'45.30''S | D82: 79°45'50.10''W | E82: San Borondón | F82: 300 | H82: 48.40796886 | I82: 50 | J82: 50 | K82: 50 | L82: 50
B83: Cerro Tanzarte (Cruz Loma) | C83: 02°45'17.90''S | D83: 79°23'59.80''W | E83: Naranjal | F83: 2894 | H83: 0 | I83: 0 | J83: 0 | K83: 0 | L83: 0
B84: Cerro Blanco | C84: 00°12'33.70''N | D84: 78°20'16.40''W | E84: Otavalo | F84: 3545 | H84: 83.8752474 | I84: 100 | J84: 100 | K84: 25 | L84: 100
B85: Cerro Cotacachi | C85: 00°19'57.30''N | D85: 78°20'24.60''W | E85: Cotacachi | F85: 4047 | H85: 77.38315318 | I85: 100 | J85: 87.5 | K85: 87.5 | L85: 100
B86: Cerro Calvario (Loja) | C86: 04°02'47.00''S | D86: 79°39'05.80''W | E86: Paltas | F86: 1935 | H86: 0 | I86: 0 | J86: 0 | K86: 0 | L86: 0
B87: Cerro Colambo | C87: 04°14'14.60''S | D87: 79°23'45.40''W | E87: Gonzanamá | F87: 3103 | H87: 9.716392266 | I87: 12.5 | J87: 75 | K87: 87.5 | L87: 75
B88: Cerro Guachaurco | C88: 04°02'11.70''S | D88: 79°52'19.40''W | E88: Paltas | F88: 3102 | H88: 83.8752474 | I88: 100 | J88: 100 | K88: 100 | L88: 100
B89: Cerro Guanchuro | C89: 04°04'28.80''S | D89: 79°38'54.90''W | E89: Paltas | F89: 2446 | H89: 0 | I89: 0 | J89: 0 | K89: 0 | L89: 0
B90: Cerro Huanchinchambo | C90: 04°01'25.20''S | D90: 79°14'45.90''W | E90: Catamayo | F90: 2849 | H90: 32.28647861 | I90: 87.5 | J90: 100 | K90: 87.5 | L90: 87.5
B91: Cerro Motilon | C91: 04°04'57.10''S | D91: 79°56'22.20''W | E91: Celica | F91: 2663 | H91: -1.421085472e-14 | I91: 62.5 | J91: 0 | K91: 0 | L91: 0
B92: Cerro Ventanas | C92: 04°01'54.10''S | D92: 79°14'39.00''W | E92: Catamayo | F92: 2870 | H92: 32.28647861 | I92: 87.5 | J92: 100 | K92: 100 | L92: 87.5
B93: Cerro Villonaco Alto | C93: 03°59'18.70''S | D93: 79°16'06.30''W | E93: Catamayo | F93: 2952 | H93: -1.421085472e-14 | I93: 50 | J93: 0 | K93: 12.5 | L93: 0
B94: Pucará | C94: 04°05'47.80''S | D94: 79°56'17.70''W | E94: Celica | F94: 2479 | H94: 0 | I94: 0 | J94: 0 | K94: 0 | L94: 0
B95: Saraguro | C95: 03°37'55.20''S | D95: 79°14'37.50''W | E95: Saraguro | F95: 2740 | H95: 0 | I95: 0 | J95: 0 | K95: 0 | L95: 0
B96: Cerro Corozo | C96: 01°29'23.10''S | D96: 80°31'27.00''W | E96: Jipijapa | F96: 774 | H96: 48.36447074 | I96: 50 | J96: 62.5 | K96: 62.5 | L96: 62.5
B97: Cerro de Hojas | C97: 01°02'40.10''S | D97: 80°32'38.50''W | E97: Portoviejo | F97: 674 | H97: 70.9780552 | I97: 100 | J97: 100 | K97: 100 | L97: 87.5
B98: Cerro Guayas | C98: 00°41'18.10''S | D98: 80°05'27.90''W | E98: Chone | F98: 128 | H98: 22.61358446 | I98: 50 | J98: 62.5 | K98: 62.5 | L98: 0
B99: Cerro Jama 1 | C99: 00°12'29.40''S | D99: 80°16'08.70''W | E99: Jama | F99: 93 | H99: 0 | I99: 0 | J99: 0 | K99: 0 | L99: 0
B100: Cerro Jama 2 | C100: 00°12'58.90''S | D100: 80°16'44.50''W | E100: Jama | F100: 140 | H100: 0 | I100: 0 | J100: 0 | K100: 0 | L100: 0
B101: Cerro La Crespa | C101: 00°20'07.10''S | D101: 79°45'34.70''W | E101: Flavio Alfaro | F101: 480 | H101: 0 | I101: 0 | J101: 50 | K101: 50 | L101: 50
B102: Cerro Nueve | C102: 00°16'05.30''S | D102: 80°12'29.90''W | E102: Jama | F102: 652 | H102: 0 | I102: 0 | J102: 37.5 | K102: 62.5 | L102: 37.5
B103: Cerro Puerto Alto | C103: 00°21'36.30''S | D103: 79°52'00.40''W | E103: Flavio Alfaro | F103: 410 | H103: 0 | I103: 0 | J103: 0 | K103: 0 | L103: 0
B104: Loma de Viento | C104: 00°42'28.10''S | D104: 80°24'28.80''W | E104: Sucre | F104: 402 | H104: 22.61358446 | I104: 12.5 | J104: 12.5 | K104: 50 | L104: 25
B105: Mirador de Bahía de Caráquez | C105: 00°36'28.00''S | D105: 80°25'34.70''W | E105: Sucre | F105: 102 | H105: -1.421085472e-14 | I105: 12.5 | J105: 0 | K105: 0 | L105: 0
B106: Cerro Bosco | C106: 03°00'01.00''S | D106: 78°30'34.90''W | E106: Limón Indanza | F106: 2404 | H106: 22.57008634 | I106: 25 | J106: 25 | K106: 25 | L106: 37.5
B107: Cerro Quilamo | C107: 02°18'14.40''S | D107: 78°08'26.80''W | E107: Morona | F107: 1461 | H107: 48.36447074 | I107: 75 | J107: 50 | K107: 50 | L107: 62.5
B108: Cerro Condijua | C108: 00°29'01.60''S | D108: 77°54'06.90''W | E108: Quijos | F108: 2526 | H108: 96.77243959 | I108: 100 | J108: 100 | K108: 100 | L108: 100
B109: Cerro Huacamayos | C109: 00°37'26.06''S | D109: 77°50'28.60''W | E109: Archidona | F109: 2300 | H109: 38.69157659 | I109: 37.5 | J109: 37.5 | K109: 37.5 | L109: 37.5
B110: Cerro Tres Cruces | C110: 00°16'22.60''S | D110: 77°45'53.80''W | E110: El Chaco | F110: 1980 | H110: 96.77243959 | I110: 100 | J110: 100 | K110: 100 | L110: 100
B111: Papallacta | C111: 00°22'43.70''S | D111: 78°08'48.60''W | E111: Quijos | F111: 3373 | H111: 0 | I111: 0 | J111: 0 | K111: 0 | L111: 0
B112: Cerro Lumbaqui Alto | C112: 00°00'30.40''N | D112: 77°19'15.80''W | E112: Orellana | F112: 1088 | H112: 35.51077666 | I112: 75 | J112: 62.5 | K112: 62.5 | L112: 62.5
B113: Cerro Lumbaqui Bajo | C113: 00°01'47.70''N | D113: 77°19'07.90''W | E113: Orellana | F113: 998 | H113: 45.18367081 | I113: 50 | J113: 50 | K113: 50 | L113: 50
B114: Cerro Abitagua | C114: 01°24'53.90''S | D114: 78°08'31.00''W | E114: Mera | F114: 2250 | H114: 70.9780552 | I114: 100 | J114: 75 | K114: 75 | L114: 50
B115: Cerro Calvario | C115: 01°31'14.30''S | D115: 77°54'28.50''W | E115: Pastaza | F115: 1171 | H115: 87.09954544 | I115: 87.5 | J115: 87.5 | K115: 87.5 | L115: 100
B116: Santa Clara(Km.35 Vía Puyo - Tena) | C116: 01°17'29.30''S | D116: 77°52'36.80''W | E116: Santa Clara | F116: 1080 | H116: 90.32384349 | I116: 100 | J116: 100 | K116: 100 | L116: 100
B117: Cerro Cayambe | C117: 00°03'58.00''N | D117: 77°59'25.80''W | E117: Cayambe | F117: 4216 | H117: 12.8971922 | I117: 12.5 | J117: 12.5 | K117: 12.5 | L117: 12.5
B118: Cerro Cruz Loma | C118: 00°11'17.50''S | D118: 78°32'06.70''W | E118: Quito | F118: 3990 | H118: 96.77243959 | I118: 100 | J118: 100 | K118: 100 | L118: 100
B119: Cerro Ilumbisi | C119: 00°13'40.60''S | D119: 78°28'25.70''W | E119: Quito | F119: 3040 | H119: 0 | I119: 0 | J119: 0 | K119: 0 | L119: 0
B120: Cerro La Virgen | C120: 00°19'06.90''S | D120: 78°11'27.60''W | E120: Quito | F120: 4412 | H120: 96.77243959 | I120: 100 | J120: 87.5 | K120: 87.5 | L120: 100
B121: Cerro Puengasí | C121: 00°14'43.40''S | D121: 78°29'59.70''W | E121: Quito | F121: 3085 | H121: 64.48596098 | I121: 75 | J121: 62.5 | K121: 62.5 | L121: 62.5
B122: Mojanda | C122: 00°04'47.30''N | D122: 78°13'43.20''W | E122: Pedro Moncayo | F122: 3241 | H122: 0 | I122: 0 | J122: 0 | K122: 0 | L122: 0
B123: Sector Ferroviaria y la Florestal | C123: 00°15'48.00''S | D123: 78°30'25.00''W | E123: Quito | F123: 3179 | H123: 0 | I123: 0 | J123: 0 | K123: 0 | L123: 0
B124: Cerro Condorcocha | C124: 00°02'19.10''S | D124: 78°30'41.00''W | E124: Quito | F124: 3586 | H124: 22.61358446 | I124: 37.5 | J124: 25 | K124: 25 | L124: 50
B125: Cerro San Francisco | C125: 00°23'24.89''S | D125: 78°37'06.79''W | E125: Mejía | F125: 4097 | H125: 0 | I125: 0 | J125: 0 | K125: 0 | L125: 0
B126: Cerro Tinajero | C126: 00°22'53.08''S | D126: 78°36'36.19''W | E126: Mejía | F126: 4082 | H126: 0 | I126: 0 | J126: 0 | K126: 0 | L126: 0
B127: Cerro La Viudita | C127: 00°24'50.70''S | D127: 78°36'27.00''W | E127: Mejía | F127: 3751 | H127: 22.61358446 | I127: 25 | J127: 25 | K127: 25 | L127: 37.5
B128: Cerro Hacda El Rosario | C128: 00°26'14.60''S | D128: 78°32'12.50''W | E128: Mejía | F128: 2981 | H128: 0 | I128: 0 | J128: 0 | K128: 0 | L128: 0
B129: Cerro Atacazo Alto | C129: 00°21'22.20''S | D129: 78°37'09.10''W | E129: Quito | F129: 4474 | H129: 0 | I129: 0 | J129: 25 | K129: 25 | L129: 25
B130: Cerro Atacazo Bajo | C130: 00°19'05.10''S | D130: 78°36'08.10''W | E130: Quito | F130: 3893 | H130: 96.77243959 | I130: 100 | J130: 100 | K130: 100 | L130: 75
B131: Cerro Pichincha | C131: 00°09'57.03''S | D131: 78°31'39.19''W | E131: Quito | F131: 3901 | H131: -1.421085472e-14 | I131: 12.5 | J131: 0 | K131: 0 | L131: 0
B132: Cerro Capáes | C132: 02°12'32.40''S | D132: 80°51'47.50''W | E132: Santa Elena | F132: 102 | H132: 48.40796886 | I132: 25 | J132: 25 | K132: 25 | L132: 0
B133: Cerro Bijagual | C133: 00°39'28.70''S | D133: 79°17'41.00''W | E133: Sto Domingo | F133: 798 | H133: 0 | I133: 0 | J133: 37.5 | K133: 37.5 | L133: 37.5
B134: Cerro Bomboli | C134: 00°14'48.20''S | D134: 79°11'31.30''W | E134: Sto Domingo | F134: 636 | H134: 61.26166293 | I134: 87.5 | J134: 100 | K134: 100 | L134: 62.5
B135: Cerro Chiguilpe Alto | C135: 00°17'44.70''S | D135: 79°05'12.10''W | E135: Sto Domingo | F135: 1172 | H135: 48.40796886 | I135: 50 | J135: 50 | K135: 50 | L135: 50
B136: Cerro Chiguilpe Bajo | C136: 00°16'51.30''S | D136: 79°05'26.40''W | E136: Sto Domingo | F136: 801 | H136: 0 | I136: 0 | J136: 0 | K136: 0 | L136: 0
B137: Cerro San Luis | C137: 00°35'10.70''S | D137: 79°19'18.80''W | E137: Sto Domingo | F137: 412 | H137: 0 | I137: 0 | J137: 0 | K137: 0 | L137: 0
B138: Cerro Bermejo | C138: 00°08'09.10''N | D138: 77°19'39.90''W | E138: Cascales | F138: 994 | H138: 0 | I138: 0 | J138: 0 | K138: 0 | L138: 0
B139: Cerro Reventador | C139: 00°02'33.90''S | D139: 77°31'44.10''W | E139: Gonzalo Pizarro | F139: 1600 | H139: 96.77243959 | I139: 100 | J139: 100 | K139: 100 | L139: 100
B140: Cerro Niton | C140: 01°16'41.60''S | D140: 78°32'10.20''W | E140: San Pedro de Pelileo | F140: 3079 | H140: 0 | I140: 0 | J140: 0 | K140: 37.5 | L140: 62.5
B141: Cerro Pilisurco o Saguatoa | C141: 01°09'17.20''S | D141: 78°39'58.00''W | E141: Ambato | F141: 4154 | H141: 96.77243959 | I141: 100 | J141: 100 | K141: 100 | L141: 100
B142: Cerro Salvación (Lligua) | C142: 01°22'44.90''S | D142: 78°26'11.80''W | E142: Baños | F142: 2696 | H142: 70.9780552 | I142: 75 | J142: 87.5 | K142: 87.5 | L142: 62.5
B143: Llantantoma | C143: 01°09'56.40''S | D143: 78°37'53.90''W | E143: Ambato | F143: 3450 | H143: 0 | I143: 0 | J143: 0 | K143: 0 | L143: 0

Sheet 7125-8500 MHz
C3: Espectro Radioeléctrico
C5: Comparativo anual - Porcentajes de ocupación del espectro radioeléctrico por sitios en la banda 7 125 - 6 425 MHz
C7: Fecha de publicación: 20 de enero de 2015
B11: Nombre | C11: Latitud | D11: Longitud | E11: Cantón | F11: Hsnm(m) | G11: Gráficos | H11: 2010 | I11: 2011 | J11: 2012 | K11: 2013 | L11: 2014
H12: Ocupacion (%) | I12: Ocupacion (%) | J12: Ocupacion (%) | K12: Ocupacion (%) | L12: Ocupacion (%)
B13: Barabon | C13: 02°53'34.40''S | D13: 79°05'15.10''W | E13: Cuenca | F13: 3351 | H13: 0 | I13: 0 | J13: 0 | K13: 0 | L13: 0
B14: Cerro Cahuazhun | C14: 02°52'33.40''S | D14: 78°49'01.60''W | E14: Gualaceo | F14: 2999 | H14: 0 | I14: 0 | J14: 0 | K14: 0 | L14: 0
B15: Cerro Cochapamba | C15: 02°47'41.10''S | D15: 79°25'39.10''W | E15: Cuenca | F15: 3714 | H15: 0 | I15: 0 | J15: 0 | K15: 0 | L15: 0
B16: Cerro Guagualzhumi | C16: 02°53'32.50''S | D16: 78°54'39.60''W | E16: Cuenca | F16: 3079 | H16: 0 | I16: 0 | J16: 13.78 | K16: 13.78 | L16: 33.65384615
B17: Cerro Guallil | C17: 03°04'30.90''S | D17: 78°48'58.70''W | E17: Sigsig | F17: 3284 | H17: 30.68115413 | I17: 77.56410256 | J17: 95.19 | K17: 95.19 | L17: 89.74358974
B18: Cerro Hito Cruz | C18: 02°55'51.50''S | D18: 78°59'51.70''W | E18: Cuenca | F18: 2847 | H18: 64.67962016 | I18: 99.35897436 | J18: 98.08 | K18: 98.08 | L18: 98.71794872
B19: Cerro Rayoloma | C19: 02°54'13.00''S | D19: 78°57'59.20''W | E19: Cuenca | F19: 2649 | H19: 0 | I19: 0 | J19: 0 | K19: 0 | L19: 0
B20: Cerro Rumiloma (Amopungo - Señor Pungo) | C20: 02°48'19.00''S | D20: 78°49'19.30''W | E20: Paute | F20: 3175 | H20: 36.27465303 | I20: 72.11538462 | J20: 83.33 | K20: 83.33 | L20: 87.5
B21: Cerro Turi | C21: 02°55'22.90''S | D21: 79°00'32.80''W | E21: Cuenca | F21: 2730 | H21: 2.045288532 | I21: 20.51282051 | J21: 20.51 | K21: 20.51 | L21: 12.82051282
B22: Sector Nero - Zhuzhun | C22: 02°56'48.30''S | D22: 79°03'46.20''W | E22: Cuenca | F22: 2932 | H22: 8.42220599 | I22: 25 | J22: 25 | K22: 25 | L22: 29.48717949
B23: Tipoloma Alto | C23: 03°08'13.20''S | D23: 79°05'09.70''W | E23: Girón | F23: 3177 | H23: 60.56756757 | I23: 92.62820513 | J23: 85.26 | K23: 85.26 | L23: 84.61538462
B24: Tipoloma Bajo | C24: 03°07'41.50''S | D24: 79°05'17.90''W | E24: Girón | F24: 3086 | H24: 2.045288532 | I24: 10.25641026 | J24: 19.55 | K24: 19.55 | L24: 6.730769231
B25: Cerro Paredones | C25: 02°44'38.30''S | D25: 79°26'26.60''W | E25: Cuenca | F25: 3668 | H25: 0 | I25: 10.25641026 | J25: 10.26 | K25: 10.26 | L25: 0
B26: Cuchilla de Paredones | C26: 02°44'10.70''S | D26: 79°26'43.10''W | E26: Cuenca | F26: 3311 | H26: 0 | I26: 0 | J26: 0 | K26: 0 | L26: 0
B27: Bilovan | C27: 01°48'09.10''S | D27: 79°06'17.20''W | E27: San Miguel | F27: 2662 | H27: 0 | I27: 0 | J27: 0 | K27: 0 | L27: 0
B28: Cerro Capadia Alto | C28: 01°25'24.20''S | D28: 78°57'01.10''W | E28: Guaranda | F28: 4460 | H28: 5.113221329 | I28: 17.94871795 | J28: 6.73 | K28: 6.73 | L28: 6.730769231
B29: Cerro Capadia Chico | C29: 01°25'54.10''S | D29: 78°56'19.70''W | E29: Guaranda | F29: 4384 | H29: 52.24835646 | I29: 82.69230769 | J29: 85.58 | K29: 86.54 | L29: 85.8974359
B30: Cerro de la Cocha | C30: 01°50'38.90''S | D30: 79°09'52.80''W | E30: San Miguel | F30: 2496 | H30: 0 | I30: 0 | J30: 0 | K30: 0 | L30: 0
B31: Cerro Ilambulo | C31: 01°42'18.60''S | D31: 79°05'32.60''W | E31: San Miguel | F31: 3213 | H31: 10.22644266 | I31: 26.6025641 | J31: 18.59 | K31: 18.59 | L31: 19.87179487
B32: Cerro Pucará | C32: 01°39'04.50''S | D32: 79°06'10.70''W | E32: Chimbo | F32: 3063 | H32: 0 | I32: 0 | J32: 0 | K32: 0 | L32: 0
B33: Cochambamba (Chuchi) | C33: 01°41'56.20''S | D33: 79°06'20.60''W | E33: San Miguel | F33: 3072 | H33: 4.090577064 | I33: 16.02564103 | J33: 26.6 | K33: 26.6 | L33: 26.6025641
B34: Cochabamba (Tundaloma) | C34: 01°41'35.30''S | D34: 79°06'28.20''W | E34: San Miguel | F34: 3018 | H34: 4.090577064 | I34: 16.02564103 | J34: 26.6 | K34: 26.6 | L34: 26.6025641
B35: Loma de Lourdes | C35: 01°42'19.70''S | D35: 79°04'49.20''W | E35: San Miguel | F35: 3281 | H35: 0 | I35: 0 | J35: 13.46 | K35: 13.46 | L35: 20.51282051
B36: Loma Susanga | C36: 01°40'23.00''S | D36: 79°01'08.80''W | E36: Chimbo | F36: 2879 | H36: 2.045288532 | I36: 4.166666667 | J36: 4.17 | K36: 4.17 | L36: 0
B37: Padre Urcu | C37: 01°42'21.80''S | D37: 79°05'45.70''W | E37: San Miguel | F37: 3181 | H37: 10.22644266 | I37: 26.6025641 | J37: 18.59 | K37: 18.59 | L37: 19.87179487
B38: Tiuguinal | C38: 01°22'00.30''S | D38: 79°00'25.10''W | E38: Guaranda | F38: 4126 | H38: 0 | I38: 0 | J38: 0 | K38: 0 | L38: 0
B39: Biblian (Sagrado Corazón) | C39: 02°43'07.70''S | D39: 78°52'53.40''W | E39: Biblián | F39: 2878 | H39: 4.090577064 | I39: 23.07692308 | J39: 23.08 | K39: 23.08 | L39: 25.64102564
B40: Cerro Altar Urcu | C40: 02°28'48.90''S | D40: 78°59'36.30''W | E40: Cañar | F40: 3215 | H40: 20.02644266 | I40: 36.85897436 | J40: 34.29 | K40: 34.29 | L40: 52.88461538
B41: Cerro Buerán | C41: 02°36'31.10''S | D41: 78°55'50.90''W | E41: Biblián | F41: 3816 | H41: 77.83674215 | I41: 99.67948718 | J41: 93.27 | K41: 93.27 | L41: 99.03846154
B42: Cerro Buerán(Tierras Negras) | C42: 02°35'59.40''S | D42: 78°55'44.40''W | E42: Biblián | F42: 3828 | H42: 53.80168006 | I42: 87.17948718 | J42: 81.09 | K42: 81.09 | L42: 87.5
B43: Cerro Carshao | C43: 02°26'23.20''S | D43: 78°57'03.80''W | E43: Cañar | F43: 4017 | H43: 75.14170928 | I43: 97.11538462 | J43: 97.44 | K43: 97.44 | L43: 98.07692308
B44: Cerro Carshao Bajo | C44: 02°26'08.10''S | D44: 78°56'52.20''W | E44: Cañar | F44: 4003 | H44: 75.14170928 | I44: 97.11538462 | J44: 97.44 | K44: 97.44 | L44: 98.07692308
B45: Cerro Cojitambo | C45: 02°45'40.70''S | D45: 78°53'16.40''W | E45: Azoguez | F45: 3106 | H45: 0 | I45: 0 | J45: 0 | K45: 0 | L45: 0
B46: Cerro Villaflor | C46: 02°49'44.60''S | D46: 78°48'12.30''W | E46: Azoguez | F46: 3042 | H46: 17.89627465 | I46: 36.21794872 | J46: 49.36 | K46: 49.36 | L46: 44.55128205
B47: Cerro Troya | C47: 00°44'24.50''N | D47: 77°41'48.70''W | E47: Tulcán | F47: 3529 | H47: 50.5606282 | I47: 82.37179487 | J47: 91.35 | K47: 92.31 | L47: 94.87179487
B48: Cerro Troya Bajo | C48: 00°44'09.50''N | D48: 77°42'22.80''W | E48: Tulcán | F48: 3418 | H48: 2.045288532 | I48: 15.06410256 | J48: 25.32 | K48: 13.46 | L48: 0
B49: Cerro Cabras | C49: 00°28'15.00''N | D49: 77°57'50.70''W | E49: Bolívar | F49: 2904 | H49: 26.917458 | I49: 68.26923077 | J49: 76.6 | K49: 76.6 | L49: 83.33333333
B50: Cerro Chiles Alto | C50: 00°35'14.40''N | D50: 77°51'04.00''W | E50: Montúfar | F50: 3093 | H50: 0 | I50: 0 | J50: 0 | K50: 0 | L50: 0
B51: Agua Santa | C51: 01°41'46.80''S | D51: 78°39'59.80''W | E51: Riobamba | F51: 3006 | H51: 25.04207451 | I51: 46.79487179 | J51: 64.1 | K51: 64.1 | L51: 66.34615385
B52: Cerro Amula Rayoloma | C52: 01°41'22.10''S | D52: 78°43'45.70''W | E52: Colta | F52: 3485 | H52: 0 | I52: 0 | J52: 0 | K52: 0 | L52: 0
B53: Cerro Gatazo Grande | C53: 01°39'41.30''S | D53: 78°45'00.80''W | E53: Colta | F53: 3188 | H53: 6.135865595 | I53: 16.66666667 | J53: 16.67 | K53: 16.67 | L53: 16.66666667
B54: Cerro Higno Cacha | C54: 01°41'31.90''S | D54: 78°42'58.60''W | E54: Riobamba | F54: 3567 | H54: 4.090577064 | I54: 19.87179487 | J54: 19.87 | K54: 19.87 | L54: 19.87179487
B55: Cerro La Mira | C55: 01°30'32.70''S | D55: 78°35'05.20''W | E55: Guano | F55: 3881 | H55: 87.02790358 | I55: 100 | J55: 100 | K55: 100 | L55: 100
B56: Cerro La Mira (Senincahuan) | C56: 01°41'31.90''S | D56: 78°42'58.60''W | E56: Riobamba | F56: 3947 | H56: 4.090577064 | I56: 19.87179487 | J56: 19.87 | K56: 19.87 | L56: 19.87179487
B57: Cerro Achayandi | C57: 00°57'07.70''S | D57: 78°55'32.90''W | E57: Pujulí | F57: 4102 | H57: 20.45288532 | I57: 44.87179487 | J57: 47.44 | K57: 56.73 | L57: 51.6025641
B58: Cerro Apagua | C58: 00°58'32.00''S | D58: 78°56'58.00''W | E58: Pujulí | F58: 4032 | H58: 0 | I58: 0 | J58: 0 | K58: 0 | L58: 0
B59: Cerro Putzalagua | C59: 00°57'56.00''S | D59: 78°33'42.70''W | E59: Latacunga | F59: 3531 | H59: 50.24733382 | I59: 88.46153846 | J59: 83.01 | K59: 83.01 | L59: 79.16666667
B60: Chasqui | C60: 00°37'15.30''S | D60: 78°35'37.20''W | E60: Latacunga | F60: 3532 | H60: 61.10233747 | I60: 75.32051282 | J60: 65.06 | K60: 65.06 | L60: 83.97435897
B61: Cerro Chilla | C61: 03°29'09.70''S | D61: 79°36'04.70''W | E61: Chilla | F61: 3450 | H61: 0 | I61: 0 | J61: 0 | K61: 0 | L61: 0
B62: Cerro Chilola | C62: 03°30'00.90''S | D62: 79°37'52.50''W | E62: Chilla | F62: 3596 | H62: 28.07582177 | I62: 75 | J62: 79.49 | K62: 79.49 | L62: 89.42307692
B63: Cerro El Trigal | C63: 03°41'23.20''S | D63: 79°39'33.90''W | E63: Piñas | F63: 1292 | H63: 16.36230825 | I63: 35.25641026 | J63: 31.41 | K63: 31.41 | L63: 36.21794872
B64: Cerro Guirillio | C64: 03°09'57.50''S | D64: 79°36'20.40''W | E64: El Guabo | F64: 3192 | H64: 0 | I64: 0 | J64: 0 | K64: 0 | L64: 0
B65: Cerro La Chuva | C65: 03°43'03.00''S | D65: 79°39'11.30''W | E65: Piñas | F65: 1282 | H65: 16.10664719 | I65: 57.05128205 | J65: 60.58 | K65: 60.58 | L65: 63.46153846
B66: Cerro Repen | C66: 03°33'01.80''S | D66: 79°41'02.70''W | E66: Atahualpa | F66: 2369 | H66: 20.42366691 | I66: 39.1025641 | J66: 39.1 | K66: 50.32 | L66: 53.84615385
B67: Cerro Balao (Esmeraldas) | C67: 00°57'41.30''N | D67: 79°41'25.70''W | E67: Esmeraldas | F67: 192 | H67: 0 | I67: 0 | J67: 0 | K67: 0 | L67: 0
B68: Cerro Don Juan | C68: 00°50'51.20''N | D68: 79°53'52.40''W | E68: Atacames | F68: 262 | H68: 17.45799854 | I68: 25 | J68: 39.74 | K68: 39.74 | L68: 38.78205128
B69: Cerro Gatazo | C69: 00°56'38.40''N | D69: 79°39'29.70''W | E69: Esmeraldas | F69: 271 | H69: 49.78889701 | I69: 69.55128205 | J69: 68.27 | K69: 68.27 | L69: 61.21794872
B70: Cerro La Juanita | C70: 00°28'02.20''N | D70: 79°34'40.50''W | E70: Quinindé | F70: 502 | H70: 60.44835646 | I70: 91.66666667 | J70: 94.23 | K70: 94.23 | L70: 92.30769231
B71: Cerro Zapallo | C71: 00°53'05.30''N | D71: 79°31'52.20''W | E71: Esmeraldas | F71: 690 | H71: 82.10138787 | I71: 100 | J71: 96.79 | K71: 96.79 | L71: 95.83333333
B72: Cerro Animas | C72: 02°28'28.20''S | D72: 80°28'03.40''W | E72: Guayaquil | F72: 427 | H72: 36.34404675 | I72: 70.19230769 | J72: 66.67 | K72: 66.67 | L72: 84.61538462
B73: Cerro Azul | C73: 02°09'57.40''S | D73: 79°57'24.80''W | E73: Guayaquil | F73: 324 | H73: 73.45471147 | I73: 98.3974359 | J73: 98.4 | K73: 98.72 | L73: 98.3974359
B74: Cerro Azul Alto (507) | C74: 02°09'05.10''S | D74: 79°59'01.80''W | E74: Guayaquil | F74: 398 | H74: 45.89992695 | I74: 75.32051282 | J74: 77.56 | K74: 77.56 | L74: 87.17948718
B75: Cerro Balao | C75: 02°45'58.90''S | D75: 79°39'52.90''W | E75: Naranjal | F75: 490 | H75: 79.31519357 | I75: 98.3974359 | J75: 98.08 | K75: 98.08 | L75: 96.15384615
B76: Cerro Bellavista | C76: 02°10'57.10''S | D76: 79°54'51.30''W | E76: Guayaquil | F76: 100 | H76: 4.090577064 | I76: 13.78205128 | J76: 2.56 | K76: 2.56 | L76: 0
B77: Cerro El Carmen | C77: 02°10'47.60''S | D77: 79°52'50.00''W | E77: Guayaquil | F77: 80 | H77: 77.19890431 | I77: 99.67948718 | J77: 93.59 | K77: 93.59 | L77: 89.42307692
B78: Cerro González | C78: 02°20'57.30''S | D78: 80°32'36.70''W | E78: Guayaquil | F78: 296 | H78: 57.57121987 | I78: 75.32051282 | J78: 71.15 | K78: 71.15 | L78: 71.15384615
B79: Cerro Mapasingue | C79: 02°08'49.80''S | D79: 79°55'40.80''W | E79: Guayaquil | F79: 120 | H79: 5.697589481 | I79: 33.97435897 | J79: 47.44 | K79: 47.44 | L79: 48.07692308
B80: Cerro San Eduardo | C80: 02°10'28.00''S | D80: 79°55'07.30''W | E80: Guayaquil | F80: 160 | H80: 14.90138787 | I80: 42.30769231 | J80: 18.59 | K80: 18.59 | L80: 16.02564103
B81: Cerro Santa Ana | C81: 01°55'45.30''S | D81: 79°45'50.10''W | E81: San Borondón | F81: 300 | H81: 70.00861943 | I81: 99.03846154 | J81: 95.51 | K81: 95.51 | L81: 83.97435897
B82: Cerro Tanzarte (Cruz Loma) | C82: 02°45'17.90''S | D82: 79°23'59.80''W | E82: Naranjal | F82: 2894 | H82: 1.022644266 | I82: 7.371794872 | J82: 14.42 | K82: 14.42 | L82: 11.53846154
B83: Cerro Blanco | C83: 00°12'33.70''N | D83: 78°20'16.40''W | E83: Otavalo | F83: 3545 | H83: 64.51643535 | I83: 98.07692308 | J83: 95.19 | K83: 55.13 | L83: 98.07692308
B84: Cerro Cotacachi | C84: 00°19'57.30''N | D84: 78°20'24.60''W | E84: Cotacachi | F84: 4047 | H84: 38.0788897 | I84: 61.85897436 | J84: 81.09 | K84: 81.09 | L84: 83.65384615
B85: Cerro Calvario (Loja) | C85: 04°02'47.00''S | D85: 79°39'05.80''W | E85: Paltas | F85: 1935 | H85: 5.113221329 | I85: 11.53846154 | J85: 14.74 | K85: 14.74 | L85: 9.935897436
B86: Cerro Colambo | C86: 04°14'14.60''S | D86: 79°23'45.40''W | E86: Gonzanamá | F86: 3103 | H86: 38.8604821 | I86: 95.19230769 | J86: 96.79 | K86: 96.79 | L86: 96.47435897
B87: Cerro Guachaurco | C87: 04°02'11.70''S | D87: 79°52'19.40''W | E87: Paltas | F87: 3102 | H87: 73.91665449 | I87: 99.67948718 | J87: 99.68 | K87: 99.68 | L87: 100
B88: Cerro Guanchuro | C88: 04°04'28.80''S | D88: 79°38'54.90''W | E88: Paltas | F88: 2446 | H88: 0 | I88: 0 | J88: 3.85 | K88: 3.85 | L88: 3.846153846
B89: Cerro Huanchinchambo | C89: 04°01'25.20''S | D89: 79°14'45.90''W | E89: Catamayo | F89: 2849 | H89: 64.44550767 | I89: 94.87179487 | J89: 89.74 | K89: 89.74 | L89: 95.51282051
B90: Cerro Motilon | C90: 04°04'57.10''S | D90: 79°56'22.20''W | E90: Celica | F90: 2663 | H90: 10.22644266 | I90: 29.80769231 | J90: 29.81 | K90: 29.81 | L90: 47.75641026
B91: Cerro Ventanas | C91: 04°01'54.10''S | D91: 79°14'39.00''W | E91: Catamayo | F91: 2870 | H91: 64.44550767 | I91: 94.87179487 | J91: 89.74 | K91: 89.74 | L91: 95.51282051
B92: Cerro Villonaco Alto | C92: 03°59'18.70''S | D92: 79°16'06.30''W | E92: Catamayo | F92: 2952 | H92: 13.29437546 | I92: 22.75641026 | J92: 50.96 | K92: 50.96 | L92: 59.29487179
B93: Pucará | C93: 04°05'47.80''S | D93: 79°56'17.70''W | E93: Celica | F93: 2479 | H93: 7.943389335 | I93: 25.64102564 | J93: 45.83 | K93: 45.83 | L93: 36.85897436
B94: Saraguro | C94: 03°37'55.20''S | D94: 79°14'37.50''W | E94: Saraguro | F94: 2740 | H94: 4.090577064 | I94: 9.615384615 | J94: 9.62 | K94: 9.62 | L94: 9.615384615
B95: Cerro Corozo | C95: 01°29'23.10''S | D95: 80°31'27.00''W | E95: Jipijapa | F95: 774 | H95: 69.40854638 | I95: 97.11538462 | J95: 95.51 | K95: 95.51 | L95: 98.3974359
B96: Cerro de Hojas | C96: 01°02'40.10''S | D96: 80°32'38.50''W | E96: Portoviejo | F96: 674 | H96: 78.60569759 | I96: 100 | J96: 100 | K96: 100 | L96: 100
B97: Cerro Guayas | C97: 00°41'18.10''S | D97: 80°05'27.90''W | E97: Chone | F97: 128 | H97: 11.76040906 | I97: 35.25641026 | J97: 41.35 | K97: 41.35 | L97: 41.34615385
B98: Cerro Jama 1 | C98: 00°12'29.40''S | D98: 80°16'08.70''W | E98: Jama | F98: 93 | H98: 0 | I98: 0 | J98: 8.65 | K98: 8.65 | L98: 8.653846154
B99: Cerro Jama 2 | C99: 00°12'58.90''S | D99: 80°16'44.50''W | E99: Jama | F99: 140 | H99: 10.22644266 | I99: 17.94871795 | J99: 17.95 | K99: 17.95 | L99: 17.94871795
B100: Cerro La Crespa | C100: 00°20'07.10''S | D100: 79°45'34.70''W | E100: Flavio Alfaro | F100: 480 | H100: 32.46544923 | I100: 53.52564103 | J100: 63.46 | K100: 63.46 | L100: 66.02564103
B101: Cerro Nueve | C101: 00°16'05.30''S | D101: 80°12'29.90''W | E101: Jama | F101: 652 | H101: 37.06734843 | I101: 76.28205128 | J101: 87.5 | K101: 87.5 | L101: 85.57692308
B102: Cerro Puerto Alto | C102: 00°21'36.30''S | D102: 79°52'00.40''W | E102: Flavio Alfaro | F102: 410 | H102: 13.29437546 | I102: 51.6025641 | J102: 51.6 | K102: 51.6 | L102: 49.67948718
B103: Loma de Viento | C103: 00°42'28.10''S | D103: 80°24'28.80''W | E103: Sucre | F103: 402 | H103: 48.3 | I103: 71.79487179 | J103: 81.73 | K103: 81.73 | L103: 77.88461538
B104: Mirador de Bahía de Caráquez | C104: 00°36'28.00''S | D104: 80°25'34.70''W | E104: Sucre | F104: 102 | H104: 7.158509861 | I104: 15.38461538 | J104: 15.38 | K104: 15.38 | L104: 15.06410256
B105: Cerro Bosco | C105: 03°00'01.00''S | D105: 78°30'34.90''W | E105: Limón Indanza | F105: 2404 | H105: 61.81154127 | I105: 86.85897436 | J105: 94.23 | K105: 94.23 | L105: 79.16666667
B106: Cerro Quilamo | C106: 02°18'14.40''S | D106: 78°08'26.80''W | E106: Morona | F106: 1461 | H106: 18.11541271 | I106: 33.33333333 | J106: 42.31 | K106: 42.31 | L106: 42.30769231
B107: Cerro Condijua | C107: 00°29'01.60''S | D107: 77°54'06.90''W | E107: Quijos | F107: 2526 | H107: 78.20737765 | I107: 98.3974359 | J107: 98.4 | K107: 98.4 | L107: 97.11538462
B108: Cerro Huacamayos | C108: 00°37'26.06''S | D108: 77°50'28.60''W | E108: Archidona | F108: 2300 | H108: 43.72023375 | I108: 76.92307692 | J108: 79.81 | K108: 79.81 | L108: 82.05128205
B109: Cerro Tres Cruces | C109: 00°16'22.60''S | D109: 77°45'53.80''W | E109: El Chaco | F109: 1980 | H109: 68.95726808 | I109: 89.42307692 | J109: 89.42 | K109: 89.42 | L109: 90.06410256
B110: Papallacta | C110: 00°22'43.70''S | D110: 78°08'48.60''W | E110: Quijos | F110: 3373 | H110: 3.067932798 | I110: 7.692307692 | J110: 7.69 | K110: 7.69 | L110: 7.692307692
B111: Cerro Lumbaqui Alto | C111: 00°00'30.40''N | D111: 77°19'15.80''W | E111: Orellana | F111: 1088 | H111: 60.33601169 | I111: 93.58974359 | J111: 93.27 | K111: 93.27 | L111: 98.07692308
B112: Cerro Lumbaqui Bajo | C112: 00°01'47.70''N | D112: 77°19'07.90''W | E112: Orellana | F112: 998 | H112: 22.85975164 | I112: 48.3974359 | J112: 54.17 | K112: 54.17 | L112: 57.69230769
B113: Cerro Abitagua | C113: 01°24'53.90''S | D113: 78°08'31.00''W | E113: Mera | F113: 2250 | H113: 54.5101534 | I113: 87.5 | J113: 89.1 | K113: 89.1 | L113: 89.42307692
B114: Cerro Calvario | C114: 01°31'14.30''S | D114: 77°54'28.50''W | E114: Pastaza | F114: 1171 | H114: 66.98319942 | I114: 96.79487179 | J114: 99.68 | K114: 99.68 | L114: 99.67948718
B115: Santa Clara(Km.35 Vía Puyo - Tena) | C115: 01°17'29.30''S | D115: 77°52'36.80''W | E115: Santa Clara | F115: 1080 | H115: 67.88626735 | I115: 94.87179487 | J115: 94.87 | K115: 94.87 | L115: 94.23076923
B116: Cerro Cayambe | C116: 00°03'58.00''N | D116: 77°59'25.80''W | E116: Cayambe | F116: 4216 | H116: 6.135865595 | I116: 6.41025641 | J116: 12.5 | K116: 39.74 | L116: 53.20512821
B117: Cerro Cruz Loma | C117: 00°11'17.50''S | D117: 78°32'06.70''W | E117: Quito | F117: 3990 | H117: 65.23338203 | I117: 98.07692308 | J117: 98.4 | K117: 98.4 | L117: 98.3974359
B118: Cerro Ilumbisi | C118: 00°13'40.60''S | D118: 78°28'25.70''W | E118: Quito | F118: 3040 | H118: 79.70197224 | I118: 98.71794872 | J118: 97.12 | K118: 96.47 | L118: 97.11538462
B119: Cerro La Virgen | C119: 00°19'06.90''S | D119: 78°11'27.60''W | E119: Quito | F119: 4412 | H119: 67.29218408 | I119: 86.85897436 | J119: 84.62 | K119: 84.62 | L119: 89.74358974
B120: Cerro Puengasí | C120: 00°14'43.40''S | D120: 78°29'59.70''W | E120: Quito | F120: 3085 | H120: 8.181154127 | I120: 15.70512821 | J120: 15.38 | K120: 15.38 | L120: 15.38461538
B121: Mojanda | C121: 00°04'47.30''N | D121: 78°13'43.20''W | E121: Pedro Moncayo | F121: 3241 | H121: 4.090577064 | I121: 16.02564103 | J121: 16.03 | K121: 16.03 | L121: 16.02564103
B122: Sector Ferroviaria y la Florestal | C122: 00°15'48.00''S | D122: 78°30'25.00''W | E122: Quito | F122: 3179 | H122: 53.03623083 | I122: 82.05128205 | J122: 82.05 | K122: 82.05 | L122: 85.25641026
B123: Cerro Condorcocha | C123: 00°02'19.10''S | D123: 78°30'41.00''W | E123: Quito | F123: 3586 | H123: 2.045288532 | I123: 15.38461538 | J123: 15.38 | K123: 15.38 | L123: 38.46153846
B124: Cerro San Francisco | C124: 00°23'24.89''S | D124: 78°37'06.79''W | E124: Mejía | F124: 4097 | H124: 0 | I124: 0 | J124: 0 | K124: 0 | L124: 0
B125: Cerro Tinajero | C125: 00°22'53.08''S | D125: 78°36'36.19''W | E125: Mejía | F125: 4082 | H125: 0 | I125: 0 | J125: 0 | K125: 0 | L125: 0
B126: Cerro La Viudita | C126: 00°24'50.70''S | D126: 78°36'27.00''W | E126: Mejía | F126: 3751 | H126: 6.135865595 | I126: 14.1025641 | J126: 12.5 | K126: 12.5 | L126: 12.5
B127: Cerro Hacda El Rosario | C127: 00°26'14.60''S | D127: 78°32'12.50''W | E127: Mejía | F127: 2981 | H127: 24.39737034 | I127: 60.57692308 | J127: 63.14 | K127: 63.14 | L127: 62.5
B128: Cerro Atacazo Alto | C128: 00°21'22.20''S | D128: 78°37'09.10''W | E128: Quito | F128: 4474 | H128: 0 | I128: 0 | J128: 0 | K128: 0 | L128: 0
B129: Cerro Atacazo Bajo | C129: 00°19'05.10''S | D129: 78°36'08.10''W | E129: Quito | F129: 3893 | H129: 65.14258583 | I129: 93.91025641 | J129: 96.47 | K129: 96.47 | L129: 97.75641026
B130: Cerro Pichincha | C130: 00°09'57.03''S | D130: 78°31'39.19''W | E130: Quito | F130: 3901 | H130: 30.44156318 | I130: 65.70512821 | J130: 49.68 | K130: 49.68 | L130: 68.58974359
B131: Cerro Capáes | C131: 02°12'32.40''S | D131: 80°51'47.50''W | E131: Santa Elena | F131: 102 | H131: 44.18407597 | I131: 60.25641026 | J131: 61.54 | K131: 63.46 | L131: 55.12820513
B132: Cerro Bijagual | C132: 00°39'28.70''S | D132: 79°17'41.00''W | E132: Sto Domingo | F132: 798 | H132: 26.51570489 | I132: 67.94871795 | J132: 75 | K132: 75 | L132: 70.83333333
B133: Cerro Bomboli | C133: 00°14'48.20''S | D133: 79°11'31.30''W | E133: Sto Domingo | F133: 636 | H133: 84.69758948 | I133: 100 | J133: 99.68 | K133: 100 | L133: 98.3974359
B134: Cerro Chiguilpe Alto | C134: 00°17'44.70''S | D134: 79°05'12.10''W | E134: Sto Domingo | F134: 1172 | H134: 71.1944485 | I134: 99.67948718 | J134: 99.68 | K134: 99.68 | L134: 75.64102564
B135: Cerro Chiguilpe Bajo | C135: 00°16'51.30''S | D135: 79°05'26.40''W | E135: Sto Domingo | F135: 801 | H135: 13.29437546 | I135: 52.56410256 | J135: 56.41 | K135: 56.41 | L135: 56.41025641
B136: Cerro San Luis | C136: 00°35'10.70''S | D136: 79°19'18.80''W | E136: Sto Domingo | F136: 412 | H136: 41.79145362 | I136: 49.67948718 | J136: 49.68 | K136: 49.68 | L136: 49.67948718
B137: Cerro Bermejo | C137: 00°08'09.10''N | D137: 77°19'39.90''W | E137: Cascales | F137: 994 | H137: 0 | I137: 0 | J137: 0 | K137: 0 | L137: 0
B138: Cerro Reventador | C138: 00°02'33.90''S | D138: 77°31'44.10''W | E138: Gonzalo Pizarro | F138: 1600 | H138: 79.84696859 | I138: 97.43589744 | J138: 96.79 | K138: 96.79 | L138: 93.58974359
B139: Cerro Niton | C139: 01°16'41.60''S | D139: 78°32'10.20''W | E139: San Pedro de Pelileo | F139: 3079 | H139: 9.203798393 | I139: 18.58974359 | J139: 29.49 | K139: 29.49 | L139: 29.80769231
B140: Cerro Pilisurco o Saguatoa | C140: 01°09'17.20''S | D140: 78°39'58.00''W | E140: Ambato | F140: 4154 | H140: 73.55953251 | I140: 98.3974359 | J140: 96.47 | K140: 96.47 | L140: 98.71794872
B141: Cerro Salvación (Lligua) | C141: 01°22'44.90''S | D141: 78°26'11.80''W | E141: Baños | F141: 2696 | H141: 37.02987582 | I141: 73.3974359 | J141: 73.4 | K141: 73.4 | L141: 78.52564103
B142: Llantantoma | C142: 01°09'56.40''S | D142: 78°37'53.90''W | E142: Ambato | F142: 3450 | H142: 0 | I142: 0 | J142: 0 | K142: 0 | L142: 0

Sheet 14400 - 15350 MHz
C3: Espectro Radioeléctrico
C5: Comparativo anual - Porcentajes de ocupación del espectro radioeléctrico por sitios en la banda 14 400 - 15 350 MHz
C7: Fecha de publicación: 20 de enero de 2015
B11: Nombre | C11: Latitud | D11: Longitud | E11: Cantón | F11: Hsnm(m) | G11: Gráficos | H11: 2010 | I11: 2011 | J11: 2012 | K11: 2013 | L11: 2014
H12: Ocupacion (%) | I12: Ocupacion (%) | J12: Ocupacion (%) | K12: Ocupacion (%) | L12: Ocupacion (%)
B13: Barabon | C13: 02°53'34.40''S | D13: 79°05'15.10''W | E13: Cuenca | F13: 3351 | H13: 0 | I13: 0 | J13: 34.56 | K13: 0 | L13: 0
B14: Cerro Cahuazhun | C14: 02°52'33.40''S | D14: 78°49'01.60''W | E14: Gualaceo | F14: 2999 | H14: 0 | I14: 0 | J14: 0 | K14: 0 | L14: 0
B15: Cerro Cochapamba | C15: 02°47'41.10''S | D15: 79°25'39.10''W | E15: Cuenca | F15: 3714 | H15: 0 | I15: 0 | J15: 30.41 | K15: 0 | L15: 0
B16: Cerro Guagualzhumi | C16: 02°53'32.50''S | D16: 78°54'39.60''W | E16: Cuenca | F16: 3079 | H16: 0 | I16: 0 | J16: 25.35 | K16: 12.44 | L16: 12.44
B17: Cerro Guallil | C17: 03°04'30.90''S | D17: 78°48'58.70''W | E17: Sigsig | F17: 3284 | H17: 2.975557917 | I17: 22.58064516 | J17: 0 | K17: 22.58 | L17: 34.56
B18: Cerro Hito Cruz | C18: 02°55'51.50''S | D18: 78°59'51.70''W | E18: Cuenca | F18: 2847 | H18: 69.92561105 | I18: 93.5483871 | J18: 0 | K18: 95.39 | L18: 95.85
B19: Cerro Rayoloma | C19: 02°54'13.00''S | D19: 78°57'59.20''W | E19: Cuenca | F19: 2649 | H19: 5.951115834 | I19: 11.52073733 | J19: 11.52 | K19: 11.52 | L19: 11.52
B20: Cerro Rumiloma (Amopungo - Señor Pungo) | C20: 02°48'19.00''S | D20: 78°49'19.30''W | E20: Paute | F20: 3175 | H20: 11.90223167 | I20: 31.33640553 | J20: 22.12 | K20: 37.79 | L20: 58.06
B21: Cerro Turi | C21: 02°55'22.90''S | D21: 79°00'32.80''W | E21: Cuenca | F21: 2730 | H21: 8.926673751 | I21: 17.51152074 | J21: 11.52 | K21: 17.51 | L21: 23.04
B22: Sector Nero - Zhuzhun | C22: 02°56'48.30''S | D22: 79°03'46.20''W | E22: Cuenca | F22: 2932 | H22: 0 | I22: 5.99078341 | J22: 4.15 | K22: 5.99 | L22: 0
B23: Tipoloma Alto | C23: 03°08'13.20''S | D23: 79°05'09.70''W | E23: Girón | F23: 3177 | H23: 0 | I23: 9.677419355 | J23: 0 | K23: 16.13 | L23: 10.14
B24: Tipoloma Bajo | C24: 03°07'41.50''S | D24: 79°05'17.90''W | E24: Girón | F24: 3086 | H24: 0 | I24: 0 | J24: 4.15 | K24: 0 | L24: 0
B25: Cerro Paredones | C25: 02°44'38.30''S | D25: 79°26'26.60''W | E25: Cuenca | F25: 3668 | H25: 0 | I25: 0 | J25: 0 | K25: 0 | L25: 0
B26: Cuchilla de Paredones | C26: 02°44'10.70''S | D26: 79°26'43.10''W | E26: Cuenca | F26: 3311 | H26: 0 | I26: 0 | J26: 82.03 | K26: 0 | L26: 0
B27: Bilovan | C27: 01°48'09.10''S | D27: 79°06'17.20''W | E27: San Miguel | F27: 2662 | H27: 0 | I27: 0 | J27: 75.12 | K27: 0 | L27: 0
B28: Cerro Capadia Alto | C28: 01°25'24.20''S | D28: 78°57'01.10''W | E28: Guaranda | F28: 4460 | H28: 0 | I28: 0 | J28: 0 | K28: 0 | L28: 0
B29: Cerro Capadia Chico | C29: 01°25'54.10''S | D29: 78°56'19.70''W | E29: Guaranda | F29: 4384 | H29: 0 | I29: 0 | J29: 22.12 | K29: 0 | L29: 0
B30: Cerro de la Cocha | C30: 01°50'38.90''S | D30: 79°09'52.80''W | E30: San Miguel | F30: 2496 | H30: 0 | I30: 0 | J30: 0 | K30: 0 | L30: 0
B31: Cerro Ilambulo | C31: 01°42'18.60''S | D31: 79°05'32.60''W | E31: San Miguel | F31: 3213 | H31: 0 | I31: 0 | J31: 93.09 | K31: 0 | L31: 0
B32: Cerro Pucará | C32: 01°39'04.50''S | D32: 79°06'10.70''W | E32: Chimbo | F32: 3063 | H32: 0 | I32: 0 | J32: 25.35 | K32: 0 | L32: 0
B33: Cochambamba (Chuchi) | C33: 01°41'56.20''S | D33: 79°06'20.60''W | E33: San Miguel | F33: 3072 | H33: 0 | I33: 0 | J33: 0 | K33: 0 | L33: 0
B34: Cochabamba (Tundaloma) | C34: 01°41'35.30''S | D34: 79°06'28.20''W | E34: San Miguel | F34: 3018 | H34: 0 | I34: 0 | J34: 0 | K34: 0 | L34: 0
B35: Loma de Lourdes | C35: 01°42'19.70''S | D35: 79°04'49.20''W | E35: San Miguel | F35: 3281 | H35: 0 | I35: 0 | J35: 5.99 | K35: 0 | L35: 0
B36: Loma Susanga | C36: 01°40'23.00''S | D36: 79°01'08.80''W | E36: Chimbo | F36: 2879 | H36: 0 | I36: 0 | J36: 41.94 | K36: 0 | L36: 0
B37: Padre Urcu | C37: 01°42'21.80''S | D37: 79°05'45.70''W | E37: San Miguel | F37: 3181 | H37: 0 | I37: 0 | J37: 0 | K37: 0 | L37: 0
B38: Tiuguinal | C38: 01°22'00.30''S | D38: 79°00'25.10''W | E38: Guaranda | F38: 4126 | H38: 0 | I38: 0 | J38: 16.13 | K38: 0 | L38: 0
B39: Biblian (Sagrado Corazón) | C39: 02°43'07.70''S | D39: 78°52'53.40''W | E39: Biblián | F39: 2878 | H39: 10.41445271 | I39: 19.35483871 | J39: 49.77 | K39: 19.35 | L39: 24.42
B40: Cerro Altar Urcu | C40: 02°28'48.90''S | D40: 78°59'36.30''W | E40: Cañar | F40: 3215 | H40: 0 | I40: 0 | J40: 36.41 | K40: 0 | L40: 0
B41: Cerro Buerán | C41: 02°36'31.10''S | D41: 78°55'50.90''W | E41: Biblián | F41: 3816 | H41: 0 | I41: 10.13824885 | J41: 11.52 | K41: 10.14 | L41: 11.52
B42: Cerro Buerán(Tierras Negras) | C42: 02°35'59.40''S | D42: 78°55'44.40''W | E42: Biblián | F42: 3828 | H42: 0 | I42: 0 | J42: 58.06 | K42: 0 | L42: 11.52
B43: Cerro Carshao | C43: 02°26'23.20''S | D43: 78°57'03.80''W | E43: Cañar | F43: 4017 | H43: 5.951115834 | I43: 7.373271889 | J43: 8.76 | K43: 7.37 | L43: 7.37
B44: Cerro Carshao Bajo | C44: 02°26'08.10''S | D44: 78°56'52.20''W | E44: Cañar | F44: 4003 | H44: 5.951115834 | I44: 7.373271889 | J44: 9.68 | K44: 7.37 | L44: 7.37
B45: Cerro Cojitambo | C45: 02°45'40.70''S | D45: 78°53'16.40''W | E45: Azoguez | F45: 3106 | H45: 0 | I45: 0 | J45: 0 | K45: 0 | L45: 0
B46: Cerro Villaflor | C46: 02°49'44.60''S | D46: 78°48'12.30''W | E46: Azoguez | F46: 3042 | H46: 13.39001063 | I46: 26.7281106 | J46: 0 | K46: 26.73 | L46: 26.73
B47: Cerro Troya | C47: 00°44'24.50''N | D47: 77°41'48.70''W | E47: Tulcán | F47: 3529 | H47: 46.12114772 | I47: 67.74193548 | J47: 0 | K47: 63.59 | L47: 63.59
B48: Cerro Troya Bajo | C48: 00°44'09.50''N | D48: 77°42'22.80''W | E48: Tulcán | F48: 3418 | H48: 0 | I48: 0 | J48: 19.35 | K48: 0 | L48: 0
B49: Cerro Cabras | C49: 00°28'15.00''N | D49: 77°57'50.70''W | E49: Bolívar | F49: 2904 | H49: 13.39001063 | I49: 34.10138249 | J49: 39.63 | K49: 47.47 | L49: 55.3
B50: Cerro Chiles Alto | C50: 00°35'14.40''N | D50: 77°51'04.00''W | E50: Montúfar | F50: 3093 | H50: 0 | I50: 0 | J50: 14.29 | K50: 0 | L50: 0
B51: Agua Santa | C51: 01°41'46.80''S | D51: 78°39'59.80''W | E51: Riobamba | F51: 3006 | H51: 29.75557917 | I51: 61.75115207 | J51: 0 | K51: 58.99 | L51: 76.04
B52: Cerro Amula Rayoloma | C52: 01°41'22.10''S | D52: 78°43'45.70''W | E52: Colta | F52: 3485 | H52: 0 | I52: 0 | J52: 0 | K52: 0 | L52: 0
B53: Cerro Gatazo Grande | C53: 01°39'41.30''S | D53: 78°45'00.80''W | E53: Colta | F53: 3188 | H53: 0 | I53: 0 | J53: 0 | K53: 0 | L53: 0
B54: Cerro Higno Cacha | C54: 01°41'31.90''S | D54: 78°42'58.60''W | E54: Riobamba | F54: 3567 | H54: 0 | I54: 0 | J54: 0 | K54: 0 | L54: 0
B55: Cerro La Mira | C55: 01°30'32.70''S | D55: 78°35'05.20''W | E55: Guano | F55: 3881 | H55: 4.463336876 | I55: 16.58986175 | J55: 23.04147465 | K55: 23.04 | L55: 12.9
B56: Cerro La Mira (Senincahuan) | C56: 01°41'31.90''S | D56: 78°42'58.60''W | E56: Riobamba | F56: 3947 | H56: 0 | I56: 0 | J56: 0 | K56: 0 | L56: 0
B57: Cerro Achayandi | C57: 00°57'07.70''S | D57: 78°55'32.90''W | E57: Pujulí | F57: 4102 | H57: 0 | I57: 0 | J57: 0 | K57: 0 | L57: 0
B58: Cerro Apagua | C58: 00°58'32.00''S | D58: 78°56'58.00''W | E58: Pujulí | F58: 4032 | H58: 0 | I58: 0 | J58: 0 | K58: 0 | L58: 0
B59: Cerro Putzalagua | C59: 00°57'56.00''S | D59: 78°33'42.70''W | E59: Latacunga | F59: 3531 | H59: 5.951115834 | I59: 11.52073733 | J59: 23.04147465 | K59: 23.04 | L59: 35.48
B60: Chasqui | C60: 00°37'15.30''S | D60: 78°35'37.20''W | E60: Latacunga | F60: 3532 | H60: 0 | I60: 0 | J60: 0 | K60: 11.52 | L60: 11.52
B61: Cerro Chilla | C61: 03°29'09.70''S | D61: 79°36'04.70''W | E61: Chilla | F61: 3450 | H61: 0 | I61: 0 | J61: 0 | K61: 0 | L61: 0
B62: Cerro Chilola | C62: 03°30'00.90''S | D62: 79°37'52.50''W | E62: Chilla | F62: 3596 | H62: 0 | I62: 0 | J62: 0 | K62: 0 | L62: 0
B63: Cerro El Trigal | C63: 03°41'23.20''S | D63: 79°39'33.90''W | E63: Piñas | F63: 1292 | H63: 8.926673751 | I63: 17.97235023 | J63: 23.04147465 | K63: 26.27 | L63: 26.27
B64: Cerro Guirillio | C64: 03°09'57.50''S | D64: 79°36'20.40''W | E64: El Guabo | F64: 3192 | H64: 0 | I64: 0 | J64: 0 | K64: 0 | L64: 0
B65: Cerro La Chuva | C65: 03°43'03.00''S | D65: 79°39'11.30''W | E65: Piñas | F65: 1282 | H65: 5.951115834 | I65: 11.52073733 | J65: 11.52073733 | K65: 11.52 | L65: 11.52
B66: Cerro Repen | C66: 03°33'01.80''S | D66: 79°41'02.70''W | E66: Atahualpa | F66: 2369 | H66: 0 | I66: 0 | J66: 0 | K66: 0 | L66: 0
B67: Cerro Balao (Esmeraldas) | C67: 00°57'41.30''N | D67: 79°41'25.70''W | E67: Esmeraldas | F67: 192 | H67: 0 | I67: 0 | J67: 0 | K67: 0 | L67: 0
B68: Cerro Don Juan | C68: 00°50'51.20''N | D68: 79°53'52.40''W | E68: Atacames | F68: 262 | H68: 11.53028693 | I68: 14.74654378 | J68: 21.19815668 | K68: 21.2 | L68: 21.2
B69: Cerro Gatazo | C69: 00°56'38.40''N | D69: 79°39'29.70''W | E69: Esmeraldas | F69: 271 | H69: 46.12114772 | I69: 66.8202765 | J69: 66.8202765 | K69: 66.82 | L69: 80.65
B70: Cerro La Juanita | C70: 00°28'02.20''N | D70: 79°34'40.50''W | E70: Quinindé | F70: 502 | H70: 0 | I70: 0 | J70: 0 | K70: 0 | L70: 0
B71: Cerro Zapallo | C71: 00°53'05.30''N | D71: 79°31'52.20''W | E71: Esmeraldas | F71: 690 | H71: 0 | I71: 0 | J71: 0 | K71: 0 | L71: 0
B72: Cerro Animas | C72: 02°28'28.20''S | D72: 80°28'03.40''W | E72: Guayaquil | F72: 427 | H72: 1.487778959 | I72: 4.608294931 | J72: 2.764976959 | K72: 2.76 | L72: 14.29
B73: Cerro Azul | C73: 02°09'57.40''S | D73: 79°57'24.80''W | E73: Guayaquil | F73: 324 | H73: 53.56004251 | I73: 82.94930876 | J73: 84.33179724 | K73: 86.18 | L73: 95.39
B74: Cerro Azul Alto (507) | C74: 02°09'05.10''S | D74: 79°59'01.80''W | E74: Guayaquil | F74: 398 | H74: 5.951115834 | I74: 6.912442396 | J74: 6.912442396 | K74: 6.91 | L74: 6.91
B75: Cerro Balao | C75: 02°45'58.90''S | D75: 79°39'52.90''W | E75: Naranjal | F75: 490 | H75: 0 | I75: 0 | J75: 0 | K75: 0 | L75: 0
B76: Cerro Bellavista | C76: 02°10'57.10''S | D76: 79°54'51.30''W | E76: Guayaquil | F76: 100 | H76: 2.975557917 | I76: 5.99078341 | J76: 17.97235023 | K76: 23.5 | L76: 28.57
B77: Cerro El Carmen | C77: 02°10'47.60''S | D77: 79°52'50.00''W | E77: Guayaquil | F77: 80 | H77: 83.47502657 | I77: 100 | J77: 99.07834101 | K77: 99.08 | L77: 100
B78: Cerro González | C78: 02°20'57.30''S | D78: 80°32'36.70''W | E78: Guayaquil | F78: 296 | H78: 1.487778959 | I78: 6.912442396 | J78: 4.147465438 | K78: 4.15 | L78: 4.15
B79: Cerro Mapasingue | C79: 02°08'49.80''S | D79: 79°55'40.80''W | E79: Guayaquil | F79: 120 | H79: 68.43783209 | I79: 91.24423963 | J79: 88.47926267 | K79: 88.48 | L79: 88.48
B80: Cerro San Eduardo | C80: 02°10'28.00''S | D80: 79°55'07.30''W | E80: Guayaquil | F80: 160 | H80: 32.62486716 | I80: 58.06451613 | J80: 56.68202765 | K80: 56.68 | L80: 60.83
B81: Cerro Santa Ana | C81: 01°55'45.30''S | D81: 79°45'50.10''W | E81: San Borondón | F81: 300 | H81: 1.487778959 | I81: 15.66820276 | J81: 23.04147465 | K81: 33.64 | L81: 40.55
B82: Cerro Tanzarte (Cruz Loma) | C82: 02°45'17.90''S | D82: 79°23'59.80''W | E82: Naranjal | F82: 2894 | H82: 0 | I82: 0 | J82: 0 | K82: 0 | L82: 0
B83: Cerro Blanco | C83: 00°12'33.70''N | D83: 78°20'16.40''W | E83: Otavalo | F83: 3545 | H83: 13.39001063 | I83: 25.34562212 | J83: 31.33640553 | K83: 11.06 | L83: 25.81
B84: Cerro Cotacachi | C84: 00°19'57.30''N | D84: 78°20'24.60''W | E84: Cotacachi | F84: 4047 | H84: 2.975557917 | I84: 20.73732719 | J84: 20.73732719 | K84: 20.74 | L84: 39.63
B85: Cerro Calvario (Loja) | C85: 04°02'47.00''S | D85: 79°39'05.80''W | E85: Paltas | F85: 1935 | H85: 2.975557917 | I85: 5.99078341 | J85: 5.99078341 | K85: 5.99 | L85: 5.99
B86: Cerro Colambo | C86: 04°14'14.60''S | D86: 79°23'45.40''W | E86: Gonzanamá | F86: 3103 | H86: 0 | I86: 0 | J86: 3.686635945 | K86: 3.69 | L86: 3.69
B87: Cerro Guachaurco | C87: 04°02'11.70''S | D87: 79°52'19.40''W | E87: Paltas | F87: 3102 | H87: 1.487778959 | I87: 11.52073733 | J87: 11.52073733 | K87: 11.52 | L87: 11.52
B88: Cerro Guanchuro | C88: 04°04'28.80''S | D88: 79°38'54.90''W | E88: Paltas | F88: 2446 | H88: 0 | I88: 0 | J88: 0 | K88: 0 | L88: 0
B89: Cerro Huanchinchambo | C89: 04°01'25.20''S | D89: 79°14'45.90''W | E89: Catamayo | F89: 2849 | H89: 42.77364506 | I89: 74.65437788 | J89: 82.48847926 | K89: 82.49 | L89: 82.49
B90: Cerro Motilon | C90: 04°04'57.10''S | D90: 79°56'22.20''W | E90: Celica | F90: 2663 | H90: 0 | I90: 0 | J90: 0 | K90: 0 | L90: 0
B91: Cerro Ventanas | C91: 04°01'54.10''S | D91: 79°14'39.00''W | E91: Catamayo | F91: 2870 | H91: 42.77364506 | I91: 74.65437788 | J91: 82.48847926 | K91: 82.49 | L91: 82.49
B92: Cerro Villonaco Alto | C92: 03°59'18.70''S | D92: 79°16'06.30''W | E92: Catamayo | F92: 2952 | H92: 0 | I92: 0 | J92: 0 | K92: 0 | L92: 11.52
B93: Pucará | C93: 04°05'47.80''S | D93: 79°56'17.70''W | E93: Celica | F93: 2479 | H93: 1.487778959 | I93: 11.52073733 | J93: 11.52073733 | K93: 11.52 | L93: 23.04
B94: Saraguro | C94: 03°37'55.20''S | D94: 79°14'37.50''W | E94: Saraguro | F94: 2740 | H94: 0 | I94: 0 | J94: 0 | K94: 0 | L94: 0
B95: Cerro Corozo | C95: 01°29'23.10''S | D95: 80°31'27.00''W | E95: Jipijapa | F95: 774 | H95: 0 | I95: 0 | J95: 6.451612903 | K95: 6.45 | L95: 6.45
B96: Cerro de Hojas | C96: 01°02'40.10''S | D96: 80°32'38.50''W | E96: Portoviejo | F96: 674 | H96: 8.926673751 | I96: 21.19815668 | J96: 24.88479263 | K96: 24.88 | L96: 53
B97: Cerro Guayas | C97: 00°41'18.10''S | D97: 80°05'27.90''W | E97: Chone | F97: 128 | H97: 23.80446334 | I97: 41.47465438 | J97: 41.47465438 | K97: 41.47 | L97: 41.47
B98: Cerro Jama 1 | C98: 00°12'29.40''S | D98: 80°16'08.70''W | E98: Jama | F98: 93 | H98: 0 | I98: 0 | J98: 0 | K98: 0 | L98: 0
B99: Cerro Jama 2 | C99: 00°12'58.90''S | D99: 80°16'44.50''W | E99: Jama | F99: 140 | H99: 0 | I99: 0 | J99: 0 | K99: 0 | L99: 0
B100: Cerro La Crespa | C100: 00°20'07.10''S | D100: 79°45'34.70''W | E100: Flavio Alfaro | F100: 480 | H100: 0 | I100: 0 | J100: 0 | K100: 0 | L100: 0
B101: Cerro Nueve | C101: 00°16'05.30''S | D101: 80°12'29.90''W | E101: Jama | F101: 652 | H101: 0 | I101: 0 | J101: 0 | K101: 0 | L101: 0
B102: Cerro Puerto Alto | C102: 00°21'36.30''S | D102: 79°52'00.40''W | E102: Flavio Alfaro | F102: 410 | H102: 5.951115834 | I102: 11.52073733 | J102: 11.52073733 | K102: 11.52 | L102: 11.52
B103: Loma de Viento | C103: 00°42'28.10''S | D103: 80°24'28.80''W | E103: Sucre | F103: 402 | H103: 0 | I103: 0 | J103: 0 | K103: 0 | L103: 0
B104: Mirador de Bahía de Caráquez | C104: 00°36'28.00''S | D104: 80°25'34.70''W | E104: Sucre | F104: 102 | H104: 5.951115834 | I104: 34.56221198 | J104: 34.56221198 | K104: 34.56 | L104: 41.47
B105: Cerro Bosco | C105: 03°00'01.00''S | D105: 78°30'34.90''W | E105: Limón Indanza | F105: 2404 | H105: 0 | I105: 0 | J105: 0 | K105: 0 | L105: 0
B106: Cerro Quilamo | C106: 02°18'14.40''S | D106: 78°08'26.80''W | E106: Morona | F106: 1461 | H106: 11.90223167 | I106: 18.89400922 | J106: 30.41474654 | K106: 30.41 | L106: 18.89
B107: Cerro Condijua | C107: 00°29'01.60''S | D107: 77°54'06.90''W | E107: Quijos | F107: 2526 | H107: 1.487778959 | I107: 11.52073733 | J107: 25.34562212 | K107: 25.35 | L107: 18.43
B108: Cerro Huacamayos | C108: 00°37'26.06''S | D108: 77°50'28.60''W | E108: Archidona | F108: 2300 | H108: 0 | I108: 0 | J108: 0 | K108: 0 | L108: 0
B109: Cerro Tres Cruces | C109: 00°16'22.60''S | D109: 77°45'53.80''W | E109: El Chaco | F109: 1980 | H109: 0 | I109: 0 | J109: 0 | K109: 0 | L109: 0
B110: Papallacta | C110: 00°22'43.70''S | D110: 78°08'48.60''W | E110: Quijos | F110: 3373 | H110: 0 | I110: 11.52073733 | J110: 11.52073733 | K110: 11.52 | L110: 11.52
B111: Cerro Lumbaqui Alto | C111: 00°00'30.40''N | D111: 77°19'15.80''W | E111: Orellana | F111: 1088 | H111: 4.463336876 | I111: 22.11981567 | J111: 22.11981567 | K111: 22.12 | L111: 27.19
B112: Cerro Lumbaqui Bajo | C112: 00°01'47.70''N | D112: 77°19'07.90''W | E112: Orellana | F112: 998 | H112: 0 | I112: 0 | J112: 0 | K112: 11.52 | L112: 11.52
B113: Cerro Abitagua | C113: 01°24'53.90''S | D113: 78°08'31.00''W | E113: Mera | F113: 2250 | H113: 1.487778959 | I113: 4.147465438 | J113: 4.147465438 | K113: 4.15 | L113: 0
B114: Cerro Calvario | C114: 01°31'14.30''S | D114: 77°54'28.50''W | E114: Pastaza | F114: 1171 | H114: 0 | I114: 0 | J114: 0 | K114: 0 | L114: 0
B115: Santa Clara(Km.35 Vía Puyo - Tena) | C115: 01°17'29.30''S | D115: 77°52'36.80''W | E115: Santa Clara | F115: 1080 | H115: 1.487778959 | I115: 4.147465438 | J115: 4.147465438 | K115: 4.15 | L115: 15.67
B116: Cerro Cayambe | C116: 00°03'58.00''N | D116: 77°59'25.80''W | E116: Cayambe | F116: 4216 | H116: 0 | I116: 0 | J116: 0 | K116: 0 | L116: 0
B117: Cerro Cruz Loma | C117: 00°11'17.50''S | D117: 78°32'06.70''W | E117: Quito | F117: 3990 | H117: 22.31668438 | I117: 58.98617512 | J117: 82.02764977 | K117: 82.03 | L117: 94.47
B118: Cerro Ilumbisi | C118: 00°13'40.60''S | D118: 78°28'25.70''W | E118: Quito | F118: 3040 | H118: 35.70669501 | I118: 74.65437788 | J118: 75.11520737 | K118: 72.35 | L118: 72.35
B119: Cerro La Virgen | C119: 00°19'06.90''S | D119: 78°11'27.60''W | E119: Quito | F119: 4412 | H119: 0 | I119: 0 | J119: 0 | K119: 0 | L119: 0
B120: Cerro Puengasí | C120: 00°14'43.40''S | D120: 78°29'59.70''W | E120: Quito | F120: 3085 | H120: 4.463336876 | I120: 11.52073733 | J120: 22.11981567 | K120: 22.12 | L120: 22.12
B121: Mojanda | C121: 00°04'47.30''N | D121: 78°13'43.20''W | E121: Pedro Moncayo | F121: 3241 | H121: 0 | I121: 0 | J121: 0 | K121: 0 | L121: 0
B122: Sector Ferroviaria y la Florestal | C122: 00°15'48.00''S | D122: 78°30'25.00''W | E122: Quito | F122: 3179 | H122: 75.87672689 | I122: 93.0875576 | J122: 93.0875576 | K122: 93.09 | L122: 97.7
B123: Cerro Condorcocha | C123: 00°02'19.10''S | D123: 78°30'41.00''W | E123: Quito | F123: 3586 | H123: 7.438894793 | I123: 13.82488479 | J123: 25.34562212 | K123: 25.35 | L123: 32.26
B124: Cerro San Francisco | C124: 00°23'24.89''S | D124: 78°37'06.79''W | E124: Mejía | F124: 4097 | H124: 0 | I124: 0 | J124: 0 | K124: 0 | L124: 0
B125: Cerro Tinajero | C125: 00°22'53.08''S | D125: 78°36'36.19''W | E125: Mejía | F125: 4082 | H125: 0 | I125: 0 | J125: 0 | K125: 0 | L125: 0
B126: Cerro La Viudita | C126: 00°24'50.70''S | D126: 78°36'27.00''W | E126: Mejía | F126: 3751 | H126: 0 | I126: 0 | J126: 5.99078341 | K126: 5.99 | L126: 5.99
B127: Cerro Hacda El Rosario | C127: 00°26'14.60''S | D127: 78°32'12.50''W | E127: Mejía | F127: 2981 | H127: 25.2922423 | I127: 51.15207373 | J127: 41.93548387 | K127: 41.94 | L127: 52.07
B128: Cerro Atacazo Alto | C128: 00°21'22.20''S | D128: 78°37'09.10''W | E128: Quito | F128: 4474 | H128: 0 | I128: 0 | J128: 0 | K128: 0 | L128: 0
B129: Cerro Atacazo Bajo | C129: 00°19'05.10''S | D129: 78°36'08.10''W | E129: Quito | F129: 3893 | H129: 8.926673751 | I129: 16.12903226 | J129: 16.12903226 | K129: 16.13 | L129: 27.19
B130: Cerro Pichincha | C130: 00°09'57.03''S | D130: 78°31'39.19''W | E130: Quito | F130: 3901 | H130: 27.52391073 | I130: 49.76958525 | J130: 49.76958525 | K130: 49.77 | L130: 81.11
B131: Cerro Capáes | C131: 02°12'32.40''S | D131: 80°51'47.50''W | E131: Santa Elena | F131: 102 | H131: 17.8533475 | I131: 39.17050691 | J131: 36.40552995 | K131: 36.41 | L131: 40.55
B132: Cerro Bijagual | C132: 00°39'28.70''S | D132: 79°17'41.00''W | E132: Sto Domingo | F132: 798 | H132: 0 | I132: 0 | J132: 11.52073733 | K132: 11.52 | L132: 11.52
B133: Cerro Bomboli | C133: 00°14'48.20''S | D133: 79°11'31.30''W | E133: Sto Domingo | F133: 636 | H133: 35.70669501 | I133: 54.37788018 | J133: 58.06451613 | K133: 58.06 | L133: 63.59
B134: Cerro Chiguilpe Alto | C134: 00°17'44.70''S | D134: 79°05'12.10''W | E134: Sto Domingo | F134: 1172 | H134: 4.463336876 | I134: 8.755760369 | J134: 8.755760369 | K134: 8.76 | L134: 4.15
B135: Cerro Chiguilpe Bajo | C135: 00°16'51.30''S | D135: 79°05'26.40''W | E135: Sto Domingo | F135: 801 | H135: 2.975557917 | I135: 9.677419355 | J135: 9.677419355 | K135: 9.68 | L135: 9.68
B136: Cerro San Luis | C136: 00°35'10.70''S | D136: 79°19'18.80''W | E136: Sto Domingo | F136: 412 | H136: 0 | I136: 0 | J136: 0 | K136: 0 | L136: 0
B137: Cerro Bermejo | C137: 00°08'09.10''N | D137: 77°19'39.90''W | E137: Cascales | F137: 994 | H137: 0 | I137: 0 | J137: 0 | K137: 0 | L137: 0
B138: Cerro Reventador | C138: 00°02'33.90''S | D138: 77°31'44.10''W | E138: Gonzalo Pizarro | F138: 1600 | H138: 0 | I138: 0 | J138: 0 | K138: 0 | L138: 0
B139: Cerro Niton | C139: 01°16'41.60''S | D139: 78°32'10.20''W | E139: San Pedro de Pelileo | F139: 3079 | H139: 8.926673751 | I139: 19.35483871 | J139: 19.35483871 | K139: 19.35 | L139: 19.35
B140: Cerro Pilisurco o Saguatoa | C140: 01°09'17.20''S | D140: 78°39'58.00''W | E140: Ambato | F140: 4154 | H140: 24.30924548 | I140: 42.39631336 | J140: 39.63133641 | K140: 39.63 | L140: 61.75
B141: Cerro Salvación (Lligua) | C141: 01°22'44.90''S | D141: 78°26'11.80''W | E141: Baños | F141: 2696 | H141: 2.975557917 | I141: 11.05990783 | J141: 14.28571429 | K141: 14.29 | L141: 10.14
B142: Llantantoma | C142: 01°09'56.40''S | D142: 78°37'53.90''W | E142: Ambato | F142: 3450 | H142: 0 | I142: 0 | J142: 0 | K142: 0 | L142: 0

Sheet Comparativo
C3: Espectro Radioeléctrico
C4: Comparativo anual - Porcentajes de ocupación del espectro radioeléctrico por sitios
C7: Fecha de publicación: 20 de enero de 2015
H11: 2014
B12: Nombre | C12: Latitud | D12: Longitud | E12: Cantón | F12: Hsnm(m) | G12: Gráficos | H12: 1427 - 1525 MHz | I12: 3800 - 4200 MHz | J12: 5925 - 6425 MHz | K12: 7125 - 8500 MHz | L12: 14400 - 15350 MHz
H13: Ocupacion (%) | I13: Ocupacion (%) | J13: Ocupacion (%) | K13: Ocupacion (%) | L13: Ocupacion (%)
B14: Barabon | C14: 02°53'34.40''S | D14: 79°05'15.10''W | E14: Cuenca | F14: 3351 | H14: ='1427-1525 MHz'!L14 -> 0 | I14: ='3800-4200 MHz'!H14 -> 0 | J14: ='5925-6425 MHz'!L14 -> 0 | K14: ='7125-8500 MHz'!L13 -> 0 | L14: ='14400 - 15350 MHz'!L13 -> 0
B15: Cerro Cahuazhun | C15: 02°52'33.40''S | D15: 78°49'01.60''W | E15: Gualaceo | F15: 2999 | H15: ='1427-1525 MHz'!L15 -> 0 | I15: ='3800-4200 MHz'!H15 -> 0 | J15: ='5925-6425 MHz'!L15 -> 0 | K15: ='7125-8500 MHz'!L14 -> 0 | L15: ='14400 - 15350 MHz'!L14 -> 0
B16: Cerro Cochapamba | C16: 02°47'41.10''S | D16: 79°25'39.10''W | E16: Cuenca | F16: 3714 | H16: ='1427-1525 MHz'!L16 -> 0 | I16: ='3800-4200 MHz'!H16 -> 0 | J16: ='5925-6425 MHz'!L16 -> 0 | K16: ='7125-8500 MHz'!L15 -> 0 | L16: ='14400 - 15350 MHz'!L15 -> 0
B17: Cerro Guagualzhumi | C17: 02°53'32.50''S | D17: 78°54'39.60''W | E17: Cuenca | F17: 3079 | H17: ='1427-1525 MHz'!L17 -> 0 | I17: ='3800-4200 MHz'!H17 -> 0 | J17: ='5925-6425 MHz'!L17 -> 12.5 | K17: ='7125-8500 MHz'!L16 -> 33.65384615 | L17: ='14400 - 15350 MHz'!L16 -> 12.44
B18: Cerro Guallil | C18: 03°04'30.90''S | D18: 78°48'58.70''W | E18: Sigsig | F18: 3284 | H18: ='1427-1525 MHz'!L18 -> 32.14285714 | I18: ='3800-4200 MHz'!H18 -> 0 | J18: ='5925-6425 MHz'!L18 -> 25 | K18: ='7125-8500 MHz'!L17 -> 89.74358974 | L18: ='14400 - 15350 MHz'!L17 -> 34.56
B19: Cerro Hito Cruz | C19: 02°55'51.50''S | D19: 78°59'51.70''W | E19: Cuenca | F19: 2847 | H19: ='1427-1525 MHz'!L19 -> 23.4375 | I19: ='3800-4200 MHz'!H19 -> 33.33333333 | J19: ='5925-6425 MHz'!L19 -> 37.5 | K19: ='7125-8500 MHz'!L18 -> 98.71794872 | L19: ='14400 - 15350 MHz'!L18 -> 95.85
B20: Cerro Rayoloma | C20: 02°54'13.00''S | D20: 78°57'59.20''W | E20: Cuenca | F20: 2649 | H20: ='1427-1525 MHz'!L20 -> 16.29464286 | I20: ='3800-4200 MHz'!H20 -> 0 | J20: ='5925-6425 MHz'!L20 -> 0 | K20: ='7125-8500 MHz'!L19 -> 0 | L20: ='14400 - 15350 MHz'!L19 -> 11.52
B21: Cerro Rumiloma (Amopungo - Señor Pungo) | C21: 02°48'19.00''S | D21: 78°49'19.30''W | E21: Paute | F21: 3175 | H21: ='1427-1525 MHz'!L21 -> 17.41071429 | I21: ='3800-4200 MHz'!H21 -> 100 | J21: ='5925-6425 MHz'!L21 -> 87.5 | K21: ='7125-8500 MHz'!L20 -> 87.5 | L21: ='14400 - 15350 MHz'!L20 -> 58.06
B22: Cerro Turi | C22: 02°55'22.90''S | D22: 79°00'32.80''W | E22: Cuenca | F22: 2730 | H22: ='1427-1525 MHz'!L22 -> 0 | I22: ='3800-4200 MHz'!H22 -> 0 | J22: ='5925-6425 MHz'!L22 -> 0 | K22: ='7125-8500 MHz'!L21 -> 12.82051282 | L22: ='14400 - 15350 MHz'!L21 -> 23.04
B23: Sector Nero - Zhuzhun | C23: 02°56'48.30''S | D23: 79°03'46.20''W | E23: Cuenca | F23: 2932 | H23: ='1427-1525 MHz'!L23 -> 0 | I23: ='3800-4200 MHz'!H23 -> 0 | J23: ='5925-6425 MHz'!L23 -> 0 | K23: ='7125-8500 MHz'!L22 -> 29.48717949 | L23: ='14400 - 15350 MHz'!L22 -> 0
B24: Tipoloma Alto | C24: 03°08'13.20''S | D24: 79°05'09.70''W | E24: Girón | F24: 3177 | H24: ='1427-1525 MHz'!L24 -> 51.33928571 | I24: ='3800-4200 MHz'!H24 -> 100 | J24: ='5925-6425 MHz'!L24 -> 75 | K24: ='7125-8500 MHz'!L23 -> 84.61538462 | L24: ='14400 - 15350 MHz'!L23 -> 10.14
B25: Tipoloma Bajo | C25: 03°07'41.50''S | D25: 79°05'17.90''W | E25: Girón | F25: 3086 | H25: ='1427-1525 MHz'!L25 -> 0 | I25: ='3800-4200 MHz'!H25 -> 0 | J25: ='5925-6425 MHz'!L25 -> 0 | K25: ='7125-8500 MHz'!L24 -> 6.730769231 | L25: ='14400 - 15350 MHz'!L24 -> 0
B26: Cerro Paredones | C26: 02°44'38.30''S | D26: 79°26'26.60''W | E26: Cuenca | F26: 3668 | H26: ='1427-1525 MHz'!L26 -> 0 | I26: ='3800-4200 MHz'!H26 -> 0 | J26: ='5925-6425 MHz'!L26 -> 0 | K26: ='7125-8500 MHz'!L25 -> 0 | L26: ='14400 - 15350 MHz'!L25 -> 0
B27: Cuchilla de Paredones | C27: 02°44'10.70''S | D27: 79°26'43.10''W | E27: Cuenca | F27: 3311 | H27: ='1427-1525 MHz'!L27 -> 0 | I27: ='3800-4200 MHz'!H27 -> 0 | J27: ='5925-6425 MHz'!L27 -> 25 | K27: ='7125-8500 MHz'!L26 -> 0 | L27: ='14400 - 15350 MHz'!L26 -> 0
B28: Bilovan | C28: 01°48'09.10''S | D28: 79°06'17.20''W | E28: San Miguel | F28: 2662 | H28: ='1427-1525 MHz'!L28 -> 26.33928571 | I28: ='3800-4200 MHz'!H28 -> 0 | J28: ='5925-6425 MHz'!L28 -> 0 | K28: ='7125-8500 MHz'!L27 -> 0 | L28: ='14400 - 15350 MHz'!L27 -> 0
B29: Cerro Capadia Alto | C29: 01°25'24.20''S | D29: 78°57'01.10''W | E29: Guaranda | F29: 4460 | H29: ='1427-1525 MHz'!L29 -> 0 | I29: ='3800-4200 MHz'!H29 -> 0 | J29: ='5925-6425 MHz'!L29 -> 0 | K29: ='7125-8500 MHz'!L28 -> 6.730769231 | L29: ='14400 - 15350 MHz'!L28 -> 0
B30: Cerro Capadia Chico | C30: 01°25'54.10''S | D30: 78°56'19.70''W | E30: Guaranda | F30: 4384 | H30: ='1427-1525 MHz'!L30 -> 0 | I30: ='3800-4200 MHz'!H30 -> 66.66666667 | J30: ='5925-6425 MHz'!L30 -> 87.5 | K30: ='7125-8500 MHz'!L29 -> 85.8974359 | L30: ='14400 - 15350 MHz'!L29 -> 0
B31: Cerro de la Cocha | C31: 01°50'38.90''S | D31: 79°09'52.80''W | E31: San Miguel | F31: 2496 | H31: ='1427-1525 MHz'!L31 -> 0 | I31: ='3800-4200 MHz'!H31 -> 0 | J31: ='5925-6425 MHz'!L31 -> 0 | K31: ='7125-8500 MHz'!L30 -> 0 | L31: ='14400 - 15350 MHz'!L30 -> 0
B32: Cerro Ilambulo | C32: 01°42'18.60''S | D32: 79°05'32.60''W | E32: San Miguel | F32: 3213 | H32: ='1427-1525 MHz'!L32 -> 16.29464286 | I32: ='3800-4200 MHz'!H32 -> 0 | J32: ='5925-6425 MHz'!L32 -> 0 | K32: ='7125-8500 MHz'!L31 -> 19.87179487 | L32: ='14400 - 15350 MHz'!L31 -> 0
B33: Cerro Pucará | C33: 01°39'04.50''S | D33: 79°06'10.70''W | E33: Chimbo | F33: 3063 | H33: ='1427-1525 MHz'!L33 -> 0 | I33: ='3800-4200 MHz'!H33 -> 0 | J33: ='5925-6425 MHz'!L33 -> 0 | K33: ='7125-8500 MHz'!L32 -> 0 | L33: ='14400 - 15350 MHz'!L32 -> 0
B34: Cochambamba (Chuchi) | C34: 01°41'56.20''S | D34: 79°06'20.60''W | E34: San Miguel | F34: 3072 | H34: ='1427-1525 MHz'!L34 -> 0 | I34: ='3800-4200 MHz'!H34 -> 0 | J34: ='5925-6425 MHz'!L34 -> 62.5 | K34: ='7125-8500 MHz'!L33 -> 26.6025641 | L34: ='14400 - 15350 MHz'!L33 -> 0
B35: Cochabamba (Tundaloma) | C35: 01°41'35.30''S | D35: 79°06'28.20''W | E35: San Miguel | F35: 3018 | H35: ='1427-1525 MHz'!L35 -> 0 | I35: ='3800-4200 MHz'!H35 -> 0 | J35: ='5925-6425 MHz'!L35 -> 62.5 | K35: ='7125-8500 MHz'!L34 -> 26.6025641 | L35: ='14400 - 15350 MHz'!L34 -> 0
B36: Loma de Lourdes | C36: 01°42'19.70''S | D36: 79°04'49.20''W | E36: San Miguel | F36: 3281 | H36: ='1427-1525 MHz'!L36 -> 42.85714286 | I36: ='3800-4200 MHz'!H36 -> 0 | J36: ='5925-6425 MHz'!L36 -> 25 | K36: ='7125-8500 MHz'!L35 -> 20.51282051 | L36: ='14400 - 15350 MHz'!L35 -> 0
B37: Loma Susanga | C37: 01°40'23.00''S | D37: 79°01'08.80''W | E37: Chimbo | F37: 2879 | H37: ='1427-1525 MHz'!L37 -> 32.14285714 | I37: ='3800-4200 MHz'!H37 -> 0 | J37: ='5925-6425 MHz'!L37 -> 0 | K37: ='7125-8500 MHz'!L36 -> 0 | L37: ='14400 - 15350 MHz'!L36 -> 0
B38: Padre Urcu | C38: 01°42'21.80''S | D38: 79°05'45.70''W | E38: San Miguel | F38: 3181 | H38: ='1427-1525 MHz'!L38 -> 16.29464286 | I38: ='3800-4200 MHz'!H38 -> 0 | J38: ='5925-6425 MHz'!L38 -> 0 | K38: ='7125-8500 MHz'!L37 -> 19.87179487 | L38: ='14400 - 15350 MHz'!L37 -> 0
B39: Tiuguinal | C39: 01°22'00.30''S | D39: 79°00'25.10''W | E39: Guaranda | F39: 4126 | H39: ='1427-1525 MHz'!L39 -> 0 | I39: ='3800-4200 MHz'!H39 -> 0 | J39: ='5925-6425 MHz'!L39 -> 37.5 | K39: ='7125-8500 MHz'!L38 -> 0 | L39: ='14400 - 15350 MHz'!L38 -> 0
B40: Biblian (Sagrado Corazón) | C40: 02°43'07.70''S | D40: 78°52'53.40''W | E40: Biblián | F40: 2878 | H40: ='1427-1525 MHz'!L40 -> 0 | I40: ='3800-4200 MHz'!H40 -> 0 | J40: ='5925-6425 MHz'!L40 -> 0 | K40: ='7125-8500 MHz'!L39 -> 25.64102564 | L40: ='14400 - 15350 MHz'!L39 -> 24.42
B41: Cerro Altar Urcu | C41: 02°28'48.90''S | D41: 78°59'36.30''W | E41: Cañar | F41: 3215 | H41: ='1427-1525 MHz'!L41 -> 0 | I41: ='3800-4200 MHz'!H41 -> 33.33333333 | J41: ='5925-6425 MHz'!L41 -> 87.5 | K41: ='7125-8500 MHz'!L40 -> 52.88461538 | L41: ='14400 - 15350 MHz'!L40 -> 0
B42: Cerro Buerán | C42: 02°36'31.10''S | D42: 78°55'50.90''W | E42: Biblián | F42: 3816 | H42: ='1427-1525 MHz'!L42 -> 25.89285714 | I42: ='3800-4200 MHz'!H42 -> 100 | J42: ='5925-6425 MHz'!L42 -> 87.5 | K42: ='7125-8500 MHz'!L41 -> 99.03846154 | L42: ='14400 - 15350 MHz'!L41 -> 11.52
B43: Cerro Buerán(Tierras Negras) | C43: 02°35'59.40''S | D43: 78°55'44.40''W | E43: Biblián | F43: 3828 | H43: ='1427-1525 MHz'!L43 -> 25.89285714 | I43: ='3800-4200 MHz'!H43 -> 100 | J43: ='5925-6425 MHz'!L43 -> 75 | K43: ='7125-8500 MHz'!L42 -> 87.5 | L43: ='14400 - 15350 MHz'!L42 -> 11.52
B44: Cerro Carshao | C44: 02°26'23.20''S | D44: 78°57'03.80''W | E44: Cañar | F44: 4017 | H44: ='1427-1525 MHz'!L44 -> 38.61607143 | I44: ='3800-4200 MHz'!H44 -> 100 | J44: ='5925-6425 MHz'!L44 -> 87.5 | K44: ='7125-8500 MHz'!L43 -> 98.07692308 | L44: ='14400 - 15350 MHz'!L43 -> 7.37
B45: Cerro Carshao Bajo | C45: 02°26'08.10''S | D45: 78°56'52.20''W | E45: Cañar | F45: 4003 | H45: ='1427-1525 MHz'!L45 -> 38.61607143 | I45: ='3800-4200 MHz'!H45 -> 100 | J45: ='5925-6425 MHz'!L45 -> 87.5 | K45: ='7125-8500 MHz'!L44 -> 98.07692308 | L45: ='14400 - 15350 MHz'!L44 -> 7.37
B46: Cerro Cojitambo | C46: 02°45'40.70''S | D46: 78°53'16.40''W | E46: Azoguez | F46: 3106 | H46: ='1427-1525 MHz'!L46 -> 0 | I46: ='3800-4200 MHz'!H46 -> 0 | J46: ='5925-6425 MHz'!L46 -> 0 | K46: ='7125-8500 MHz'!L45 -> 0 | L46: ='14400 - 15350 MHz'!L45 -> 0
B47: Cerro Villaflor | C47: 02°49'44.60''S | D47: 78°48'12.30''W | E47: Azoguez | F47: 3042 | H47: ='1427-1525 MHz'!L47 -> 0 | I47: ='3800-4200 MHz'!H47 -> 0 | J47: ='5925-6425 MHz'!L47 -> 0 | K47: ='7125-8500 MHz'!L46 -> 44.55128205 | L47: ='14400 - 15350 MHz'!L46 -> 26.73
B48: Cerro Troya | C48: 00°44'24.50''N | D48: 77°41'48.70''W | E48: Tulcán | F48: 3529 | H48: ='1427-1525 MHz'!L48 -> 51.78571429 | I48: ='3800-4200 MHz'!H48 -> 100 | J48: ='5925-6425 MHz'!L48 -> 75 | K48: ='7125-8500 MHz'!L47 -> 94.87179487 | L48: ='14400 - 15350 MHz'!L47 -> 63.59
B49: Cerro Troya Bajo | C49: 00°44'09.50''N | D49: 77°42'22.80''W | E49: Tulcán | F49: 3418 | H49: ='1427-1525 MHz'!L49 -> 0 | I49: ='3800-4200 MHz'!H49 -> 0 | J49: ='5925-6425 MHz'!L49 -> 0 | K49: ='7125-8500 MHz'!L48 -> 0 | L49: ='14400 - 15350 MHz'!L48 -> 0
B50: Cerro Cabras | C50: 00°28'15.00''N | D50: 77°57'50.70''W | E50: Bolívar | F50: 2904 | H50: ='1427-1525 MHz'!L50 -> 26.33928571 | I50: ='3800-4200 MHz'!H50 -> 100 | J50: ='5925-6425 MHz'!L50 -> 100 | K50: ='7125-8500 MHz'!L49 -> 83.33333333 | L50: ='14400 - 15350 MHz'!L49 -> 55.3
B51: Cerro Chiles Alto | C51: 00°35'14.40''N | D51: 77°51'04.00''W | E51: Montúfar | F51: 3093 | H51: ='1427-1525 MHz'!L51 -> 0 | I51: ='3800-4200 MHz'!H51 -> 0 | J51: ='5925-6425 MHz'!L51 -> 0 | K51: ='7125-8500 MHz'!L50 -> 0 | L51: ='14400 - 15350 MHz'!L50 -> 0
B52: Agua Santa | C52: 01°41'46.80''S | D52: 78°39'59.80''W | E52: Riobamba | F52: 3006 | H52: ='1427-1525 MHz'!L52 -> 1.339285714 | I52: ='3800-4200 MHz'!H52 -> 0 | J52: ='5925-6425 MHz'!L52 -> 12.5 | K52: ='7125-8500 MHz'!L51 -> 66.34615385 | L52: ='14400 - 15350 MHz'!L51 -> 76.04
B53: Cerro Amula Rayoloma | C53: 01°41'22.10''S | D53: 78°43'45.70''W | E53: Colta | F53: 3485 | H53: ='1427-1525 MHz'!L53 -> 0 | I53: ='3800-4200 MHz'!H53 -> 0 | J53: ='5925-6425 MHz'!L53 -> 0 | K53: ='7125-8500 MHz'!L52 -> 0 | L53: ='14400 - 15350 MHz'!L52 -> 0
B54: Cerro Gatazo Grande | C54: 01°39'41.30''S | D54: 78°45'00.80''W | E54: Colta | F54: 3188 | H54: ='1427-1525 MHz'!L54 -> 0 | I54: ='3800-4200 MHz'!H54 -> 0 | J54: ='5925-6425 MHz'!L54 -> 0 | K54: ='7125-8500 MHz'!L53 -> 16.66666667 | L54: ='14400 - 15350 MHz'!L53 -> 0
B55: Cerro Higno Cacha | C55: 01°41'31.90''S | D55: 78°42'58.60''W | E55: Riobamba | F55: 3567 | H55: ='1427-1525 MHz'!L55 -> 0 | I55: ='3800-4200 MHz'!H55 -> 0 | J55: ='5925-6425 MHz'!L55 -> 0 | K55: ='7125-8500 MHz'!L54 -> 19.87179487 | L55: ='14400 - 15350 MHz'!L54 -> 0
B56: Cerro La Mira | C56: 01°30'32.70''S | D56: 78°35'05.20''W | E56: Guano | F56: 3881 | H56: ='1427-1525 MHz'!L56 -> 71.875 | I56: ='3800-4200 MHz'!H56 -> 100 | J56: ='5925-6425 MHz'!L56 -> 37.5 | K56: ='7125-8500 MHz'!L55 -> 100 | L56: ='14400 - 15350 MHz'!L55 -> 12.9
B57: Cerro La Mira (Senincahuan) | C57: 01°41'31.90''S | D57: 78°42'58.60''W | E57: Riobamba | F57: 3947 | H57: ='1427-1525 MHz'!L57 -> 0 | I57: ='3800-4200 MHz'!H57 -> 0 | J57: ='5925-6425 MHz'!L57 -> 0 | K57: ='7125-8500 MHz'!L56 -> 19.87179487 | L57: ='14400 - 15350 MHz'!L56 -> 0
B58: Cerro Achayandi | C58: 00°57'07.70''S | D58: 78°55'32.90''W | E58: Pujulí | F58: 4102 | H58: ='1427-1525 MHz'!L58 -> 26.33928571 | I58: ='3800-4200 MHz'!H58 -> 0 | J58: ='5925-6425 MHz'!L58 -> 0 | K58: ='7125-8500 MHz'!L57 -> 51.6025641 | L58: ='14400 - 15350 MHz'!L57 -> 0
B59: Cerro Apagua | C59: 00°58'32.00''S | D59: 78°56'58.00''W | E59: Pujulí | F59: 4032 | H59: ='1427-1525 MHz'!L59 -> 0 | I59: ='3800-4200 MHz'!H59 -> 0 | J59: ='5925-6425 MHz'!L59 -> 0 | K59: ='7125-8500 MHz'!L58 -> 0 | L59: ='14400 - 15350 MHz'!L58 -> 0
B60: Cerro Putzalagua | C60: 00°57'56.00''S | D60: 78°33'42.70''W | E60: Latacunga | F60: 3531 | H60: ='1427-1525 MHz'!L60 -> 0 | I60: ='3800-4200 MHz'!H60 -> 0 | J60: ='5925-6425 MHz'!L60 -> 12.5 | K60: ='7125-8500 MHz'!L59 -> 79.16666667 | L60: ='14400 - 15350 MHz'!L59 -> 35.48
B61: Chasqui | C61: 00°37'15.30''S | D61: 78°35'37.20''W | E61: Latacunga | F61: 3532 | H61: ='1427-1525 MHz'!L61 -> 0 | I61: ='3800-4200 MHz'!H61 -> 100 | J61: ='5925-6425 MHz'!L61 -> 100 | K61: ='7125-8500 MHz'!L60 -> 83.97435897 | L61: ='14400 - 15350 MHz'!L60 -> 11.52
B62: Cerro Chilla | C62: 03°29'09.70''S | D62: 79°36'04.70''W | E62: Chilla | F62: 3450 | H62: ='1427-1525 MHz'!L62 -> 0 | I62: ='3800-4200 MHz'!H62 -> 0 | J62: ='5925-6425 MHz'!L62 -> 0 | K62: ='7125-8500 MHz'!L61 -> 0 | L62: ='14400 - 15350 MHz'!L61 -> 0
B63: Cerro Chilola | C63: 03°30'00.90''S | D63: 79°37'52.50''W | E63: Chilla | F63: 3596 | H63: ='1427-1525 MHz'!L63 -> 0 | I63: ='3800-4200 MHz'!H63 -> 0 | J63: ='5925-6425 MHz'!L63 -> 50 | K63: ='7125-8500 MHz'!L62 -> 89.42307692 | L63: ='14400 - 15350 MHz'!L62 -> 0
B64: Cerro El Trigal | C64: 03°41'23.20''S | D64: 79°39'33.90''W | E64: Piñas | F64: 1292 | H64: ='1427-1525 MHz'!L64 -> 0 | I64: ='3800-4200 MHz'!H64 -> 0 | J64: ='5925-6425 MHz'!L64 -> 0 | K64: ='7125-8500 MHz'!L63 -> 36.21794872 | L64: ='14400 - 15350 MHz'!L63 -> 26.27
B65: Cerro Guirillio | C65: 03°09'57.50''S | D65: 79°36'20.40''W | E65: El Guabo | F65: 3192 | H65: ='1427-1525 MHz'!L65 -> 0 | I65: ='3800-4200 MHz'!H65 -> 0 | J65: ='5925-6425 MHz'!L65 -> 0 | K65: ='7125-8500 MHz'!L64 -> 0 | L65: ='14400 - 15350 MHz'!L64 -> 0
B66: Cerro La Chuva | C66: 03°43'03.00''S | D66: 79°39'11.30''W | E66: Piñas | F66: 1282 | H66: ='1427-1525 MHz'!L66 -> 13.16964286 | I66: ='3800-4200 MHz'!H66 -> 0 | J66: ='5925-6425 MHz'!L66 -> 0 | K66: ='7125-8500 MHz'!L65 -> 63.46153846 | L66: ='14400 - 15350 MHz'!L65 -> 11.52
B67: Cerro Repen | C67: 03°33'01.80''S | D67: 79°41'02.70''W | E67: Atahualpa | F67: 2369 | H67: ='1427-1525 MHz'!L67 -> 51.33928571 | I67: ='3800-4200 MHz'!H67 -> 0 | J67: ='5925-6425 MHz'!L67 -> 37.5 | K67: ='7125-8500 MHz'!L66 -> 53.84615385 | L67: ='14400 - 15350 MHz'!L66 -> 0
B68: Cerro Balao (Esmeraldas) | C68: 00°57'41.30''N | D68: 79°41'25.70''W | E68: Esmeraldas | F68: 192 | H68: ='1427-1525 MHz'!L68 -> 0 | I68: ='3800-4200 MHz'!H68 -> 0 | J68: ='5925-6425 MHz'!L68 -> 12.5 | K68: ='7125-8500 MHz'!L67 -> 0 | L68: ='14400 - 15350 MHz'!L67 -> 0
B69: Cerro Don Juan | C69: 00°50'51.20''N | D69: 79°53'52.40''W | E69: Atacames | F69: 262 | H69: ='1427-1525 MHz'!L69 -> 72.76785714 | I69: ='3800-4200 MHz'!H69 -> 0 | J69: ='5925-6425 MHz'!L69 -> 50 | K69: ='7125-8500 MHz'!L68 -> 38.78205128 | L69: ='14400 - 15350 MHz'!L68 -> 21.2
B70: Cerro Gatazo | C70: 00°56'38.40''N | D70: 79°39'29.70''W | E70: Esmeraldas | F70: 271 | H70: ='1427-1525 MHz'!L70 -> 26.33928571 | I70: ='3800-4200 MHz'!H70 -> 0 | J70: ='5925-6425 MHz'!L70 -> 100 | K70: ='7125-8500 MHz'!L69 -> 61.21794872 | L70: ='14400 - 15350 MHz'!L69 -> 80.65
B71: Cerro La Juanita | C71: 00°28'02.20''N | D71: 79°34'40.50''W | E71: Quinindé | F71: 502 | H71: ='1427-1525 MHz'!L71 -> 39.50892857 | I71: ='3800-4200 MHz'!H71 -> 0 | J71: ='5925-6425 MHz'!L71 -> 87.5 | K71: ='7125-8500 MHz'!L70 -> 92.30769231 | L71: ='14400 - 15350 MHz'!L70 -> 0
B72: Cerro Zapallo | C72: 00°53'05.30''N | D72: 79°31'52.20''W | E72: Esmeraldas | F72: 690 | H72: ='1427-1525 MHz'!L72 -> 51.78571429 | I72: ='3800-4200 MHz'!H72 -> 0 | J72: ='5925-6425 MHz'!L72 -> 100 | K72: ='7125-8500 MHz'!L71 -> 95.83333333 | L72: ='14400 - 15350 MHz'!L71 -> 0
B73: Cerro Animas | C73: 02°28'28.20''S | D73: 80°28'03.40''W | E73: Guayaquil | F73: 427 | H73: ='1427-1525 MHz'!L73 -> 70.53571429 | I73: ='3800-4200 MHz'!H73 -> 16.66666667 | J73: ='5925-6425 MHz'!L73 -> 0 | K73: ='7125-8500 MHz'!L72 -> 84.61538462 | L73: ='14400 - 15350 MHz'!L72 -> 14.29
B74: Cerro Azul | C74: 02°09'57.40''S | D74: 79°57'24.80''W | E74: Guayaquil | F74: 324 | H74: ='1427-1525 MHz'!L74 -> 81.47321429 | I74: ='3800-4200 MHz'!H74 -> 100 | J74: ='5925-6425 MHz'!L74 -> 100 | K74: ='7125-8500 MHz'!L73 -> 98.3974359 | L74: ='14400 - 15350 MHz'!L73 -> 95.39
B75: Cerro Azul Alto (507) | C75: 02°09'05.10''S | D75: 79°59'01.80''W | E75: Guayaquil | F75: 398 | H75: ='1427-1525 MHz'!L75 -> 0 | I75: ='3800-4200 MHz'!H75 -> 0 | J75: ='5925-6425 MHz'!L75 -> 0 | K75: ='7125-8500 MHz'!L74 -> 87.17948718 | L75: ='14400 - 15350 MHz'!L74 -> 6.91
B76: Cerro Balao | C76: 02°45'58.90''S | D76: 79°39'52.90''W | E76: Naranjal | F76: 490 | H76: ='1427-1525 MHz'!L76 -> 47.32142857 | I76: ='3800-4200 MHz'!H76 -> 33.33333333 | J76: ='5925-6425 MHz'!L76 -> 0 | K76: ='7125-8500 MHz'!L75 -> 96.15384615 | L76: ='14400 - 15350 MHz'!L75 -> 0
B77: Cerro Bellavista | C77: 02°10'57.10''S | D77: 79°54'51.30''W | E77: Guayaquil | F77: 100 | H77: ='1427-1525 MHz'!L77 -> 0 | I77: ='3800-4200 MHz'!H77 -> 0 | J77: ='5925-6425 MHz'!L77 -> 0 | K77: ='7125-8500 MHz'!L76 -> 0 | L77: ='14400 - 15350 MHz'!L76 -> 28.57
B78: Cerro El Carmen | C78: 02°10'47.60''S | D78: 79°52'50.00''W | E78: Guayaquil | F78: 80 | H78: ='1427-1525 MHz'!L78 -> 43.08035714 | I78: ='3800-4200 MHz'!H78 -> 0 | J78: ='5925-6425 MHz'!L78 -> 62.5 | K78: ='7125-8500 MHz'!L77 -> 89.42307692 | L78: ='14400 - 15350 MHz'!L77 -> 100
B79: Cerro González | C79: 02°20'57.30''S | D79: 80°32'36.70''W | E79: Guayaquil | F79: 296 | H79: ='1427-1525 MHz'!L79 -> 39.50892857 | I79: ='3800-4200 MHz'!H79 -> 100 | J79: ='5925-6425 MHz'!L79 -> 62.5 | K79: ='7125-8500 MHz'!L78 -> 71.15384615 | L79: ='14400 - 15350 MHz'!L78 -> 4.15
B80: Cerro Mapasingue | C80: 02°08'49.80''S | D80: 79°55'40.80''W | E80: Guayaquil | F80: 120 | H80: ='1427-1525 MHz'!L80 -> 0 | I80: ='3800-4200 MHz'!H80 -> 0 | J80: ='5925-6425 MHz'!L80 -> 0 | K80: ='7125-8500 MHz'!L79 -> 48.07692308 | L80: ='14400 - 15350 MHz'!L79 -> 88.48
B81: Cerro San Eduardo | C81: 02°10'28.00''S | D81: 79°55'07.30''W | E81: Guayaquil | F81: 160 | H81: ='1427-1525 MHz'!L81 -> 0 | I81: ='3800-4200 MHz'!H81 -> 0 | J81: ='5925-6425 MHz'!L81 -> 0 | K81: ='7125-8500 MHz'!L80 -> 16.02564103 | L81: ='14400 - 15350 MHz'!L80 -> 60.83
B82: Cerro Santa Ana | C82: 01°55'45.30''S | D82: 79°45'50.10''W | E82: San Borondón | F82: 300 | H82: ='1427-1525 MHz'!L82 -> 65.84821429 | I82: ='3800-4200 MHz'!H82 -> 100 | J82: ='5925-6425 MHz'!L82 -> 50 | K82: ='7125-8500 MHz'!L81 -> 83.97435897 | L82: ='14400 - 15350 MHz'!L81 -> 40.55
B83: Cerro Tanzarte (Cruz Loma) | C83: 02°45'17.90''S | D83: 79°23'59.80''W | E83: Naranjal | F83: 2894 | H83: ='1427-1525 MHz'!L83 -> 13.39285714 | I83: ='3800-4200 MHz'!H83 -> 0 | J83: ='5925-6425 MHz'!L83 -> 0 | K83: ='7125-8500 MHz'!L82 -> 11.53846154 | L83: ='14400 - 15350 MHz'!L82 -> 0
B84: Cerro Blanco | C84: 00°12'33.70''N | D84: 78°20'16.40''W | E84: Otavalo | F84: 3545 | H84: ='1427-1525 MHz'!L84 -> 34.15178571 | I84: ='3800-4200 MHz'!H84 -> 100 | J84: ='5925-6425 MHz'!L84 -> 100 | K84: ='7125-8500 MHz'!L83 -> 98.07692308 | L84: ='14400 - 15350 MHz'!L83 -> 25.81
B85: Cerro Cotacachi | C85: 00°19'57.30''N | D85: 78°20'24.60''W | E85: Cotacachi | F85: 4047 | H85: ='1427-1525 MHz'!L85 -> 0 | I85: ='3800-4200 MHz'!H85 -> 16.66666667 | J85: ='5925-6425 MHz'!L85 -> 100 | K85: ='7125-8500 MHz'!L84 -> 83.65384615 | L85: ='14400 - 15350 MHz'!L84 -> 39.63
B86: Cerro Calvario (Loja) | C86: 04°02'47.00''S | D86: 79°39'05.80''W | E86: Paltas | F86: 1935 | H86: ='1427-1525 MHz'!L86 -> 0 | I86: ='3800-4200 MHz'!H86 -> 0 | J86: ='5925-6425 MHz'!L86 -> 0 | K86: ='7125-8500 MHz'!L85 -> 9.935897436 | L86: ='14400 - 15350 MHz'!L85 -> 5.99
B87: Cerro Colambo | C87: 04°14'14.60''S | D87: 79°23'45.40''W | E87: Gonzanamá | F87: 3103 | H87: ='1427-1525 MHz'!L87 -> 0 | I87: ='3800-4200 MHz'!H87 -> 100 | J87: ='5925-6425 MHz'!L87 -> 75 | K87: ='7125-8500 MHz'!L86 -> 96.47435897 | L87: ='14400 - 15350 MHz'!L86 -> 3.69
B88: Cerro Guachaurco | C88: 04°02'11.70''S | D88: 79°52'19.40''W | E88: Paltas | F88: 3102 | H88: ='1427-1525 MHz'!L88 -> 0 | I88: ='3800-4200 MHz'!H88 -> 0 | J88: ='5925-6425 MHz'!L88 -> 100 | K88: ='7125-8500 MHz'!L87 -> 100 | L88: ='14400 - 15350 MHz'!L87 -> 11.52
B89: Cerro Guanchuro | C89: 04°04'28.80''S | D89: 79°38'54.90''W | E89: Paltas | F89: 2446 | H89: ='1427-1525 MHz'!L89 -> 0 | I89: ='3800-4200 MHz'!H89 -> 0 | J89: ='5925-6425 MHz'!L89 -> 0 | K89: ='7125-8500 MHz'!L88 -> 3.846153846 | L89: ='14400 - 15350 MHz'!L88 -> 0
B90: Cerro Huanchinchambo | C90: 04°01'25.20''S | D90: 79°14'45.90''W | E90: Catamayo | F90: 2849 | H90: ='1427-1525 MHz'!L90 -> 0 | I90: ='3800-4200 MHz'!H90 -> 100 | J90: ='5925-6425 MHz'!L90 -> 87.5 | K90: ='7125-8500 MHz'!L89 -> 95.51282051 | L90: ='14400 - 15350 MHz'!L89 -> 82.49
B91: Cerro Motilon | C91: 04°04'57.10''S | D91: 79°56'22.20''W | E91: Celica | F91: 2663 | H91: ='1427-1525 MHz'!L91 -> 0 | I91: ='3800-4200 MHz'!H91 -> 0 | J91: ='5925-6425 MHz'!L91 -> 0 | K91: ='7125-8500 MHz'!L90 -> 47.75641026 | L91: ='14400 - 15350 MHz'!L90 -> 0
B92: Cerro Ventanas | C92: 04°01'54.10''S | D92: 79°14'39.00''W | E92: Catamayo | F92: 2870 | H92: ='1427-1525 MHz'!L92 -> 0 | I92: ='3800-4200 MHz'!H92 -> 100 | J92: ='5925-6425 MHz'!L92 -> 87.5 | K92: ='7125-8500 MHz'!L91 -> 95.51282051 | L92: ='14400 - 15350 MHz'!L91 -> 82.49
B93: Cerro Villonaco Alto | C93: 03°59'18.70''S | D93: 79°16'06.30''W | E93: Catamayo | F93: 2952 | H93: ='1427-1525 MHz'!L93 -> 0 | I93: ='3800-4200 MHz'!H93 -> 0 | J93: ='5925-6425 MHz'!L93 -> 0 | K93: ='7125-8500 MHz'!L92 -> 59.29487179 | L93: ='14400 - 15350 MHz'!L92 -> 11.52
B94: Pucará | C94: 04°05'47.80''S | D94: 79°56'17.70''W | E94: Celica | F94: 2479 | H94: ='1427-1525 MHz'!L94 -> 0 | I94: ='3800-4200 MHz'!H94 -> 0 | J94: ='5925-6425 MHz'!L94 -> 0 | K94: ='7125-8500 MHz'!L93 -> 36.85897436 | L94: ='14400 - 15350 MHz'!L93 -> 23.04
B95: Saraguro | C95: 03°37'55.20''S | D95: 79°14'37.50''W | E95: Saraguro | F95: 2740 | H95: ='1427-1525 MHz'!L95 -> 0 | I95: ='3800-4200 MHz'!H95 -> 0 | J95: ='5925-6425 MHz'!L95 -> 0 | K95: ='7125-8500 MHz'!L94 -> 9.615384615 | L95: ='14400 - 15350 MHz'!L94 -> 0
B96: Cerro Corozo | C96: 01°29'23.10''S | D96: 80°31'27.00''W | E96: Jipijapa | F96: 774 | H96: ='1427-1525 MHz'!L96 -> 52.45535714 | I96: ='3800-4200 MHz'!H96 -> 100 | J96: ='5925-6425 MHz'!L96 -> 62.5 | K96: ='7125-8500 MHz'!L95 -> 98.3974359 | L96: ='14400 - 15350 MHz'!L95 -> 6.45
B97: Cerro de Hojas | C97: 01°02'40.10''S | D97: 80°32'38.50''W | E97: Portoviejo | F97: 674 | H97: ='1427-1525 MHz'!L97 -> 60.04464286 | I97: ='3800-4200 MHz'!H97 -> 100 | J97: ='5925-6425 MHz'!L97 -> 87.5 | K97: ='7125-8500 MHz'!L96 -> 100 | L97: ='14400 - 15350 MHz'!L96 -> 53
B98: Cerro Guayas | C98: 00°41'18.10''S | D98: 80°05'27.90''W | E98: Chone | F98: 128 | H98: ='1427-1525 MHz'!L98 -> 0 | I98: ='3800-4200 MHz'!H98 -> 0 | J98: ='5925-6425 MHz'!L98 -> 0 | K98: ='7125-8500 MHz'!L97 -> 41.34615385 | L98: ='14400 - 15350 MHz'!L97 -> 41.47
B99: Cerro Jama 1 | C99: 00°12'29.40''S | D99: 80°16'08.70''W | E99: Jama | F99: 93 | H99: ='1427-1525 MHz'!L99 -> 0 | I99: ='3800-4200 MHz'!H99 -> 0 | J99: ='5925-6425 MHz'!L99 -> 0 | K99: ='7125-8500 MHz'!L98 -> 8.653846154 | L99: ='14400 - 15350 MHz'!L98 -> 0
B100: Cerro Jama 2 | C100: 00°12'58.90''S | D100: 80°16'44.50''W | E100: Jama | F100: 140 | H100: ='1427-1525 MHz'!L100 -> 0 | I100: ='3800-4200 MHz'!H100 -> 0 | J100: ='5925-6425 MHz'!L100 -> 0 | K100: ='7125-8500 MHz'!L99 -> 17.94871795 | L100: ='14400 - 15350 MHz'!L99 -> 0
B101: Cerro La Crespa | C101: 00°20'07.10''S | D101: 79°45'34.70''W | E101: Flavio Alfaro | F101: 480 | H101: ='1427-1525 MHz'!L101 -> 0 | I101: ='3800-4200 MHz'!H101 -> 66.66666667 | J101: ='5925-6425 MHz'!L101 -> 50 | K101: ='7125-8500 MHz'!L100 -> 66.02564103 | L101: ='14400 - 15350 MHz'!L100 -> 0
B102: Cerro Nueve | C102: 00°16'05.30''S | D102: 80°12'29.90''W | E102: Jama | F102: 652 | H102: ='1427-1525 MHz'!L102 -> 0 | I102: ='3800-4200 MHz'!H102 -> 66.66666667 | J102: ='5925-6425 MHz'!L102 -> 37.5 | K102: ='7125-8500 MHz'!L101 -> 85.57692308 | L102: ='14400 - 15350 MHz'!L101 -> 0
B103: Cerro Puerto Alto | C103: 00°21'36.30''S | D103: 79°52'00.40''W | E103: Flavio Alfaro | F103: 410 | H103: ='1427-1525 MHz'!L103 -> 0 | I103: ='3800-4200 MHz'!H103 -> 0 | J103: ='5925-6425 MHz'!L103 -> 0 | K103: ='7125-8500 MHz'!L102 -> 49.67948718 | L103: ='14400 - 15350 MHz'!L102 -> 11.52
B104: Loma de Viento | C104: 00°42'28.10''S | D104: 80°24'28.80''W | E104: Sucre | F104: 402 | H104: ='1427-1525 MHz'!L104 -> 51.33928571 | I104: ='3800-4200 MHz'!H104 -> 33.33333333 | J104: ='5925-6425 MHz'!L104 -> 25 | K104: ='7125-8500 MHz'!L103 -> 77.88461538 | L104: ='14400 - 15350 MHz'!L103 -> 0
B105: Mirador de Bahía de Caráquez | C105: 00°36'28.00''S | D105: 80°25'34.70''W | E105: Sucre | F105: 102 | H105: ='1427-1525 MHz'!L105 -> 0 | I105: ='3800-4200 MHz'!H105 -> 0 | J105: ='5925-6425 MHz'!L105 -> 0 | K105: ='7125-8500 MHz'!L104 -> 15.06410256 | L105: ='14400 - 15350 MHz'!L104 -> 41.47
B106: Cerro Bosco | C106: 03°00'01.00''S | D106: 78°30'34.90''W | E106: Limón Indanza | F106: 2404 | H106: ='1427-1525 MHz'!L106 -> 26.33928571 | I106: ='3800-4200 MHz'!H106 -> 0 | J106: ='5925-6425 MHz'!L106 -> 37.5 | K106: ='7125-8500 MHz'!L105 -> 79.16666667 | L106: ='14400 - 15350 MHz'!L105 -> 0
B107: Cerro Quilamo | C107: 02°18'14.40''S | D107: 78°08'26.80''W | E107: Morona | F107: 1461 | H107: ='1427-1525 MHz'!L107 -> 0 | I107: ='3800-4200 MHz'!H107 -> 0 | J107: ='5925-6425 MHz'!L107 -> 62.5 | K107: ='7125-8500 MHz'!L106 -> 42.30769231 | L107: ='14400 - 15350 MHz'!L106 -> 18.89
B108: Cerro Condijua | C108: 00°29'01.60''S | D108: 77°54'06.90''W | E108: Quijos | F108: 2526 | H108: ='1427-1525 MHz'!L108 -> 17.41071429 | I108: ='3800-4200 MHz'!H108 -> 33.33333333 | J108: ='5925-6425 MHz'!L108 -> 100 | K108: ='7125-8500 MHz'!L107 -> 97.11538462 | L108: ='14400 - 15350 MHz'!L107 -> 18.43
B109: Cerro Huacamayos | C109: 00°37'26.06''S | D109: 77°50'28.60''W | E109: Archidona | F109: 2300 | H109: ='1427-1525 MHz'!L109 -> 0 | I109: ='3800-4200 MHz'!H109 -> 0 | J109: ='5925-6425 MHz'!L109 -> 37.5 | K109: ='7125-8500 MHz'!L108 -> 82.05128205 | L109: ='14400 - 15350 MHz'!L108 -> 0
B110: Cerro Tres Cruces | C110: 00°16'22.60''S | D110: 77°45'53.80''W | E110: El Chaco | F110: 1980 | H110: ='1427-1525 MHz'!L110 -> 0 | I110: ='3800-4200 MHz'!H110 -> 0 | J110: ='5925-6425 MHz'!L110 -> 100 | K110: ='7125-8500 MHz'!L109 -> 90.06410256 | L110: ='14400 - 15350 MHz'!L109 -> 0
B111: Papallacta | C111: 00°22'43.70''S | D111: 78°08'48.60''W | E111: Quijos | F111: 3373 | H111: ='1427-1525 MHz'!L111 -> 0 | I111: ='3800-4200 MHz'!H111 -> 0 | J111: ='5925-6425 MHz'!L111 -> 0 | K111: ='7125-8500 MHz'!L110 -> 7.692307692 | L111: ='14400 - 15350 MHz'!L110 -> 11.52
B112: Cerro Lumbaqui Alto | C112: 00°00'30.40''N | D112: 77°19'15.80''W | E112: Orellana | F112: 1088 | H112: ='1427-1525 MHz'!L112 -> 25.89285714 | I112: ='3800-4200 MHz'!H112 -> 0 | J112: ='5925-6425 MHz'!L112 -> 62.5 | K112: ='7125-8500 MHz'!L111 -> 98.07692308 | L112: ='14400 - 15350 MHz'!L111 -> 27.19
B113: Cerro Lumbaqui Bajo | C113: 00°01'47.70''N | D113: 77°19'07.90''W | E113: Orellana | F113: 998 | H113: ='1427-1525 MHz'!L113 -> 0 | I113: ='3800-4200 MHz'!H113 -> 0 | J113: ='5925-6425 MHz'!L113 -> 50 | K113: ='7125-8500 MHz'!L112 -> 57.69230769 | L113: ='14400 - 15350 MHz'!L112 -> 11.52
B114: Cerro Abitagua | C114: 01°24'53.90''S | D114: 78°08'31.00''W | E114: Mera | F114: 2250 | H114: ='1427-1525 MHz'!L114 -> 0 | I114: ='3800-4200 MHz'!H114 -> 66.66666667 | J114: ='5925-6425 MHz'!L114 -> 50 | K114: ='7125-8500 MHz'!L113 -> 89.42307692 | L114: ='14400 - 15350 MHz'!L113 -> 0
B115: Cerro Calvario | C115: 01°31'14.30''S | D115: 77°54'28.50''W | E115: Pastaza | F115: 1171 | H115: ='1427-1525 MHz'!L115 -> 32.14285714 | I115: ='3800-4200 MHz'!H115 -> 33.33333333 | J115: ='5925-6425 MHz'!L115 -> 100 | K115: ='7125-8500 MHz'!L114 -> 99.67948718 | L115: ='14400 - 15350 MHz'!L114 -> 0
B116: Santa Clara(Km.35 Vía Puyo - Tena) | C116: 01°17'29.30''S | D116: 77°52'36.80''W | E116: Santa Clara | F116: 1080 | H116: ='1427-1525 MHz'!L116 -> 42.85714286 | I116: ='3800-4200 MHz'!H116 -> 66.66666667 | J116: ='5925-6425 MHz'!L116 -> 100 | K116: ='7125-8500 MHz'!L115 -> 94.23076923 | L116: ='14400 - 15350 MHz'!L115 -> 15.67
B117: Cerro Cayambe | C117: 00°03'58.00''N | D117: 77°59'25.80''W | E117: Cayambe | F117: 4216 | H117: ='1427-1525 MHz'!L117 -> 0 | I117: ='3800-4200 MHz'!H117 -> 0 | J117: ='5925-6425 MHz'!L117 -> 12.5 | K117: ='7125-8500 MHz'!L116 -> 53.20512821 | L117: ='14400 - 15350 MHz'!L116 -> 0
B118: Cerro Cruz Loma | C118: 00°11'17.50''S | D118: 78°32'06.70''W | E118: Quito | F118: 3990 | H118: ='1427-1525 MHz'!L118 -> 92.1875 | I118: ='3800-4200 MHz'!H118 -> 50 | J118: ='5925-6425 MHz'!L118 -> 100 | K118: ='7125-8500 MHz'!L117 -> 98.3974359 | L118: ='14400 - 15350 MHz'!L117 -> 94.47
B119: Cerro Ilumbisi | C119: 00°13'40.60''S | D119: 78°28'25.70''W | E119: Quito | F119: 3040 | H119: ='1427-1525 MHz'!L119 -> 18.75 | I119: ='3800-4200 MHz'!H119 -> 0 | J119: ='5925-6425 MHz'!L119 -> 0 | K119: ='7125-8500 MHz'!L118 -> 97.11538462 | L119: ='14400 - 15350 MHz'!L118 -> 72.35
B120: Cerro La Virgen | C120: 00°19'06.90''S | D120: 78°11'27.60''W | E120: Quito | F120: 4412 | H120: ='1427-1525 MHz'!L120 -> 0 | I120: ='3800-4200 MHz'!H120 -> 33.33333333 | J120: ='5925-6425 MHz'!L120 -> 100 | K120: ='7125-8500 MHz'!L119 -> 89.74358974 | L120: ='14400 - 15350 MHz'!L119 -> 0
B121: Cerro Puengasí | C121: 00°14'43.40''S | D121: 78°29'59.70''W | E121: Quito | F121: 3085 | H121: ='1427-1525 MHz'!L121 -> 0 | I121: ='3800-4200 MHz'!H121 -> 0 | J121: ='5925-6425 MHz'!L121 -> 62.5 | K121: ='7125-8500 MHz'!L120 -> 15.38461538 | L121: ='14400 - 15350 MHz'!L120 -> 22.12
B122: Mojanda | C122: 00°04'47.30''N | D122: 78°13'43.20''W | E122: Pedro Moncayo | F122: 3241 | H122: ='1427-1525 MHz'!L122 -> 17.85714286 | I122: ='3800-4200 MHz'!H122 -> 0 | J122: ='5925-6425 MHz'!L122 -> 0 | K122: ='7125-8500 MHz'!L121 -> 16.02564103 | L122: ='14400 - 15350 MHz'!L121 -> 0
B123: Sector Ferroviaria y la Florestal | C123: 00°15'48.00''S | D123: 78°30'25.00''W | E123: Quito | F123: 3179 | H123: ='1427-1525 MHz'!L123 -> 16.29464286 | I123: ='3800-4200 MHz'!H123 -> 33.33333333 | J123: ='5925-6425 MHz'!L123 -> 0 | K123: ='7125-8500 MHz'!L122 -> 85.25641026 | L123: ='14400 - 15350 MHz'!L122 -> 97.7
B124: Cerro Condorcocha | C124: 00°02'19.10''S | D124: 78°30'41.00''W | E124: Quito | F124: 3586 | H124: ='1427-1525 MHz'!L124 -> 18.75 | I124: ='3800-4200 MHz'!H124 -> 0 | J124: ='5925-6425 MHz'!L124 -> 50 | K124: ='7125-8500 MHz'!L123 -> 38.46153846 | L124: ='14400 - 15350 MHz'!L123 -> 32.26
B125: Cerro San Francisco | C125: 00°23'24.89''S | D125: 78°37'06.79''W | E125: Mejía | F125: 4097 | H125: ='1427-1525 MHz'!L125 -> 0 | I125: ='3800-4200 MHz'!H125 -> 0 | J125: ='5925-6425 MHz'!L125 -> 0 | K125: ='7125-8500 MHz'!L124 -> 0 | L125: ='14400 - 15350 MHz'!L124 -> 0
B126: Cerro Tinajero | C126: 00°22'53.08''S | D126: 78°36'36.19''W | E126: Mejía | F126: 4082 | H126: ='1427-1525 MHz'!L126 -> 0 | I126: ='3800-4200 MHz'!H126 -> 0 | J126: ='5925-6425 MHz'!L126 -> 0 | K126: ='7125-8500 MHz'!L125 -> 0 | L126: ='14400 - 15350 MHz'!L125 -> 0
B127: Cerro La Viudita | C127: 00°24'50.70''S | D127: 78°36'27.00''W | E127: Mejía | F127: 3751 | H127: ='1427-1525 MHz'!L127 -> 0 | I127: ='3800-4200 MHz'!H127 -> 0 | J127: ='5925-6425 MHz'!L127 -> 37.5 | K127: ='7125-8500 MHz'!L126 -> 12.5 | L127: ='14400 - 15350 MHz'!L126 -> 5.99
B128: Cerro Hacda El Rosario | C128: 00°26'14.60''S | D128: 78°32'12.50''W | E128: Mejía | F128: 2981 | H128: ='1427-1525 MHz'!L128 -> 13.16964286 | I128: ='3800-4200 MHz'!H128 -> 0 | J128: ='5925-6425 MHz'!L128 -> 0 | K128: ='7125-8500 MHz'!L127 -> 62.5 | L128: ='14400 - 15350 MHz'!L127 -> 52.07
B129: Cerro Atacazo Alto | C129: 00°21'22.20''S | D129: 78°37'09.10''W | E129: Quito | F129: 4474 | H129: ='1427-1525 MHz'!L129 -> 0 | I129: ='3800-4200 MHz'!H129 -> 0 | J129: ='5925-6425 MHz'!L129 -> 25 | K129: ='7125-8500 MHz'!L128 -> 0 | L129: ='14400 - 15350 MHz'!L128 -> 0
B130: Cerro Atacazo Bajo | C130: 00°19'05.10''S | D130: 78°36'08.10''W | E130: Quito | F130: 3893 | H130: ='1427-1525 MHz'!L130 -> 0 | I130: ='3800-4200 MHz'!H130 -> 66.66666667 | J130: ='5925-6425 MHz'!L130 -> 75 | K130: ='7125-8500 MHz'!L129 -> 97.75641026 | L130: ='14400 - 15350 MHz'!L129 -> 27.19
B131: Cerro Pichincha | C131: 00°09'57.03''S | D131: 78°31'39.19''W | E131: Quito | F131: 3901 | H131: ='1427-1525 MHz'!L131 -> 0 | I131: ='3800-4200 MHz'!H131 -> 16.66666667 | J131: ='5925-6425 MHz'!L131 -> 0 | K131: ='7125-8500 MHz'!L130 -> 68.58974359 | L131: ='14400 - 15350 MHz'!L130 -> 81.11
B132: Cerro Capáes | C132: 02°12'32.40''S | D132: 80°51'47.50''W | E132: Santa Elena | F132: 102 | H132: ='1427-1525 MHz'!L132 -> 0 | I132: ='3800-4200 MHz'!H132 -> 16.66666667 | J132: ='5925-6425 MHz'!L132 -> 0 | K132: ='7125-8500 MHz'!L131 -> 55.12820513 | L132: ='14400 - 15350 MHz'!L131 -> 40.55
B133: Cerro Bijagual | C133: 00°39'28.70''S | D133: 79°17'41.00''W | E133: Sto Domingo | F133: 798 | H133: ='1427-1525 MHz'!L133 -> 51.78571429 | I133: ='3800-4200 MHz'!H133 -> 0 | J133: ='5925-6425 MHz'!L133 -> 37.5 | K133: ='7125-8500 MHz'!L132 -> 70.83333333 | L133: ='14400 - 15350 MHz'!L132 -> 11.52
B134: Cerro Bomboli | C134: 00°14'48.20''S | D134: 79°11'31.30''W | E134: Sto Domingo | F134: 636 | H134: ='1427-1525 MHz'!L134 -> 70.3125 | I134: ='3800-4200 MHz'!H134 -> 0 | J134: ='5925-6425 MHz'!L134 -> 62.5 | K134: ='7125-8500 MHz'!L133 -> 98.3974359 | L134: ='14400 - 15350 MHz'!L133 -> 63.59
B135: Cerro Chiguilpe Alto | C135: 00°17'44.70''S | D135: 79°05'12.10''W | E135: Sto Domingo | F135: 1172 | H135: ='1427-1525 MHz'!L135 -> 0 | I135: ='3800-4200 MHz'!H135 -> 66.66666667 | J135: ='5925-6425 MHz'!L135 -> 50 | K135: ='7125-8500 MHz'!L134 -> 75.64102564 | L135: ='14400 - 15350 MHz'!L134 -> 4.15
B136: Cerro Chiguilpe Bajo | C136: 00°16'51.30''S | D136: 79°05'26.40''W | E136: Sto Domingo | F136: 801 | H136: ='1427-1525 MHz'!L136 -> 0 | I136: ='3800-4200 MHz'!H136 -> 0 | J136: ='5925-6425 MHz'!L136 -> 0 | K136: ='7125-8500 MHz'!L135 -> 56.41025641 | L136: ='14400 - 15350 MHz'!L135 -> 9.68
B137: Cerro San Luis | C137: 00°35'10.70''S | D137: 79°19'18.80''W | E137: Sto Domingo | F137: 412 | H137: ='1427-1525 MHz'!L137 -> 0 | I137: ='3800-4200 MHz'!H137 -> 33.33333333 | J137: ='5925-6425 MHz'!L137 -> 0 | K137: ='7125-8500 MHz'!L136 -> 49.67948718 | L137: ='14400 - 15350 MHz'!L136 -> 0
B138: Cerro Bermejo | C138: 00°08'09.10''N | D138: 77°19'39.90''W | E138: Cascales | F138: 994 | H138: ='1427-1525 MHz'!L138 -> 0 | I138: ='3800-4200 MHz'!H138 -> 0 | J138: ='5925-6425 MHz'!L138 -> 0 | K138: ='7125-8500 MHz'!L137 -> 0 | L138: ='14400 - 15350 MHz'!L137 -> 0
B139: Cerro Reventador | C139: 00°02'33.90''S | D139: 77°31'44.10''W | E139: Gonzalo Pizarro | F139: 1600 | H139: ='1427-1525 MHz'!L139 -> 0 | I139: ='3800-4200 MHz'!H139 -> 33.33333333 | J139: ='5925-6425 MHz'!L139 -> 100 | K139: ='7125-8500 MHz'!L138 -> 93.58974359 | L139: ='14400 - 15350 MHz'!L138 -> 0
B140: Cerro Niton | C140: 01°16'41.60''S | D140: 78°32'10.20''W | E140: San Pedro de Pelileo | F140: 3079 | H140: ='1427-1525 MHz'!L140 -> 0 | I140: ='3800-4200 MHz'!H140 -> 0 | J140: ='5925-6425 MHz'!L140 -> 62.5 | K140: ='7125-8500 MHz'!L139 -> 29.80769231 | L140: ='14400 - 15350 MHz'!L139 -> 19.35
B141: Cerro Pilisurco o Saguatoa | C141: 01°09'17.20''S | D141: 78°39'58.00''W | E141: Ambato | F141: 4154 | H141: ='1427-1525 MHz'!L141 -> 0 | I141: ='3800-4200 MHz'!H141 -> 50 | J141: ='5925-6425 MHz'!L141 -> 100 | K141: ='7125-8500 MHz'!L140 -> 98.71794872 | L141: ='14400 - 15350 MHz'!L140 -> 61.75
B142: Cerro Salvación (Lligua) | C142: 01°22'44.90''S | D142: 78°26'11.80''W | E142: Baños | F142: 2696 | H142: ='1427-1525 MHz'!L142 -> 0 | I142: ='3800-4200 MHz'!H142 -> 33.33333333 | J142: ='5925-6425 MHz'!L142 -> 62.5 | K142: ='7125-8500 MHz'!L141 -> 78.52564103 | L142: ='14400 - 15350 MHz'!L141 -> 10.14
B143: Llantantoma | C143: 01°09'56.40''S | D143: 78°37'53.90''W | E143: Ambato | F143: 3450 | H143: ='1427-1525 MHz'!L143 -> 0 | I143: ='3800-4200 MHz'!H143 -> 0 | J143: ='5925-6425 MHz'!L143 -> 0 | K143: ='7125-8500 MHz'!L142 -> 0 | L143: ='14400 - 15350 MHz'!L142 -> 0
